Workbook

Sheet Calculator
A1: Input desired NaCl/Si Ratio (or salinity), Cl-/Na+ Ratio (or pH), SiO2 wt% and T. | C1: User Input: | H1: Recipe per Liter of | K1: SiO2 Sol Properties:
A2: The relationship of gelation time with each variable will be displayed below. | C2: NaCl/SiO2: | F2: 0 | H2: 30 wt% SiO2 sol: | K2: Sol Density | L2: 1.216
A3: Select whether you would like the error lines to show confidence intervals of | C3: Cl-/Na+: | F3: 0.7 | H3: 1N HCl: | I3: =1000*IF($C$3='Chart Data'!$A$86,$F$3,((Equations!$B$21+Equations!$B$22*$F$4)+SQRT((-Equations!$B$21-Equations!$B$22*$F$4)^2-4*(-Equations!$B$20)*($F$3-Equations!$B$23)))/(2*(-Equations!$B$20)))*$L$2*$L$3*20/61.9789 -> 153.8175089 | J3: mL | K3: wt% Na2O | L3: 0.56
A4: the best fit line or prediction intervals of new measurements. | C4: SiO2 wt%: | F4: 20 | H4: 2.5N NaCl: | I4: =IF(Calculator!$C$2='Chart Data'!$H$85,Calculator!$F$2,IF(Calculator!$C$2='Chart Data'!$H$86,Calculator!$F$2*(1/10^LOG(Calculator!$F$4)-1/100)*60.085/10,IF(Calculator!$C$2='Chart Data'!$H$87,(Calculator!$F$2/58440)*(1/10^LOG(Calculator!$F$4)-1/100)*60.085/10,Calculator!$F$2)))*1000*L2*L4*10/60.085/2.5 -> 0 | J4: mL | K4: wt% SiO2 | L4: 30
A5: The best guess gel time using all four variables will be displayed | C5: Temperature (°C): | F5: 25 | H5: H2O: | I5: =1000*L2*L4/F4-1000*L2*L4/100-(1000*L2*(1-L3/100-L4/100)+(1.091-2.5*58.44/1000)*I4+(1000*1.0175-36.46)*I3/1000) -> 463.9084711 | J5: mL
A6: as well as upper and lower bounds of the confidence or prediction interval. | C6: Confidence/Prediction Interval? | F6: Confidence
A7: The user-modifiable cells are the ones highlighted in yellow. If experiments | C7: Certainty (Sigmas): | F7: 2 | J7: Volume Ratios:
A8: have been done at or around the input conditions, they will be displayed (red). | C8: Certainty (%): | F8: =IF((ERF(F7/SQRT(2)))>0.9999,IF(ERF(F7/SQRT(2))>0.99999,IF(ERF(F7/SQRT(2))>0.999999,IF(ERF(F7/SQRT(2))>0.9999999,ERF(F7/SQRT(2)),ROUND(ERF(F7/SQRT(2)),7)),ROUND(ERF(F7/SQRT(2)),6)),ROUND(ERF(F7/SQRT(2)),5)),ROUND((ERF(F7/SQRT(2))),4)) -> 0.9545 | J8: To calculate a chemistry
A9: The overall closest experiment to the input conditions will be displayed. | C9: Gelation Time Units: | F9: Hr:Min:Sec | J9: based on ingredient ratios,
J10: enter ingredient ratios and
A11: =IF(K18="N/A",'Chart Data'!A115,IF('Chart Data'!B3>7,'Chart Data'!A113,IF(OR('Chart Data'!D87>1,'Chart Data'!F87<0,'Chart Data'!F86<5,'Chart Data'!D87<0,'Chart Data'!F87>0.3,'Chart Data'!F86>25,'Chart Data'!D86<25,'Chart Data'!D86>250),'Chart Data'!A112,IF(AND('Chart Data'!F87=0,'Chart Data'!F86<-10*'Chart Data'!D87+19),'Chart Data'!A107,IF(AND('Chart Data'!F87=0,'Chart Data'!F86>=-10*'Chart Data'!D87+19,'Chart Data'!F86<20),'Chart Data'!A108,IF('Chart Data'!F87>0,'Chart Data'!A110,"")))))) ->  | J11: click the Calculate button.
A12: =IF(K18="N/A",'Chart Data'!A116,IF('Chart Data'!B3>7,'Chart Data'!A114,IF(OR('Chart Data'!D87>1,'Chart Data'!F87<0,'Chart Data'!F86<5,'Chart Data'!D87<0,'Chart Data'!F87>0.3,'Chart Data'!F86>25,'Chart Data'!D86<25,'Chart Data'!D86>250),"",IF(AND('Chart Data'!F87=0,'Chart Data'!F86<-10*'Chart Data'!D87+19),"",IF(AND('Chart Data'!F87=0,'Chart Data'!F86>=-10*'Chart Data'!D87+19,'Chart Data'!F86<20),'Chart Data'!A109,IF('Chart Data'!F87>0,'Chart Data'!A111,"")))))) ->  | J12: 6 | K12: SiO2 Sol
J13: 1 | K13: 1N HCl
J14: 0 | K14: 2.5N NaCl
J15: 5 | K15: H2O
K17: Gelation Time:
K18: =IF(Calculator!$F$9='Chart Data'!$Q$88,'Chart Data'!$R$88,IF(Calculator!$F$9='Chart Data'!$Q$89,'Chart Data'!$R$89,IF(Calculator!$F$9='Chart Data'!$Q$90,'Chart Data'!$R$90,IF(Calculator!$F$9='Chart Data'!$Q$91,'Chart Data'!$R$91,IF(Calculator!$F$9='Chart Data'!$Q$92,'Chart Data'!$R$92,0))))) -> 35:3:28 | L18: =F9 -> Hr:Min:Sec
K19: Upper Bound:
K20: =IF(Calculator!$F$9='Chart Data'!$Q$88,'Chart Data'!$S$88,IF(Calculator!$F$9='Chart Data'!$Q$89,'Chart Data'!$S$89,IF(Calculator!$F$9='Chart Data'!$Q$90,'Chart Data'!$S$90,IF(Calculator!$F$9='Chart Data'!$Q$91,'Chart Data'!$S$91,IF(Calculator!$F$9='Chart Data'!$Q$92,'Chart Data'!$S$92,0))))) -> 38:41:51 | L20: =F9 -> Hr:Min:Sec
K21: Lower Bound:
K22: =IF(Calculator!$F$9='Chart Data'!$Q$88,'Chart Data'!$T$88,IF(Calculator!$F$9='Chart Data'!$Q$89,'Chart Data'!$T$89,IF(Calculator!$F$9='Chart Data'!$Q$90,'Chart Data'!$T$90,IF(Calculator!$F$9='Chart Data'!$Q$91,'Chart Data'!$T$91,IF(Calculator!$F$9='Chart Data'!$Q$92,'Chart Data'!$T$92,0))))) -> 31:45:37 | L22: =F9 -> Hr:Min:Sec
K25: Closest Experiment:
K26: SiO2: | L26: =Calcs!B161 & " wt%" -> 20 wt%
K27: Cl-/Na+: | L27: =Calcs!B162 -> 0.7
K28: NaCl/SiO2: | L28: =Calcs!B163 -> 0
K29: pH: | L29: =Calcs!B165 -> 7.77
K30: T: | L30: =IF(Calculator!C5='Chart Data'!B83,Calcs!B164*9/5+32 & " °F",IF(Calculator!C5='Chart Data'!B85,Calcs!B164+273.15 & " K",Calcs!B164 & " °C")) -> 25 °C
J36: Please Note:
J37: The input salinity should NOT
J38: include the Na+ stabilizer, nor
J39: the Cl- from added HCl. It is
J40: only a measure of the added
J41: NaCl. Likewise, the acidity
J42: (represented by the Cl-/Na+
J43: ratio) does NOT include the
J44: added NaCl.

Sheet Worked Examples
A1: Example 1:
B2: We have prepared a colloidal silica solution with 10 wt% SiO2, 0.1 molal NaCl, and a pH of 8.
B3: We are injecting this into an oil well in order to seal the well bore against leakage.
B4: The temperature at the bottom of the well is 110 °C. What is the time before
B5: gelation, assuming the solution is instantly heated to 110 °C?
A7: Answer 1:
B8: Input 0.1, 8, 10, and 110 into cells F2-F5 on the Calculator tab, respectively.
B9: Make sure that cell C2 is set to "NaCl (m):", C3 is set to "pH:", and C5 is
B10: set to "Temperature (°C):" via the drop-down menus in those cells.
B12: The best-guess gelation time is displayed as 17 minutes, 50 seconds.
B13: The 2-sigma prediction interval, however, is between 11 minutes, 4 seconds
B14: and 28 minutes, 45 seconds.
A18: Example 2:
B19: How is the gelation time of the above example affected if exsolved CO2 bubbles through
B20: the gel solution and reduces the pH of the solution to 7?
A22: Answer 2:
B23: If the pH is lowered to 7, the best-guess gel time is lowered to 49 seconds.
A27: Example 3:
B28: The 49-second gel time is too short for our operational procedures. How can we modify
B29: the chemistry to obtain a longer gel time?
A31: Answer 3:
B32: Since it has been determined that the pH is fixed via subsurface addition of CO2,
B33: and the temperature of the wellbore is fixed, we can vary the gel time by lowering
B34: the added salt content. If, instead of adding 0.1 molal salt, no salt is added,
B35: the best-guess gelation time rises to 10 minutes, 41 seconds.

Sheet Equations
A1: 25 °C Model
A2: Parameters: | C2: Error (+/-):
A3: Q | B3: 0.06688714144 | C3: N/A | E3: 25 °C Model Equation:
A4: B | B4: 17.0915924 | C4: 0.3621687682
A5: X1 | B5: -16.5308833 | C5: 1.958256627
A6: X2 | B6: 27.28008153 | C6: 3.037733728
A7: X3 | B7: 4.537666402 | C7: 1.836009656
A8: X4 | B8: 5.643584379 | C8: 0.224251212
A9: X5 | B9: -11.37328065 | C9: 0.2198538531
A10: X6 | B10: -0.3846845789 | C10: 0.01569740038
A11: X7 | B11: 0.4791053318 | C11: 0.01098308511
A12: X8 | B12: -18.16077175 | C12: 1.760855234
A13: X9 | B13: -7.337310687 | C13: 0.3769826449
A15: 25 °C Model | C15: R2: | D15: 0.9960846464 | E15: Fstat: | F15: 2261.375763 | G15: SSreg: | H15: 35.77002808
A16: Statistics: | C16: Std Err: | D16: 0.04192296777 | E16: dF: | F16: 80 | G16: SSresid: | H16: 0.1406028182
A18: pH Calibration
A19: Parameters: | C19: Error (+/-): | E19: pH Calibration Equation:
A20: X1 | B20: -1.428571429 | C20: 0.1066139543
A21: X2 | B21: -1.76797619 | C21: 0.1038049874
A22: X3 | B22: -0.0395 | C22: 0.003567985353
A23: B | B23: 10.26171429 | C23: 0.01501705895
A25: pH Calibration | C25: R2: | D25: 0.9994386286 | E25: Fstat: | F25: 6527.95705 | G25: SSreg: | H25: 14.95877119
A26: Statistics: | C26: Std Err: | D26: 0.0276374957 | E26: dF: | F26: 11 | G26: SSresid: | H26: 0.008402142857
A28: EA Model | E28: Activation Energy Model Equation:
A29: Parameters: | C29: Error (+/-):
A30: X1 | B30: 16.18082952 | C30: 1.817955396
A31: X2 | B31: -9.326366157 | C31: 1.010530717
A32: X3 | B32: 38.50433559 | C32: 4.1869596
A33: B | B33: -24.40684577 | C33: 5.295640729
A35: EA Model | C35: R2: | D35: 0.9607785953 | E35: Fstat: | F35: 187.8048298 | G35: SSreg: | H35: 111.4341481
A36: Statistics: | C36: Std Err: | D36: 0.4447286856 | E36: dF: | F36: 23 | G36: SSresid: | H36: 4.549022887
E38: Gelation Time Calculation Equations:

Sheet Experiment Data
A1: Exp. # | C1: Cl-/Na+ | D1: NaCl/SiO2 | E1: SiO2 wt% | F1: log[SiO2] | G1: GT(s) | H1: Log(GT(s) | I1: T(eff) °C | K1: Cl-/Na+ | L1: NaCl/SiO2 | M1: SiO2 wt% | N1: GT(s) | O1: Log(GT(s) | P1: T(eff) °C | R1: Cl-/Na+ | S1: NaCl/SiO2 | T1: SiO2 wt% | U1: GT(s) | V1: Log(GT(s) | W1: T(eff) °C | Y1: Cl-/Na+ | Z1: NaCl/SiO2 | AA1: SiO2 wt% | AB1: GT(s) | AC1: Log(GT(s) | AD1: T(eff) °C
A2: 1 | C2: 0.5 | D2: 0 | E2: 25 | F2: =LOG(E2) -> 1.397940009 | G2: 168043 | H2: =LOG(G2) -> 5.225420426 | I2: 25 | K2: 0.7 | L2: 0 | M2: 20 | N2: 144418 | O2: =LOG(N2) -> 5.159621326 | P2: 25 | R2: 0.5 | S2: 0.1622 | T2: 10 | U2: 31147 | V2: =LOG(U2) -> 4.493416223 | W2: 25 | Y2: 0 | Z2: 0 | AA2: 18 | AB2: 76199 | AC2: =LOG(AB2) -> 4.881949272 | AD2: 144.2714532
A3: =A2+1 -> 2 | C3: 0.5 | D3: 0.0535 | E3: 15 | F3: =LOG(E3) -> 1.176091259 | G3: 66290 | H3: 4.821448019 | I3: 25 | K3: 0.91018 | L3: 0 | M3: 22.7235 | N3: 3446 | O3: 3.537315273 | P3: 25 | R3: 0.5 | S3: 0.1622 | T3: 14 | U3: 1960 | V3: 3.292256071 | W3: 25 | Y3: 0 | Z3: 0 | AA3: 18.5 | AB3: 63004 | AC3: 4.799368123 | AD3: 143.610111
A4: =A3+1 -> 3 | C4: 0.5 | D4: 0.0535 | E4: 19 | F4: 1.278753601 | G4: 7200 | H4: 3.857332496 | I4: 25 | K4: 1 | L4: 0 | M4: 24 | N4: 2039 | O4: 3.309417226 | P4: 25 | R4: 0.5 | S4: 0.0535 | T4: 15 | U4: 66290 | V4: 4.821448019 | W4: 25 | Y4: 0 | Z4: 0 | AA4: 19 | AB4: 44106 | AC4: 4.644497673 | AD4: 143.9118674
A5: 4 | C5: 0.5 | D5: 0.0535 | E5: 21 | F5: 1.322219295 | G5: 2954 | H5: 3.470410491 | I5: 25 | K5: 0.5 | L5: 0 | M5: 25 | N5: 168043 | O5: 5.225420426 | P5: 25 | R5: 0.5 | S5: 0.11 | T5: 15 | U5: 4523 | V5: 3.655426588 | W5: 25 | Y5: 0.1 | Z5: 0 | AA5: 17 | AB5: 75623 | AC5: 4.878653902 | AD5: 143.2816027
A6: 5 | C6: 0.5 | D6: 0.0535 | E6: 22 | F6: 1.342422681 | G6: 1809 | H6: 3.257438567 | I6: 25 | K6: 0.7 | L6: 0 | M6: 25 | N6: 17391 | O6: 4.240324555 | P6: 25 | R6: 0.5 | S6: 0.1622 | T6: 15 | U6: 1201 | V6: 3.079543007 | W6: 25 | Y6: 0.1 | Z6: 0 | AA6: 17.5 | AB6: 52201 | AC6: 4.717678823 | AD6: 141.7148546
A7: 6 | C7: 0.5 | D7: 0.0535 | E7: 23 | F7: 1.361727836 | G7: 1199 | H7: 3.078819183 | I7: 25 | K7: 1 | L7: 0 | M7: 25 | N7: 1711 | O7: 3.23325001 | P7: 25 | R7: 0.5 | S7: 0.11 | T7: 16 | U7: 2632 | V7: 3.420285885 | W7: 25 | Y7: 0.1 | Z7: 0 | AA7: 18 | AB7: 38389 | AC7: 4.584206799 | AD7: 142.8885279
A8: 7 | C8: 0.5 | D8: 0.0535 | E8: 24 | F8: 1.380211242 | G8: 753 | H8: 2.876794976 | I8: 25 | K8: 0.7 | L8: 0.01 | M8: 20 | N8: 40536 | O8: 4.607840891 | P8: 25 | R8: 0.5 | S8: 0.1622 | T8: 16 | U8: 832 | V8: 2.920123326 | W8: 25 | Y8: 0.1 | Z8: 0 | AA8: 19 | AB8: 8814 | AC8: 3.945173046 | AD8: 140.6408981
A9: 8 | C9: 0.5 | D9: 0.0535 | E9: 25 | F9: 1.397940009 | G9: 559 | H9: 2.747411808 | I9: 25 | K9: 0.7 | L9: 0.01 | M9: 25 | N9: 5272 | O9: 3.721975402 | P9: 25 | R9: 0.5 | S9: 0.11 | T9: 17 | U9: 1634 | V9: 3.213252052 | W9: 25 | Y9: 0.2 | Z9: 0 | AA9: 16 | AB9: 75616 | AC9: 4.8786137 | AD9: 143.8898358
A10: 9 | C10: 0.5 | D10: 0.11 | E10: 15 | F10: 1.176091259 | G10: 4523 | H10: 3.655426588 | I10: 25 | K10: 0.7 | L10: 0.025 | M10: 20 | N10: 10317 | O10: 4.013553431 | P10: 25 | R10: 0.5 | S10: 0.1622 | T10: 17 | U10: 486 | V10: 2.686636269 | W10: 25 | Y10: 0.2 | Z10: 0 | AA10: 16.5 | AB10: 46804 | AC10: 4.670282971 | AD10: 145.2842197
A11: 10 | C11: 0.5 | D11: 0.11 | E11: 16 | F11: 1.204119983 | G11: 2632 | H11: 3.420285885 | I11: 25 | K11: 0.7 | L11: 0.025 | M11: 24 | N11: 2123 | O11: 3.326949994 | P11: 25 | R11: 0.5 | S11: 0.11 | T11: 18 | U11: 983 | V11: 2.992553518 | W11: 25 | Y11: 0.2 | Z11: 0 | AA11: 17 | AB11: 30302 | AC11: 4.481471294 | AD11: 142.2412027
A12: 11 | C12: 0.5 | D12: 0.11 | E12: 17 | F12: 1.230448921 | G12: 1634 | H12: 3.213252052 | I12: 25 | K12: 0.7 | L12: 0.025 | M12: 25 | N12: 1430 | O12: 3.155336037 | P12: 25 | R12: 0.5 | S12: 0.1622 | T12: 18 | U12: 331 | V12: 2.519827994 | W12: 25 | Y12: 0.2 | Z12: 0 | AA12: 17.5 | AB12: 15517 | AC12: 4.19080776 | AD12: 143.4809627
A13: 12 | C13: 0.5 | D13: 0.11 | E13: 18 | F13: 1.255272505 | G13: 983 | H13: 2.992553518 | I13: 25 | K13: 0.7 | L13: 0.0535 | M13: 14 | N13: 29033 | O13: 4.462891914 | P13: 25 | R13: 0.5 | S13: 0.0535 | T13: 19 | U13: 7200 | V13: 3.857332496 | W13: 25 | Y13: 0.2 | Z13: 0 | AA13: 18 | AB13: 10935 | AC13: 4.038818787 | AD13: 141.5215935
A14: 13 | C14: 0.5 | D14: 0.11 | E14: 19 | F14: 1.278753601 | G14: 675 | H14: 2.829303773 | I14: 25 | K14: 0.5 | L14: 0.0535 | M14: 15 | N14: 66290 | O14: 4.821448019 | P14: 25 | R14: 0.5 | S14: 0.11 | T14: 19 | U14: 675 | V14: 2.829303773 | W14: 25 | Y14: 0.2 | Z14: 0 | AA14: 18.5 | AB14: 7203 | AC14: 3.857513415 | AD14: 140.004924
A15: 14 | C15: 0.5 | D15: 0.11 | E15: 20 | F15: 1.301029996 | G15: 440 | H15: 2.643452676 | I15: 25 | K15: 0.8 | L15: 0.0535 | M15: 15 | N15: 10943 | O15: 4.039136399 | P15: 25 | R15: 0.5 | S15: 0.1622 | T15: 19 | U15: 219 | V15: 2.340444115 | W15: 25 | Y15: 0.2 | Z15: 0 | AA15: 19 | AB15: 4380 | AC15: 3.641474111 | AD15: 139.8192891
A16: 15 | C16: 0.5 | D16: 0.11 | E16: 21 | F16: 1.322219295 | G16: 323 | H16: 2.509202522 | I16: 25 | K16: 0.9 | L16: 0.0535 | M16: 15 | N16: 7273 | O16: 3.861713588 | P16: 25 | R16: 0.5 | S16: 0.11 | T16: 20 | U16: 440 | V16: 2.643452676 | W16: 25 | Y16: 0.3 | Z16: 0 | AA16: 16 | AB16: 21600 | AC16: 4.334453751 | AD16: 141.7923232
A17: 16 | C17: 0.5 | D17: 0.11 | E17: 22 | F17: 1.342422681 | G17: 214 | H17: 2.330413773 | I17: 25 | K17: 1 | L17: 0.0535 | M17: 15 | N17: 6125 | O17: 3.787106093 | P17: 25 | R17: 0.5 | S17: 0.1622 | T17: 20 | U17: 146 | V17: 2.164352856 | W17: 25 | Y17: 0.3 | Z17: 0 | AA17: 17 | AB17: 60853 | AC17: 4.784281993 | AD17: 104.606285
A18: 17 | C18: 0.5 | D18: 0.1622 | E18: 10 | F18: 1 | G18: 31147 | H18: 4.493416223 | I18: 25 | K18: 0.7 | L18: 0.0535 | M18: 16 | N18: 10803 | O18: 4.033544376 | P18: 25 | R18: 0.5 | S18: 0.0535 | T18: 21 | U18: 2954 | V18: 3.470410491 | W18: 25 | Y18: 0.3 | Z18: 0 | AA18: 17 | AB18: 5825 | AC18: 3.76529593 | AD18: 141.8686779
A19: 18 | C19: 0.5 | D19: 0.1622 | E19: 14 | F19: 1.146128036 | G19: 1960 | H19: 3.292256071 | I19: 25 | K19: 1 | L19: 0.0535 | M19: 17 | N19: 3190 | O19: 3.503790683 | P19: 25 | R19: 0.5 | S19: 0.11 | T19: 21 | U19: 323 | V19: 2.509202522 | W19: 25 | Y19: 0.4 | Z19: 0 | AA19: 14.5 | AB19: 23400 | AC19: 4.369215857 | AD19: 143.4258015
A20: 19 | C20: 0.5 | D20: 0.1622 | E20: 15 | F20: 1.176091259 | G20: 1201 | H20: 3.079543007 | I20: 25 | K20: 0.7 | L20: 0.0535 | M20: 18 | N20: 4266 | O20: 3.630020851 | P20: 25 | R20: 0.5 | S20: 0.0535 | T20: 22 | U20: 1809 | V20: 3.257438567 | W20: 25 | Y20: 0.4 | Z20: 0 | AA20: 15 | AB20: 13654 | AC20: 4.135259899 | AD20: 143.837059
A21: 20 | C21: 0.5 | D21: 0.1622 | E21: 16 | F21: 1.204119983 | G21: 832 | H21: 2.920123326 | I21: 25 | K21: 0.5 | L21: 0.0535 | M21: 19 | N21: 7200 | O21: 3.857332496 | P21: 25 | R21: 0.5 | S21: 0.11 | T21: 22 | U21: 214 | V21: 2.330413773 | W21: 25 | Y21: 0.4 | Z21: 0 | AA21: 15.5 | AB21: 7130 | AC21: 3.85308953 | AD21: 142.0316483
A22: 21 | C22: 0.5 | D22: 0.1622 | E22: 17 | F22: 1.230448921 | G22: 486 | H22: 2.686636269 | I22: 25 | K22: 0.8 | L22: 0.0535 | M22: 19 | N22: 2268 | O22: 3.35564305 | P22: 25 | R22: 0.5 | S22: 0.0535 | T22: 23 | U22: 1199 | V22: 3.078819183 | W22: 25 | Y22: 0.5 | Z22: 0 | AA22: 14 | AB22: 8580 | AC22: 3.933487288 | AD22: 142.0097395
A23: 22 | C23: 0.5 | D23: 0.1622 | E23: 18 | F23: 1.255272505 | G23: 331 | H23: 2.519827994 | I23: 25 | K23: 0.9 | L23: 0.0535 | M23: 19 | N23: 1854 | O23: 3.26810973 | P23: 25 | R23: 0.5 | S23: 0.0535 | T23: 24 | U23: 753 | V23: 2.876794976 | W23: 25 | Y23: 0.5 | Z23: 0 | AA23: 15 | AB23: 2619 | AC23: 3.418135498 | AD23: 135.6018449
A24: 23 | C24: 0.5 | D24: 0.1622 | E24: 19 | F24: 1.278753601 | G24: 219 | H24: 2.340444115 | I24: 25 | K24: 1 | L24: 0.0535 | M24: 19 | N24: 1970 | O24: 3.294466226 | P24: 25 | R24: 0.5 | S24: 0 | T24: 25 | U24: 168043 | V24: 5.225420426 | W24: 25 | Y24: 0.5 | Z24: 0 | AA24: 25 | AB24: 168043 | AC24: 5.225420426 | AD24: 25
A25: 24 | C25: 0.5 | D25: 0.1622 | E25: 20 | F25: 1.301029996 | G25: 146 | H25: 2.164352856 | I25: 25 | K25: 0.7 | L25: 0.0535 | M25: 20 | N25: 1876 | O25: 3.273232834 | P25: 25 | R25: 0.5 | S25: 0.0535 | T25: 25 | U25: 559 | V25: 2.747411808 | W25: 25 | Y25: 0.5 | Z25: 0.0535 | AA25: 15 | AB25: 66290 | AC25: 4.821448019 | AD25: 25
A26: 25 | C26: 0.7 | D26: 0 | E26: 20 | F26: 1.301029996 | G26: 144418 | H26: 5.159621326 | I26: 25 | K26: 0.8 | L26: 0.0535 | M26: 20 | N26: 1534 | O26: 3.18582536 | P26: 25 | R26: 0.7 | S26: 0.0535 | T26: 14 | U26: 29033 | V26: 4.462891914 | W26: 25 | Y26: 0.5 | Z26: 0.0535 | AA26: 19 | AB26: 7200 | AC26: 3.857332496 | AD26: 25
A27: 26 | C27: 0.7 | D27: 0 | E27: 25 | F27: 1.397940009 | G27: 17391 | H27: 4.240324555 | I27: 25 | K27: 0.5 | L27: 0.0535 | M27: 21 | N27: 2954 | O27: 3.470410491 | P27: 25 | R27: 0.7 | S27: 0.1622 | T27: 15 | U27: 1268 | V27: 3.103119254 | W27: 25 | Y27: 0.5 | Z27: 0.0535 | AA27: 21 | AB27: 2954 | AC27: 3.470410491 | AD27: 25
A28: 27 | C28: 0.7 | D28: 0.01 | E28: 20 | F28: 1.301029996 | G28: 40536 | H28: 4.607840891 | I28: 25 | K28: 0.7 | L28: 0.0535 | M28: 21 | N28: 1313 | O28: 3.118264726 | P28: 25 | R28: 0.7 | S28: 0.0535 | T28: 16 | U28: 10803 | V28: 4.033544376 | W28: 25 | Y28: 0.5 | Z28: 0.0535 | AA28: 22 | AB28: 1809 | AC28: 3.257438567 | AD28: 25
A29: 28 | C29: 0.7 | D29: 0.01 | E29: 25 | F29: 1.397940009 | G29: 5272 | H29: 3.721975402 | I29: 25 | K29: 0.8 | L29: 0.0535 | M29: 21 | N29: 1075 | O29: 3.031408464 | P29: 25 | R29: 0.7 | S29: 0.11 | T29: 16 | U29: 2070 | V29: 3.315970345 | W29: 25 | Y29: 0.5 | Z29: 0.0535 | AA29: 23 | AB29: 1199 | AC29: 3.078819183 | AD29: 25
A30: 29 | C30: 0.7 | D30: 0.025 | E30: 20 | F30: 1.301029996 | G30: 10317 | H30: 4.013553431 | I30: 25 | K30: 0.9 | L30: 0.0535 | M30: 21 | N30: 996 | O30: 2.998259338 | P30: 25 | R30: 0.7 | S30: 0.1622 | T30: 16 | U30: 892 | V30: 2.950364854 | W30: 25 | Y30: 0.5 | Z30: 0.0535 | AA30: 24 | AB30: 753 | AC30: 2.876794976 | AD30: 25
A31: 30 | C31: 0.7 | D31: 0.025 | E31: 24 | F31: 1.380211242 | G31: 2123 | H31: 3.326949994 | I31: 25 | K31: 1 | L31: 0.0535 | M31: 21 | N31: 1317 | O31: 3.119585775 | P31: 25 | R31: 0.7 | S31: 0.1622 | T31: 17 | U31: 535 | V31: 2.728353782 | W31: 25 | Y31: 0.5 | Z31: 0.0535 | AA31: 25 | AB31: 559 | AC31: 2.747411808 | AD31: 25
A32: 31 | C32: 0.7 | D32: 0.025 | E32: 25 | F32: 1.397940009 | G32: 1430 | H32: 3.155336037 | I32: 25 | K32: 0.5 | L32: 0.0535 | M32: 22 | N32: 1809 | O32: 3.257438567 | P32: 25 | R32: 0.7 | S32: 0.1622 | T32: 17 | U32: 654 | V32: 2.815577748 | W32: 25 | Y32: 0.5 | Z32: 0.11 | AA32: 15 | AB32: 4523 | AC32: =LOG(AB32) -> 3.655426588 | AD32: 25
A33: 32 | C33: 0.7 | D33: 0.0535 | E33: 14 | F33: 1.146128036 | G33: 29033 | H33: 4.462891914 | I33: 25 | K33: 0.7 | L33: 0.0535 | M33: 22 | N33: 959 | O33: =LOG(N33) -> 2.981818607 | P33: 25 | R33: 0.7 | S33: 0.0535 | T33: 18 | U33: 4266 | V33: 3.630020851 | W33: 25 | Y33: 0.5 | Z33: 0.11 | AA33: 16 | AB33: 2632 | AC33: 3.420285885 | AD33: 25
A34: 33 | C34: 0.7 | D34: 0.0535 | E34: 16 | F34: 1.204119983 | G34: 10803 | H34: =LOG(G34) -> 4.033544376 | I34: 25 | K34: 0.8 | L34: 0.0535 | M34: 22 | N34: 800 | O34: 2.903089987 | P34: 25 | R34: 0.7 | S34: 0.11 | T34: 18 | U34: 990 | V34: =LOG(U34) -> 2.995635195 | W34: 25 | Y34: 0.5 | Z34: 0.11 | AA34: 17 | AB34: 1634 | AC34: 3.213252052 | AD34: 25
A35: 34 | C35: 0.7 | D35: 0.0535 | E35: 18 | F35: 1.255272505 | G35: 4266 | H35: 3.630020851 | I35: 25 | K35: 1 | L35: 0.0535 | M35: 22 | N35: 1019 | O35: 3.008174184 | P35: 25 | R35: 0.7 | S35: 0.1622 | T35: 18 | U35: 370 | V35: 2.568201724 | W35: 25 | Y35: 0.5 | Z35: 0.11 | AA35: 18 | AB35: 983 | AC35: 2.992553518 | AD35: 25
A36: 35 | C36: 0.7 | D36: 0.0535 | E36: 20 | F36: 1.301029996 | G36: 1876 | H36: 3.273232834 | I36: 25 | K36: 0.5 | L36: 0.0535 | M36: 23 | N36: 1199 | O36: 3.078819183 | P36: 25 | R36: 0.7 | S36: 0.1622 | T36: 18 | U36: 485 | V36: 2.685741739 | W36: 25 | Y36: 0.5 | Z36: 0.11 | AA36: 19 | AB36: 675 | AC36: 2.829303773 | AD36: 25
A37: 36 | C37: 0.7 | D37: 0.0535 | E37: 21 | F37: 1.322219295 | G37: 1313 | H37: 3.118264726 | I37: 25 | K37: 0.7 | L37: 0.0535 | M37: 23 | N37: 622 | O37: 2.793790385 | P37: 25 | R37: 0.7 | S37: 0.11 | T37: 19 | U37: 627 | V37: 2.797267541 | W37: 25 | Y37: 0.5 | Z37: 0.11 | AA37: 20 | AB37: 440 | AC37: 2.643452676 | AD37: 25
A38: 37 | C38: 0.7 | D38: 0.0535 | E38: 22 | F38: 1.342422681 | G38: 959 | H38: 2.981818607 | I38: 25 | K38: 0.8 | L38: 0.0535 | M38: 23 | N38: 615 | O38: 2.788875116 | P38: 25 | R38: 0.7 | S38: 0.1622 | T38: 19 | U38: 273 | V38: 2.436162647 | W38: 25 | Y38: 0.5 | Z38: 0.11 | AA38: 21 | AB38: 323 | AC38: 2.509202522 | AD38: 25
A39: 38 | C39: 0.7 | D39: 0.0535 | E39: 23 | F39: 1.361727836 | G39: 622 | H39: 2.793790385 | I39: 25 | K39: 0.9 | L39: 0.0535 | M39: 23 | N39: 561 | O39: 2.748962861 | P39: 25 | R39: 0.7 | S39: 0.1622 | T39: 19 | U39: 380 | V39: 2.579783597 | W39: 25 | Y39: 0.5 | Z39: 0.11 | AA39: 22 | AB39: 214 | AC39: 2.330413773 | AD39: 25
A40: 39 | C40: 0.7 | D40: 0.0535 | E40: 24 | F40: 1.380211242 | G40: 453 | H40: 2.656098202 | I40: 25 | K40: 1 | L40: 0.0535 | M40: 23 | N40: 738 | O40: 2.868056362 | P40: 25 | R40: 0.7 | S40: 0 | T40: 20 | U40: 144418 | V40: 5.159621326 | W40: 25 | Y40: 0.5 | Z40: 0.1622 | AA40: 10 | AB40: 31147 | AC40: 4.493416223 | AD40: 25
A41: 40 | C41: 0.7 | D41: 0.075 | E41: 20 | F41: 1.301029996 | G41: 916 | H41: 2.961895474 | I41: 25 | K41: 0.5 | L41: 0.0535 | M41: 24 | N41: 753 | O41: 2.876794976 | P41: 25 | R41: 0.7 | S41: 0.01 | T41: 20 | U41: 40536 | V41: 4.607840891 | W41: 25 | Y41: 0.5 | Z41: 0.1622 | AA41: 14 | AB41: 1960 | AC41: 3.292256071 | AD41: 25
A42: 41 | C42: 0.7 | D42: 0.11 | E42: 16 | F42: 1.204119983 | G42: 2070 | H42: 3.315970345 | I42: 25 | K42: 0.7 | L42: 0.0535 | M42: 24 | N42: 453 | O42: 2.656098202 | P42: 25 | R42: 0.7 | S42: 0.025 | T42: 20 | U42: 10317 | V42: 4.013553431 | W42: 25 | Y42: 0.5 | Z42: 0.1622 | AA42: 15 | AB42: 1201 | AC42: 3.079543007 | AD42: 25
A43: 42 | C43: 0.7 | D43: 0.11 | E43: 18 | F43: 1.255272505 | G43: 990 | H43: 2.995635195 | I43: 25 | K43: 1 | L43: 0.0535 | M43: 24 | N43: 654 | O43: 2.815577748 | P43: 25 | R43: 0.7 | S43: 0.0535 | T43: 20 | U43: 1876 | V43: 3.273232834 | W43: 25 | Y43: 0.5 | Z43: 0.1622 | AA43: 16 | AB43: 832 | AC43: 2.920123326 | AD43: 25
A44: 43 | C44: 0.7 | D44: 0.11 | E44: 19 | F44: 1.278753601 | G44: 627 | H44: 2.797267541 | I44: 25 | K44: 0.5 | L44: 0.0535 | M44: 25 | N44: 559 | O44: 2.747411808 | P44: 25 | R44: 0.7 | S44: 0.075 | T44: 20 | U44: 916 | V44: 2.961895474 | W44: 25 | Y44: 0.5 | Z44: 0.1622 | AA44: 17 | AB44: 486 | AC44: 2.686636269 | AD44: 25
A45: 44 | C45: 0.7 | D45: 0.11 | E45: 20 | F45: 1.301029996 | G45: 460 | H45: 2.662757832 | I45: 25 | K45: 0.9 | L45: 0.0535 | M45: 25 | N45: 350 | O45: 2.544068044 | P45: 25 | R45: 0.7 | S45: 0.11 | T45: 20 | U45: 460 | V45: 2.662757832 | W45: 25 | Y45: 0.5 | Z45: 0.1622 | AA45: 18 | AB45: 331 | AC45: 2.519827994 | AD45: 25
A46: 45 | C46: 0.7 | D46: 0.11 | E46: 21 | F46: 1.322219295 | G46: 338 | H46: 2.5289167 | I46: 25 | K46: 1 | L46: 0.0535 | M46: 25 | N46: 476 | O46: 2.677606953 | P46: 25 | R46: 0.7 | S46: 0.12 | T46: 20 | U46: 337 | V46: 2.527629901 | W46: 25 | Y46: 0.5 | Z46: 0.1622 | AA46: 19 | AB46: 219 | AC46: 2.340444115 | AD46: 25
A47: 46 | C47: 0.7 | D47: 0.11 | E47: 22 | F47: 1.342422681 | G47: 261 | H47: 2.416640507 | I47: 25 | K47: 0.7 | L47: 0.075 | M47: 20 | N47: 916 | O47: 2.961895474 | P47: 25 | R47: 0.7 | S47: 0.13 | T47: 20 | U47: 274 | V47: 2.437750563 | W47: 25 | Y47: 0.5 | Z47: 0.1622 | AA47: 20 | AB47: 146 | AC47: 2.164352856 | AD47: 25
A48: 47 | C48: 0.7 | D48: 0.12 | E48: 20 | F48: 1.301029996 | G48: 337 | H48: 2.527629901 | I48: 25 | K48: 0.5 | L48: 0.11 | M48: 15 | N48: 4523 | O48: 3.655426588 | P48: 25 | R48: 0.7 | S48: 0.14 | T48: 20 | U48: 244 | V48: 2.387389826 | W48: 25 | Y48: 0.55 | Z48: 0 | AA48: 14 | AB48: 4618 | AC48: 3.664453929 | AD48: 137.3845577
A49: 48 | C49: 0.7 | D49: 0.13 | E49: 20 | F49: 1.301029996 | G49: 274 | H49: 2.437750563 | I49: 25 | K49: 0.5 | L49: 0.11 | M49: 16 | N49: 2632 | O49: 3.420285885 | P49: 25 | R49: 0.7 | S49: 0.1622 | T49: 20 | U49: 211 | V49: 2.324282455 | W49: 25 | Y49: 0.6 | Z49: 0 | AA49: 13 | AB49: 6600 | AC49: 3.819543936 | AD49: 139.2473394
A50: 49 | C50: 0.7 | D50: 0.14 | E50: 20 | F50: 1.301029996 | G50: 244 | H50: 2.387389826 | I50: 25 | K50: 0.7 | L50: 0.11 | M50: 16 | N50: 2070 | O50: 3.315970345 | P50: 25 | R50: 0.7 | S50: 0.1622 | T50: 20 | U50: 222 | V50: 2.346352974 | W50: 25 | Y50: 0.6 | Z50: 0 | AA50: 15 | AB50: 1569 | AC50: 3.195622944 | AD50: 124.2984113
A51: 50 | C51: 0.7 | D51: 0.1622 | E51: 15 | F51: 1.176091259 | G51: 1268 | H51: 3.103119254 | I51: 25 | K51: 0.9 | L51: 0.11 | M51: 16 | N51: 2208 | O51: 3.343999069 | P51: 25 | R51: 0.7 | S51: 0.2 | T51: 20 | U51: 193 | V51: 2.285557309 | W51: 25 | Y51: 0.7 | Z51: 0 | AA51: 12 | AB51: 3300 | AC51: 3.51851394 | AD51: 135.0517073
A52: 51 | C52: 0.7 | D52: 0.1622 | E52: 16 | F52: 1.204119983 | G52: 892 | H52: 2.950364854 | I52: 25 | K52: 1 | L52: 0.11 | M52: 16 | N52: 2565 | O52: 3.409087369 | P52: 25 | R52: 0.7 | S52: 0.0535 | T52: 21 | U52: 1313 | V52: 3.118264726 | W52: 25 | Y52: 0.7 | Z52: 0 | AA52: 20 | AB52: 144418 | AC52: 5.159621326 | AD52: 25
A53: 52 | C53: 0.7 | D53: 0.1622 | E53: 17 | F53: 1.230448921 | G53: 535 | H53: 2.728353782 | I53: 25 | K53: 0.5 | L53: 0.11 | M53: 17 | N53: 1634 | O53: 3.213252052 | P53: 25 | R53: 0.7 | S53: 0.11 | T53: 21 | U53: 338 | V53: 2.5289167 | W53: 25 | Y53: 0.7 | Z53: 0 | AA53: 25 | AB53: 17391 | AC53: 4.240324555 | AD53: 25
A54: 53 | C54: 0.7 | D54: 0.1622 | E54: 17 | F54: 1.230448921 | G54: 654 | H54: 2.815577748 | I54: 25 | K54: 0.5 | L54: 0.11 | M54: 18 | N54: 983 | O54: 2.992553518 | P54: 25 | R54: 0.7 | S54: 0.0535 | T54: 22 | U54: 959 | V54: 2.981818607 | W54: 25 | Y54: 0.7 | Z54: 0.01 | AA54: 20 | AB54: 40536 | AC54: 4.607840891 | AD54: 25
A55: 54 | C55: 0.7 | D55: 0.1622 | E55: 18 | F55: 1.255272505 | G55: 370 | H55: 2.568201724 | I55: 25 | K55: 0.7 | L55: 0.11 | M55: 18 | N55: 990 | O55: 2.995635195 | P55: 25 | R55: 0.7 | S55: 0.11 | T55: 22 | U55: 261 | V55: 2.416640507 | W55: 25 | Y55: 0.7 | Z55: 0.01 | AA55: 25 | AB55: 5272 | AC55: 3.721975402 | AD55: 25
A56: 55 | C56: 0.7 | D56: 0.1622 | E56: 18 | F56: 1.255272505 | G56: 485 | H56: 2.685741739 | I56: 25 | K56: 0.5 | L56: 0.11 | M56: 19 | N56: 675 | O56: 2.829303773 | P56: 25 | R56: 0.7 | S56: 0.0535 | T56: 23 | U56: 622 | V56: 2.793790385 | W56: 25 | Y56: 0.7 | Z56: 0.025 | AA56: 20 | AB56: 10317 | AC56: 4.013553431 | AD56: 25
A57: 56 | C57: 0.7 | D57: 0.1622 | E57: 19 | F57: 1.278753601 | G57: 273 | H57: 2.436162647 | I57: 25 | K57: 0.7 | L57: 0.11 | M57: 19 | N57: 627 | O57: 2.797267541 | P57: 25 | R57: 0.7 | S57: 0.025 | T57: 24 | U57: 2123 | V57: 3.326949994 | W57: 25 | Y57: 0.7 | Z57: 0.025 | AA57: 24 | AB57: 2123 | AC57: 3.326949994 | AD57: 25
A58: 57 | C58: 0.7 | D58: 0.1622 | E58: 19 | F58: 1.278753601 | G58: 380 | H58: 2.579783597 | I58: 25 | K58: 0.5 | L58: 0.11 | M58: 20 | N58: 440 | O58: 2.643452676 | P58: 25 | R58: 0.7 | S58: 0.0535 | T58: 24 | U58: 453 | V58: 2.656098202 | W58: 25 | Y58: 0.7 | Z58: 0.025 | AA58: 25 | AB58: 1430 | AC58: 3.155336037 | AD58: 25
A59: 58 | C59: 0.7 | D59: 0.1622 | E59: 20 | F59: 1.301029996 | G59: 211 | H59: 2.324282455 | I59: 25 | K59: 0.7 | L59: 0.11 | M59: 20 | N59: 460 | O59: 2.662757832 | P59: 25 | R59: 0.7 | S59: 0 | T59: 25 | U59: 17391 | V59: 4.240324555 | W59: 25 | Y59: 0.7 | Z59: 0.0535 | AA59: 14 | AB59: 29033 | AC59: 4.462891914 | AD59: 25
A60: 59 | C60: 0.7 | D60: 0.1622 | E60: 20 | F60: 1.301029996 | G60: 222 | H60: 2.346352974 | I60: 25 | K60: 0.5 | L60: 0.11 | M60: 21 | N60: 323 | O60: 2.509202522 | P60: 25 | R60: 0.7 | S60: 0.01 | T60: 25 | U60: 5272 | V60: 3.721975402 | W60: 25 | Y60: 0.7 | Z60: 0.0535 | AA60: 16 | AB60: 10803 | AC60: 4.033544376 | AD60: 25
A61: 60 | C61: 0.7 | D61: 0.2 | E61: 20 | F61: 1.301029996 | G61: 193 | H61: 2.285557309 | I61: 25 | K61: 0.7 | L61: 0.11 | M61: 21 | N61: 338 | O61: 2.5289167 | P61: 25 | R61: 0.7 | S61: 0.025 | T61: 25 | U61: 1430 | V61: 3.155336037 | W61: 25 | Y61: 0.7 | Z61: 0.0535 | AA61: 18 | AB61: 4266 | AC61: 3.630020851 | AD61: 25
A62: 61 | C62: 0.8 | D62: 0.0535 | E62: 15 | F62: 1.176091259 | G62: 10943 | H62: 4.039136399 | I62: 25 | K62: 0.9 | L62: 0.11 | M62: 21 | N62: 514 | O62: 2.710963119 | P62: 25 | R62: 0.8 | S62: 0.0535 | T62: 15 | U62: 10943 | V62: 4.039136399 | W62: 25 | Y62: 0.7 | Z62: 0.0535 | AA62: 20 | AB62: 1876 | AC62: 3.273232834 | AD62: 25
A63: 62 | C63: 0.8 | D63: 0.0535 | E63: 19 | F63: 1.278753601 | G63: 2268 | H63: 3.35564305 | I63: 25 | K63: 1 | L63: 0.11 | M63: 21 | N63: 848 | O63: 2.928395852 | P63: 25 | R63: 0.8 | S63: 0.0535 | T63: 19 | U63: 2268 | V63: 3.35564305 | W63: 25 | Y63: 0.7 | Z63: 0.0535 | AA63: 21 | AB63: 1313 | AC63: 3.118264726 | AD63: 25
A64: 63 | C64: 0.8 | D64: 0.0535 | E64: 20 | F64: 1.301029996 | G64: 1534 | H64: 3.18582536 | I64: 25 | K64: 0.5 | L64: 0.11 | M64: 22 | N64: 214 | O64: =LOG(N64) -> 2.330413773 | P64: 25 | R64: 0.8 | S64: 0.0535 | T64: 20 | U64: 1534 | V64: 3.18582536 | W64: 25 | Y64: 0.7 | Z64: 0.0535 | AA64: 22 | AB64: 959 | AC64: =LOG(AB64) -> 2.981818607 | AD64: 25
A65: 64 | C65: 0.8 | D65: 0.0535 | E65: 21 | F65: 1.322219295 | G65: 1075 | H65: 3.031408464 | I65: 25 | K65: 0.7 | L65: 0.11 | M65: 22 | N65: 261 | O65: 2.416640507 | P65: 25 | R65: 0.8 | S65: 0.0535 | T65: 21 | U65: 1075 | V65: 3.031408464 | W65: 25 | Y65: 0.7 | Z65: 0.0535 | AA65: 23 | AB65: 622 | AC65: 2.793790385 | AD65: 25
A66: 65 | C66: 0.8 | D66: 0.0535 | E66: 22 | F66: 1.342422681 | G66: 800 | H66: =LOG(G66) -> 2.903089987 | I66: 25 | K66: 0.7 | L66: 0.12 | M66: 20 | N66: 337 | O66: 2.527629901 | P66: 25 | R66: 0.8 | S66: 0.0535 | T66: 22 | U66: 800 | V66: =LOG(U66) -> 2.903089987 | W66: 25 | Y66: 0.7 | Z66: 0.0535 | AA66: 24 | AB66: 453 | AC66: 2.656098202 | AD66: 25
A67: 66 | C67: 0.8 | D67: 0.0535 | E67: 23 | F67: =LOG(E67) -> 1.361727836 | G67: 615 | H67: 2.788875116 | I67: 25 | K67: 0.7 | L67: 0.13 | M67: 20 | N67: 274 | O67: 2.437750563 | P67: 25 | R67: 0.8 | S67: 0.0535 | T67: 23 | U67: 615 | V67: 2.788875116 | W67: 25 | Y67: 0.7 | Z67: 0.075 | AA67: 20 | AB67: 916 | AC67: 2.961895474 | AD67: 25
A68: =A67+1 -> 67 | C68: 0.9 | D68: 0.0535 | E68: 15 | F68: 1.176091259 | G68: 7273 | H68: 3.861713588 | I68: 25 | K68: 0.7 | L68: 0.14 | M68: 20 | N68: 244 | O68: 2.387389826 | P68: 25 | R68: 0.9 | S68: 0.0535 | T68: 15 | U68: 7273 | V68: 3.861713588 | W68: 25 | Y68: 0.7 | Z68: 0.11 | AA68: 16 | AB68: 2070 | AC68: 3.315970345 | AD68: 25
A69: 68 | C69: 0.9 | D69: 0.0535 | E69: 19 | F69: 1.278753601 | G69: 1854 | H69: 3.26810973 | I69: 25 | K69: 0.5 | L69: 0.1622 | M69: 10 | N69: 31147 | O69: 4.493416223 | P69: 25 | R69: 0.9 | S69: 0.11 | T69: 16 | U69: 2208 | V69: 3.343999069 | W69: 25 | Y69: 0.7 | Z69: 0.11 | AA69: 18 | AB69: 990 | AC69: 2.995635195 | AD69: 25
A70: 69 | C70: 0.9 | D70: 0.0535 | E70: 21 | F70: 1.322219295 | G70: 996 | H70: 2.998259338 | I70: 25 | K70: 0.5 | L70: 0.1622 | M70: 14 | N70: 1960 | O70: 3.292256071 | P70: 25 | R70: 0.9 | S70: 0.0535 | T70: 19 | U70: 1854 | V70: 3.26810973 | W70: 25 | Y70: 0.7 | Z70: 0.11 | AA70: 19 | AB70: 627 | AC70: 2.797267541 | AD70: 25
A71: 70 | C71: 0.9 | D71: 0.0535 | E71: 23 | F71: 1.361727836 | G71: 561 | H71: 2.748962861 | I71: 25 | K71: 0.5 | L71: 0.1622 | M71: 15 | N71: 1201 | O71: 3.079543007 | P71: 25 | R71: 0.9 | S71: 0.0535 | T71: 21 | U71: 996 | V71: 2.998259338 | W71: 25 | Y71: 0.7 | Z71: 0.11 | AA71: 20 | AB71: 460 | AC71: 2.662757832 | AD71: 25
A72: 71 | C72: 0.9 | D72: 0.0535 | E72: 25 | F72: 1.397940009 | G72: 350 | H72: 2.544068044 | I72: 25 | K72: 0.7 | L72: 0.1622 | M72: 15 | N72: 1268 | O72: 3.103119254 | P72: 25 | R72: 0.9 | S72: 0.11 | T72: 21 | U72: 514 | V72: 2.710963119 | W72: 25 | Y72: 0.7 | Z72: 0.11 | AA72: 21 | AB72: 338 | AC72: 2.5289167 | AD72: 25
A73: 72 | C73: 0.9 | D73: 0.11 | E73: 16 | F73: 1.204119983 | G73: 2208 | H73: 3.343999069 | I73: 25 | K73: 1 | L73: 0.1622 | M73: 15 | N73: 3002 | O73: 3.477410688 | P73: 25 | R73: 0.9 | S73: 0.0535 | T73: 23 | U73: 561 | V73: 2.748962861 | W73: 25 | Y73: 0.7 | Z73: 0.11 | AA73: 22 | AB73: 261 | AC73: 2.416640507 | AD73: 25
A74: 73 | C74: 0.9 | D74: 0.11 | E74: 21 | F74: 1.322219295 | G74: 514 | H74: 2.710963119 | I74: 25 | K74: 0.5 | L74: 0.1622 | M74: 16 | N74: 832 | O74: 2.920123326 | P74: 25 | R74: 0.9 | S74: 0.0535 | T74: 25 | U74: 350 | V74: 2.544068044 | W74: 25 | Y74: 0.7 | Z74: 0.12 | AA74: 20 | AB74: 337 | AC74: 2.527629901 | AD74: 25
A75: 74 | C75: 0.91018 | D75: 0 | E75: 22.7235 | F75: 1.356475225 | G75: 3446 | H75: 3.537315273 | I75: 25 | K75: 0.7 | L75: 0.1622 | M75: 16 | N75: 892 | O75: 2.950364854 | P75: 25 | R75: 0.91018 | S75: 0 | T75: 22.7235 | U75: 3446 | V75: 3.537315273 | W75: 25 | Y75: 0.7 | Z75: 0.13 | AA75: 20 | AB75: 274 | AC75: 2.437750563 | AD75: 25
A76: 75 | C76: 1 | D76: 0 | E76: 24 | F76: 1.380211242 | G76: 2039 | H76: 3.309417226 | I76: 25 | K76: 0.5 | L76: 0.1622 | M76: 17 | N76: 486 | O76: 2.686636269 | P76: 25 | R76: 1 | S76: 0.0535 | T76: 15 | U76: 6125 | V76: 3.787106093 | W76: 25 | Y76: 0.7 | Z76: 0.14 | AA76: 20 | AB76: 244 | AC76: 2.387389826 | AD76: 25
A77: 76 | C77: 1 | D77: 0 | E77: 25 | F77: 1.397940009 | G77: 1711 | H77: 3.23325001 | I77: 25 | K77: 0.7 | L77: 0.1622 | M77: 17 | N77: 535 | O77: 2.728353782 | P77: 25 | R77: 1 | S77: 0.1622 | T77: 15 | U77: 3002 | V77: 3.477410688 | W77: 25 | Y77: 0.7 | Z77: 0.1622 | AA77: 15 | AB77: 1268 | AC77: 3.103119254 | AD77: 25
A78: 77 | C78: 1 | D78: 0.0535 | E78: 15 | F78: 1.176091259 | G78: 6125 | H78: 3.787106093 | I78: 25 | K78: 0.7 | L78: 0.1622 | M78: 17 | N78: 654 | O78: 2.815577748 | P78: 25 | R78: 1 | S78: 0.11 | T78: 16 | U78: 2565 | V78: 3.409087369 | W78: 25 | Y78: 0.7 | Z78: 0.1622 | AA78: 16 | AB78: 892 | AC78: 2.950364854 | AD78: 25
A79: 78 | C79: 1 | D79: 0.0535 | E79: 17 | F79: 1.230448921 | G79: 3190 | H79: 3.503790683 | I79: 25 | K79: 1 | L79: 0.1622 | M79: 17 | N79: 1759 | O79: 3.245265839 | P79: 25 | R79: 1 | S79: 0.0535 | T79: 17 | U79: 3190 | V79: 3.503790683 | W79: 25 | Y79: 0.7 | Z79: 0.1622 | AA79: 17 | AB79: 535 | AC79: 2.728353782 | AD79: 25
A80: 79 | C80: 1 | D80: 0.0535 | E80: 19 | F80: 1.278753601 | G80: 1970 | H80: 3.294466226 | I80: 25 | K80: 0.5 | L80: 0.1622 | M80: 18 | N80: 331 | O80: 2.519827994 | P80: 25 | R80: 1 | S80: 0.1622 | T80: 17 | U80: 1759 | V80: 3.245265839 | W80: 25 | Y80: 0.7 | Z80: 0.1622 | AA80: 17 | AB80: 654 | AC80: 2.815577748 | AD80: 25
A81: 80 | C81: 1 | D81: 0.0535 | E81: 21 | F81: 1.322219295 | G81: 1317 | H81: 3.119585775 | I81: 25 | K81: 0.7 | L81: 0.1622 | M81: 18 | N81: 370 | O81: 2.568201724 | P81: 25 | R81: 1 | S81: 0.1622 | T81: 18 | U81: 1324 | V81: 3.121887985 | W81: 25 | Y81: 0.7 | Z81: 0.1622 | AA81: 18 | AB81: 370 | AC81: 2.568201724 | AD81: 25
A82: 81 | C82: 1 | D82: 0.0535 | E82: 22 | F82: 1.342422681 | G82: 1019 | H82: 3.008174184 | I82: 25 | K82: 0.7 | L82: 0.1622 | M82: 18 | N82: 485 | O82: 2.685741739 | P82: 25 | R82: 1 | S82: 0.0535 | T82: 19 | U82: 1970 | V82: 3.294466226 | W82: 25 | Y82: 0.7 | Z82: 0.1622 | AA82: 18 | AB82: 485 | AC82: 2.685741739 | AD82: 25
A83: 82 | C83: 1 | D83: 0.0535 | E83: 23 | F83: 1.361727836 | G83: 738 | H83: 2.868056362 | I83: 25 | K83: 1 | L83: 0.1622 | M83: 18 | N83: 1324 | O83: 3.121887985 | P83: 25 | R83: 1 | S83: 0.1622 | T83: 20 | U83: 851 | V83: 2.92992956 | W83: 25 | Y83: 0.7 | Z83: 0.1622 | AA83: 19 | AB83: 273 | AC83: 2.436162647 | AD83: 25
A84: 83 | C84: 1 | D84: 0.0535 | E84: 24 | F84: 1.380211242 | G84: 654 | H84: 2.815577748 | I84: 25 | K84: 0.5 | L84: 0.1622 | M84: 19 | N84: 219 | O84: 2.340444115 | P84: 25 | R84: 1 | S84: 0.0535 | T84: 21 | U84: 1317 | V84: 3.119585775 | W84: 25 | Y84: 0.7 | Z84: 0.1622 | AA84: 19 | AB84: 380 | AC84: 2.579783597 | AD84: 25
A85: 84 | C85: 1 | D85: 0.0535 | E85: 25 | F85: 1.397940009 | G85: 476 | H85: 2.677606953 | I85: 25 | K85: 0.7 | L85: 0.1622 | M85: 19 | N85: 273 | O85: 2.436162647 | P85: 25 | R85: 1 | S85: 0.11 | T85: 21 | U85: 848 | V85: 2.928395852 | W85: 25 | Y85: 0.7 | Z85: 0.1622 | AA85: 20 | AB85: 211 | AC85: 2.324282455 | AD85: 25
A86: 85 | C86: 1 | D86: 0.11 | E86: 16 | F86: 1.204119983 | G86: 2565 | H86: 3.409087369 | I86: 25 | K86: 0.7 | L86: 0.1622 | M86: 19 | N86: 380 | O86: 2.579783597 | P86: 25 | R86: 1 | S86: 0.0535 | T86: 22 | U86: 1019 | V86: 3.008174184 | W86: 25 | Y86: 0.7 | Z86: 0.1622 | AA86: 20 | AB86: 222 | AC86: 2.346352974 | AD86: 25
A87: 86 | C87: 1 | D87: 0.11 | E87: 21 | F87: 1.322219295 | G87: 848 | H87: 2.928395852 | I87: 25 | K87: 0.5 | L87: 0.1622 | M87: 20 | N87: 146 | O87: 2.164352856 | P87: 25 | R87: 1 | S87: 0.0535 | T87: 23 | U87: 738 | V87: 2.868056362 | W87: 25 | Y87: 0.7 | Z87: 0.2 | AA87: 20 | AB87: 193 | AC87: 2.285557309 | AD87: 25
A88: 87 | C88: 1 | D88: 0.1622 | E88: 15 | F88: 1.176091259 | G88: 3002 | H88: 3.477410688 | I88: 25 | K88: 0.7 | L88: 0.1622 | M88: 20 | N88: 211 | O88: 2.324282455 | P88: 25 | R88: 1 | S88: 0 | T88: 24 | U88: 2039 | V88: 3.309417226 | W88: 25 | Y88: 0.8 | Z88: 0 | AA88: 11 | AB88: 1596 | AC88: 3.203032887 | AD88: 123.3772644
A89: 88 | C89: 1 | D89: 0.1622 | E89: 17 | F89: 1.230448921 | G89: 1759 | H89: 3.245265839 | I89: 25 | K89: 0.7 | L89: 0.1622 | M89: 20 | N89: 222 | O89: 2.346352974 | P89: 25 | R89: 1 | S89: 0.0535 | T89: 24 | U89: 654 | V89: 2.815577748 | W89: 25 | Y89: 0.8 | Z89: 0.0535 | AA89: 15 | AB89: 10943 | AC89: 4.039136399 | AD89: 25
A90: 89 | C90: 1 | D90: 0.1622 | E90: 18 | F90: 1.255272505 | G90: 1324 | H90: 3.121887985 | I90: 25 | K90: 1 | L90: 0.1622 | M90: 20 | N90: 851 | O90: 2.92992956 | P90: 25 | R90: 1 | S90: 0 | T90: 25 | U90: 1711 | V90: 3.23325001 | W90: 25 | Y90: 0.8 | Z90: 0.0535 | AA90: 19 | AB90: 2268 | AC90: 3.35564305 | AD90: 25
A91: 90 | C91: 1 | D91: 0.1622 | E91: 20 | F91: 1.301029996 | G91: 851 | H91: 2.92992956 | I91: 25 | K91: 0.7 | L91: 0.2 | M91: 20 | N91: 193 | O91: 2.285557309 | P91: 25 | R91: 1 | S91: 0.0535 | T91: 25 | U91: 476 | V91: 2.677606953 | W91: 25 | Y91: 0.8 | Z91: 0.0535 | AA91: 20 | AB91: 1534 | AC91: 3.18582536 | AD91: 25
A92: 91 | C92: 0.3 | D92: 0 | E92: 17 | F92: 1.230448921 | G92: 60853 | H92: =LOG(G92) -> 4.784281993 | I92: 105 | K92: 0.3 | L92: 0 | M92: 17 | N92: 60853 | O92: =LOG(N92) -> 4.784281993 | P92: 105 | R92: 0.3 | S92: 0 | T92: 17 | U92: 60853 | V92: =LOG(U92) -> 4.784281993 | W92: 105 | Y92: 0.8 | Z92: 0.0535 | AA92: 21 | AB92: 1075 | AC92: 3.031408464 | AD92: 25
A93: 92 | C93: 0.6 | D93: 0 | E93: 15 | F93: =LOG(E93) -> 1.176091259 | G93: 1569 | H93: 3.195622944 | I93: 125 | K93: 0.8 | L93: 0 | M93: 11 | N93: 1596 | O93: 3.203032887 | P93: 125 | R93: 0.6 | S93: 0 | T93: 15 | U93: 1569 | V93: 3.195622944 | W93: 125 | Y93: 0.8 | Z93: 0.0535 | AA93: 22 | AB93: 800 | AC93: 2.903089987 | AD93: 25
A94: 93 | C94: 0.8 | D94: 0 | E94: 11 | F94: 1.041392685 | G94: 1596 | H94: 3.203032887 | I94: 125 | K94: 0.6 | L94: 0 | M94: 15 | N94: 1569 | O94: 3.195622944 | P94: 125 | R94: 0.8 | S94: 0 | T94: 11 | U94: 1596 | V94: 3.203032887 | W94: 125 | Y94: 0.8 | Z94: 0.0535 | AA94: 23 | AB94: 615 | AC94: 2.788875116 | AD94: 25
A95: 94 | C95: 0.5 | D95: 0 | E95: 15 | F95: 1.176091259 | G95: 2619 | H95: 3.418135498 | I95: 135 | K95: 0.7 | L95: 0 | M95: 12 | N95: 3300 | O95: 3.51851394 | P95: 135 | R95: 0.5 | S95: 0 | T95: 15 | U95: 2619 | V95: 3.418135498 | W95: 135 | Y95: 0.9 | Z95: 0.0535 | AA95: 15 | AB95: 7273 | AC95: 3.861713588 | AD95: 25
A96: 95 | C96: 0.55 | D96: 0 | E96: 14 | F96: 1.146128036 | G96: 4618 | H96: 3.664453929 | I96: 135 | K96: 0.55 | L96: 0 | M96: 14 | N96: 4618 | O96: 3.664453929 | P96: 135 | R96: 0.55 | S96: 0 | T96: 14 | U96: 4618 | V96: 3.664453929 | W96: 135 | Y96: 0.9 | Z96: 0.0535 | AA96: 19 | AB96: 1854 | AC96: =LOG(AB96) -> 3.26810973 | AD96: 25
A97: 96 | C97: 0.7 | D97: 0 | E97: 12 | F97: 1.079181246 | G97: 3300 | H97: 3.51851394 | I97: 135 | K97: 0.5 | L97: 0 | M97: 15 | N97: 2619 | O97: 3.418135498 | P97: 135 | R97: 0.7 | S97: 0 | T97: 12 | U97: 3300 | V97: 3.51851394 | W97: 135 | Y97: 0.9 | Z97: 0.0535 | AA97: 21 | AB97: 996 | AC97: 2.998259338 | AD97: 25
A98: 97 | C98: 0.1 | D98: 0 | E98: 17.5 | F98: 1.243038049 | G98: 52201 | H98: 4.717678823 | I98: 140 | K98: 0.6 | L98: 0 | M98: 13 | N98: 6600 | O98: 3.819543936 | P98: 140 | R98: 0.1 | S98: 0 | T98: 17.5 | U98: 52201 | V98: 4.717678823 | W98: 140 | Y98: 0.9 | Z98: 0.0535 | AA98: 23 | AB98: 561 | AC98: 2.748962861 | AD98: 25
A99: 98 | C99: 0.1 | D99: 0 | E99: 19 | F99: 1.278753601 | G99: 8814 | H99: 3.945173046 | I99: 140 | K99: 0.5 | L99: 0 | M99: 14 | N99: 8580 | O99: 3.933487288 | P99: 140 | R99: 0.1 | S99: 0 | T99: 19 | U99: 8814 | V99: 3.945173046 | W99: 140 | Y99: 0.9 | Z99: 0.0535 | AA99: 25 | AB99: 350 | AC99: 2.544068044 | AD99: 25
A100: 99 | C100: 0.2 | D100: 0 | E100: 17 | F100: 1.230448921 | G100: 30302 | H100: 4.481471294 | I100: 140 | K100: 0.4 | L100: 0 | M100: 15.5 | N100: 7130 | O100: 3.85308953 | P100: 140 | R100: 0.2 | S100: 0 | T100: 17 | U100: 30302 | V100: 4.481471294 | W100: 140 | Y100: 0.9 | Z100: 0.11 | AA100: 16 | AB100: 2208 | AC100: 3.343999069 | AD100: 25
A101: 100 | C101: 0.2 | D101: 0 | E101: 18 | F101: 1.255272505 | G101: 10935 | H101: 4.038818787 | I101: 140 | K101: 0.3 | L101: 0 | M101: 16 | N101: 21600 | O101: 4.334453751 | P101: 140 | R101: 0.2 | S101: 0 | T101: 18 | U101: 10935 | V101: 4.038818787 | W101: 140 | Y101: 0.9 | Z101: 0.11 | AA101: 21 | AB101: 514 | AC101: 2.710963119 | AD101: 25
A102: 101 | C102: 0.2 | D102: 0 | E102: 18.5 | F102: 1.267171728 | G102: 7203 | H102: 3.857513415 | I102: 140 | K102: 0.3 | L102: 0 | M102: 17 | N102: 5825 | O102: 3.76529593 | P102: 140 | R102: 0.2 | S102: 0 | T102: 18.5 | U102: 7203 | V102: 3.857513415 | W102: 140 | Y102: 0.91018 | Z102: 0 | AA102: 22.7235 | AB102: 3446 | AC102: 3.537315273 | AD102: 25
A103: 102 | C103: 0.2 | D103: 0 | E103: 19 | F103: 1.278753601 | G103: 4380 | H103: 3.641474111 | I103: 140 | K103: 0.2 | L103: 0 | M103: 17 | N103: 30302 | O103: 4.481471294 | P103: 140 | R103: 0.2 | S103: 0 | T103: 19 | U103: 4380 | V103: 3.641474111 | W103: 140 | Y103: 1 | Z103: 0 | AA103: 24 | AB103: 2039 | AC103: 3.309417226 | AD103: 25
A104: 103 | C104: 0.3 | D104: 0 | E104: 16 | F104: 1.204119983 | G104: 21600 | H104: 4.334453751 | I104: 140 | K104: 0.1 | L104: 0 | M104: 17.5 | N104: 52201 | O104: 4.717678823 | P104: 140 | R104: 0.3 | S104: 0 | T104: 16 | U104: 21600 | V104: 4.334453751 | W104: 140 | Y104: 1 | Z104: 0 | AA104: 25 | AB104: 1711 | AC104: 3.23325001 | AD104: 25
A105: 104 | C105: 0.3 | D105: 0 | E105: 17 | F105: 1.230448921 | G105: 5825 | H105: 3.76529593 | I105: 140 | K105: 0.2 | L105: 0 | M105: 18 | N105: 10935 | O105: 4.038818787 | P105: 140 | R105: 0.3 | S105: 0 | T105: 17 | U105: 5825 | V105: 3.76529593 | W105: 140 | Y105: 1 | Z105: 0.0535 | AA105: 15 | AB105: 6125 | AC105: 3.787106093 | AD105: 25
A106: 105 | C106: 0.4 | D106: 0 | E106: 15.5 | F106: 1.190331698 | G106: 7130 | H106: 3.85308953 | I106: 140 | K106: 0.2 | L106: 0 | M106: 18.5 | N106: 7203 | O106: 3.857513415 | P106: 140 | R106: 0.4 | S106: 0 | T106: 15.5 | U106: 7130 | V106: 3.85308953 | W106: 140 | Y106: 1 | Z106: 0.0535 | AA106: 17 | AB106: 3190 | AC106: 3.503790683 | AD106: 25
A107: 106 | C107: 0.5 | D107: 0 | E107: 14 | F107: 1.146128036 | G107: 8580 | H107: 3.933487288 | I107: 140 | K107: 0.2 | L107: 0 | M107: 19 | N107: 4380 | O107: 3.641474111 | P107: 140 | R107: 0.5 | S107: 0 | T107: 14 | U107: 8580 | V107: 3.933487288 | W107: 140 | Y107: 1 | Z107: 0.0535 | AA107: 19 | AB107: 1970 | AC107: 3.294466226 | AD107: 25
A108: 107 | C108: 0.6 | D108: 0 | E108: 13 | F108: 1.113943352 | G108: 6600 | H108: 3.819543936 | I108: 140 | K108: 0.1 | L108: 0 | M108: 19 | N108: 8814 | O108: 3.945173046 | P108: 140 | R108: 0.6 | S108: 0 | T108: 13 | U108: 6600 | V108: 3.819543936 | W108: 140 | Y108: 1 | Z108: 0.0535 | AA108: 21 | AB108: 1317 | AC108: 3.119585775 | AD108: 25
A109: 108 | C109: 0 | D109: 0 | E109: 18 | F109: 1.255272505 | G109: 76199 | H109: 4.881949272 | I109: 145 | K109: 0.4 | L109: 0 | M109: 14.5 | N109: 23400 | O109: 4.369215857 | P109: 145 | R109: 0 | S109: 0 | T109: 18 | U109: 76199 | V109: 4.881949272 | W109: 145 | Y109: 1 | Z109: 0.0535 | AA109: 22 | AB109: 1019 | AC109: 3.008174184 | AD109: 25
A110: 109 | C110: 0 | D110: 0 | E110: 18.5 | F110: 1.267171728 | G110: 63004 | H110: 4.799368123 | I110: 145 | K110: 0.4 | L110: 0 | M110: 15 | N110: 13654 | O110: 4.135259899 | P110: 145 | R110: 0 | S110: 0 | T110: 18.5 | U110: 63004 | V110: 4.799368123 | W110: 145 | Y110: 1 | Z110: 0.0535 | AA110: 23 | AB110: 738 | AC110: 2.868056362 | AD110: 25
A111: 110 | C111: 0 | D111: 0 | E111: 19 | F111: 1.278753601 | G111: 44106 | H111: 4.644497673 | I111: 145 | K111: 0.2 | L111: 0 | M111: 16 | N111: 75616 | O111: 4.8786137 | P111: 145 | R111: 0 | S111: 0 | T111: 19 | U111: 44106 | V111: 4.644497673 | W111: 145 | Y111: 1 | Z111: 0.0535 | AA111: 24 | AB111: 654 | AC111: 2.815577748 | AD111: 25
A112: 111 | C112: 0.1 | D112: 0 | E112: 17 | F112: 1.230448921 | G112: 75623 | H112: 4.878653902 | I112: 145 | K112: 0.2 | L112: 0 | M112: 16.5 | N112: 46804 | O112: 4.670282971 | P112: 145 | R112: 0.1 | S112: 0 | T112: 17 | U112: 75623 | V112: 4.878653902 | W112: 145 | Y112: 1 | Z112: 0.0535 | AA112: 25 | AB112: 476 | AC112: 2.677606953 | AD112: 25
A113: 112 | C113: 0.1 | D113: 0 | E113: 18 | F113: 1.255272505 | G113: 38389 | H113: 4.584206799 | I113: 145 | K113: 0.1 | L113: 0 | M113: 17 | N113: 75623 | O113: 4.878653902 | P113: 145 | R113: 0.1 | S113: 0 | T113: 18 | U113: 38389 | V113: 4.584206799 | W113: 145 | Y113: 1 | Z113: 0.11 | AA113: 16 | AB113: 2565 | AC113: 3.409087369 | AD113: 25
A114: 113 | C114: 0.2 | D114: 0 | E114: 16 | F114: 1.204119983 | G114: 75616 | H114: 4.8786137 | I114: 145 | K114: 0.2 | L114: 0 | M114: 17.5 | N114: 15517 | O114: 4.19080776 | P114: 145 | R114: 0.2 | S114: 0 | T114: 16 | U114: 75616 | V114: 4.8786137 | W114: 145 | Y114: 1 | Z114: 0.11 | AA114: 21 | AB114: 848 | AC114: 2.928395852 | AD114: 25
A115: 114 | C115: 0.2 | D115: 0 | E115: 16.5 | F115: 1.217483944 | G115: 46804 | H115: 4.670282971 | I115: 145 | K115: 0.1 | L115: 0 | M115: 18 | N115: 38389 | O115: 4.584206799 | P115: 145 | R115: 0.2 | S115: 0 | T115: 16.5 | U115: 46804 | V115: 4.670282971 | W115: 145 | Y115: 1 | Z115: 0.1622 | AA115: 15 | AB115: 3002 | AC115: 3.477410688 | AD115: 25
A116: 115 | C116: 0.2 | D116: 0 | E116: 17.5 | F116: 1.243038049 | G116: 15517 | H116: 4.19080776 | I116: 145 | K116: 0 | L116: 0 | M116: 18 | N116: 76199 | O116: 4.881949272 | P116: 145 | R116: 0.2 | S116: 0 | T116: 17.5 | U116: 15517 | V116: 4.19080776 | W116: 145 | Y116: 1 | Z116: 0.1622 | AA116: 17 | AB116: 1759 | AC116: 3.245265839 | AD116: 25
A117: 116 | C117: 0.4 | D117: 0 | E117: 14.5 | F117: 1.161368002 | G117: 23400 | H117: 4.369215857 | I117: 145 | K117: 0 | L117: 0 | M117: 18.5 | N117: 63004 | O117: 4.799368123 | P117: 145 | R117: 0.4 | S117: 0 | T117: 14.5 | U117: 23400 | V117: 4.369215857 | W117: 145 | Y117: 1 | Z117: 0.1622 | AA117: 18 | AB117: 1324 | AC117: 3.121887985 | AD117: 25
A118: 117 | C118: 0.4 | D118: 0 | E118: 15 | F118: 1.176091259 | G118: 13654 | H118: 4.135259899 | I118: 145 | K118: 0 | L118: 0 | M118: 19 | N118: 44106 | O118: 4.644497673 | P118: 145 | R118: 0.4 | S118: 0 | T118: 15 | U118: 13654 | V118: 4.135259899 | W118: 145 | Y118: 1 | Z118: 0.1622 | AA118: 20 | AB118: 851 | AC118: 2.92992956 | AD118: 25

Sheet Chart Data
A1: Data Point:
A2: Log(SiO2) | B2: GT | C2: UI | D2: LI | E2: GT25 | F2: UI25 | G2: LI25 | H2: EA | I2: UIEA | J2: LIEA | K2: 25B | L2: 25X1 | M2: 25X2 | N2: 25X3 | O2: 25X4 | P2: 25X5 | Q2: 25X6 | R2: 25X7 | S2: 25X8 | T2: 25X9 | U2: EAB | V2: EAX1 | W2: EAX2 | X2: EAX3 | Y2: 25IntMat | Z2: 25IntMat | AA2: 25IntMat | AB2: 25IntMat | AC2: 25IntMat | AD2: 25IntMat | AE2: 25IntMat | AF2: 25IntMat | AG2: 25IntMat | AH2: 25IntMat | AI2: 25FullMat | AJ2: 25SQRT | AK2: EAIntMat | AL2: EAIntMat | AM2: EAIntMat | AN2: EAIntMat | AO2: EAFullMat | AP2: EASQRT
A3: =LOG(Calculator!F4) -> 1.301029996 | B3: =LOG(EXP(LN(10^E3)+H3*1000*4.184/8.31447*(1/$A$9-1/298.15))) -> 5.101086804 | C3: =LOG(EXP(LN(10^F3)+J3*1000*4.184/8.31447*(1/$A$9-1/298.15))) -> 5.143986845 | D3: =LOG(EXP(LN(10^G3)+I3*1000*4.184/8.31447*(1/$A$9-1/298.15))) -> 5.058186764 | E3: =Equations!$B$4+L3*Equations!$B$5+M3*Equations!$B$6+N3*Equations!$B$7+O3*Equations!$B$8+P3*Equations!$B$9+Q3*Equations!$B$10+R3*Equations!$B$11+S3*Equations!$B$12+T3*Equations!$B$13 -> 5.101086804 | F3: =E3+AJ3*TINV(1-ERF(Calculator!$F$7/SQRT(2)),Equations!$F$16)*Equations!$D$16 -> 5.143986845 | G3: =E3-AJ3*TINV(1-ERF(Calculator!$F$7/SQRT(2)),Equations!$F$16)*Equations!$D$16 -> 5.058186764 | H3: =Equations!$B$33+X3*Equations!$B$30+W3*Equations!$B$31+V3*Equations!$B$32 -> 25.12333878 | I3: =H3+AP3*TINV(1-ERF(Calculator!$F$7/SQRT(2)),Equations!$F$36)*Equations!$D$36 -> 27.14310732 | J3: =H3-AP3*TINV(1-ERF(Calculator!$F$7/SQRT(2)),Equations!$F$36)*Equations!$D$36 -> 23.10357024 | K3: 1 | L3: =$A$5^2*$A$3*$A$7 -> 0 | M3: =$A$5*$A$3*$A$7 -> 0 | N3: =$A$3*$A$7 -> 0 | O3: =$A$5^2*$A$3 -> 0.6375046979 | P3: =$A$3 -> 1.301029996 | Q3: =$A$5^2/($A$7+Equations!$B$3) -> 7.325772778 | R3: =1/($A$7+Equations!$B$3) -> 14.95055669 | S3: =$A$7 -> 0 | T3: =$A$5 -> 0.7 | U3: 1 | V3: =$A$3 -> 1.301029996 | W3: =$A$3*$A$5 -> 0.910720997 | X3: =$A$5^2 -> 0.49 | Y3: =MMULT(K3:T3,Calcs!$A$134:$J$143) -> 0.3682306661 | Z3: 0.9967213896 | AA3: -4.932436921 | AB3: 10.80259186 | AC3: 0.3908469184 | AD3: -1.116206858 | AE3: -0.07361572942 | AF3: 0.09037734148 | AG3: -8.119301811 | AH3: 0.3951381384 | AI3: =MMULT(Y3:AH3,TRANSPOSE(K3:T3)) -> 0.2536749669 | AJ3: =SQRT(IF(Calculator!$F$6="PI",1,0)+AI3) -> 0.5036615599 | AK3: =MMULT(U3:X3,Calcs!$A$152:$D$155) -> -24.96513395 | AL3: 19.67134334 | AM3: 1.531919703 | AN3: 5.283950521 | AO3: =MMULT(AK3:AN3,TRANSPOSE(U3:X3)) -> 4.612160989 | AP3: =SQRT(IF(Calculator!$F$6="PI",1,0)+AO3) -> 2.147594233
A4: Cl/Na | B4: =ROUNDDOWN(10^B3/3600,0) & ":" & ROUNDDOWN(60*(10^B3/3600-ROUNDDOWN(10^B3/3600,0)),0) & ":" & ROUND((60*(10^B3/3600-ROUNDDOWN(10^B3/3600,0))-ROUNDDOWN(60*(10^B3/3600-ROUNDDOWN(10^B3/3600,0)),0))*60,0) -> 35:3:28
A5: =ROUND(IF(Calculator!$C$3='Chart Data'!$A$86,Calculator!$F$3,((Equations!$B$21+Equations!$B$22*$F$86)+SQRT((-Equations!$B$21-Equations!$B$22*$F$86)^2-4*(-Equations!$B$20)*(Calculator!$F$3-Equations!$B$23)))/(2*(-Equations!$B$20))),2) -> 0.7 | B5: =IF($R$88="N/A",0,B3) -> 5.101086804 | D5: pH | E5: 10 | F5: 9.5 | G5: 9 | H5: 8.5 | I5: 8 | J5: 7.5 | K5: 7 | M5: NaCl (m) | N5: 0.1 | O5: 0.2 | P5: 0.3 | Q5: 0.4 | R5: 0.6 | S5: 0.8
A6: NaCl/SiO2 | C6: 2 | D6: Cl/Na | E6: =((Equations!$B$21+Equations!$B$22*10^$A$3)+SQRT((-Equations!$B$21-Equations!$B$22*10^$A$3)^2-4*(-Equations!$B$20)*(E$5-Equations!$B$23)))/(2*(-Equations!$B$20)) -> 0.0970526125 | F6: =((Equations!$B$21+Equations!$B$22*10^$A$3)+SQRT((-Equations!$B$21-Equations!$B$22*10^$A$3)^2-4*(-Equations!$B$20)*(F$5-Equations!$B$23)))/(2*(-Equations!$B$20)) -> 0.260020918 | G6: =((Equations!$B$21+Equations!$B$22*10^$A$3)+SQRT((-Equations!$B$21-Equations!$B$22*10^$A$3)^2-4*(-Equations!$B$20)*(G$5-Equations!$B$23)))/(2*(-Equations!$B$20)) -> 0.4026864412 | H6: =((Equations!$B$21+Equations!$B$22*10^$A$3)+SQRT((-Equations!$B$21-Equations!$B$22*10^$A$3)^2-4*(-Equations!$B$20)*(H$5-Equations!$B$23)))/(2*(-Equations!$B$20)) -> 0.5311539749 | I6: =((Equations!$B$21+Equations!$B$22*10^$A$3)+SQRT((-Equations!$B$21-Equations!$B$22*10^$A$3)^2-4*(-Equations!$B$20)*(I$5-Equations!$B$23)))/(2*(-Equations!$B$20)) -> 0.6489709951 | J6: =((Equations!$B$21+Equations!$B$22*10^$A$3)+SQRT((-Equations!$B$21-Equations!$B$22*10^$A$3)^2-4*(-Equations!$B$20)*(J$5-Equations!$B$23)))/(2*(-Equations!$B$20)) -> 0.7584154321 | K6: =((Equations!$B$21+Equations!$B$22*10^$A$3)+SQRT((-Equations!$B$21-Equations!$B$22*10^$A$3)^2-4*(-Equations!$B$20)*(K$5-Equations!$B$23)))/(2*(-Equations!$B$20)) -> 0.8610531652 | M6: NaCl/SiO2 | N6: =N$5*(1/10^$A$3-1/100)*60.085/10 -> 0.024034 | O6: =O$5*(1/10^$A$3-1/100)*60.085/10 -> 0.048068 | P6: 0.072102 | Q6: 0.096136 | R6: 0.144204 | S6: 0.192272
A7: =IF(Calculator!$C$2='Chart Data'!$H$85,Calculator!$F$2,IF(Calculator!$C$2='Chart Data'!$H$86,Calculator!$F$2*(1/10^$A$3-1/100)*60.085/10,IF(Calculator!$C$2='Chart Data'!$H$87,(Calculator!$F$2/58440)*(1/10^$A$3-1/100)*60.085/10,Calculator!$F$2))) -> 0 | C7: 7 | D7: Cl/Na | E7: =((Equations!$B$21+Equations!$B$22*10^$A$3)+SQRT((-Equations!$B$21-Equations!$B$22*10^$A$3)^2-4*(-Equations!$B$20)*(E$5-Equations!$B$23)))/(2*(-Equations!$B$20)) -> 0.0970526125 | F7: =((Equations!$B$21+Equations!$B$22*10^$A$3)+SQRT((-Equations!$B$21-Equations!$B$22*10^$A$3)^2-4*(-Equations!$B$20)*(F$5-Equations!$B$23)))/(2*(-Equations!$B$20)) -> 0.260020918 | G7: =((Equations!$B$21+Equations!$B$22*10^$A$3)+SQRT((-Equations!$B$21-Equations!$B$22*10^$A$3)^2-4*(-Equations!$B$20)*(G$5-Equations!$B$23)))/(2*(-Equations!$B$20)) -> 0.4026864412 | H7: =((Equations!$B$21+Equations!$B$22*10^$A$3)+SQRT((-Equations!$B$21-Equations!$B$22*10^$A$3)^2-4*(-Equations!$B$20)*(H$5-Equations!$B$23)))/(2*(-Equations!$B$20)) -> 0.5311539749 | I7: =((Equations!$B$21+Equations!$B$22*10^$A$3)+SQRT((-Equations!$B$21-Equations!$B$22*10^$A$3)^2-4*(-Equations!$B$20)*(I$5-Equations!$B$23)))/(2*(-Equations!$B$20)) -> 0.6489709951 | J7: =((Equations!$B$21+Equations!$B$22*10^$A$3)+SQRT((-Equations!$B$21-Equations!$B$22*10^$A$3)^2-4*(-Equations!$B$20)*(J$5-Equations!$B$23)))/(2*(-Equations!$B$20)) -> 0.7584154321 | K7: =((Equations!$B$21+Equations!$B$22*10^$A$3)+SQRT((-Equations!$B$21-Equations!$B$22*10^$A$3)^2-4*(-Equations!$B$20)*(K$5-Equations!$B$23)))/(2*(-Equations!$B$20)) -> 0.8610531652 | M7: NaCl/SiO2 | N7: =N$5*(1/10^$A$3-1/100)*60.085/10 -> 0.024034 | O7: 0.048068 | P7: 0.072102 | Q7: 0.096136 | R7: 0.144204 | S7: 0.192272
A8: T (K) | C8: =IF(Calculator!$C$2='Chart Data'!$H$85,Calculator!$F$2,IF(Calculator!$C$2='Chart Data'!$H$86,Calculator!$F$2*(1/10^$A$3-1/100)*60.085/10,IF(Calculator!$C$2='Chart Data'!$H$87,(Calculator!$F$2/58440)*(1/10^$A$3-1/100)*60.085/10,Calculator!$F$2))) -> 0
A9: =IF(Calculator!C5=B84,Calculator!F5+273.15,IF(Calculator!C5=B85,Calculator!F5,IF(Calculator!C5=B83,(Calculator!F5-32)*5/9+273.15,273.15))) -> 298.15
A11: SiO2: | B11: GT | C11: UI | D11: LI | E11: GT25 | F11: UI25 | G11: LI25 | H11: EA | I11: UIEA | J11: LIEA | K11: 25B | L11: 25X1 | M11: 25X2 | N11: 25X3 | O11: 25X4 | P11: 25X5 | Q11: 25X6 | R11: 25X7 | S11: 25X8 | T11: 25X9 | U11: EAB | V11: EAX1 | W11: EAX2 | X11: EAX3 | Y11: 25IntMat | Z11: 25IntMat | AA11: 25IntMat | AB11: 25IntMat | AC11: 25IntMat | AD11: 25IntMat | AE11: 25IntMat | AF11: 25IntMat | AG11: 25IntMat | AH11: 25IntMat | AI11: 25FullMat | AJ11: 25SQRT | AK11: EAIntMat | AL11: EAIntMat | AM11: EAIntMat | AN11: EAIntMat | AO11: EAFullMat | AP11: EASQRT
A12: 1 | B12: =IF($R$88="N/A",0,LOG(EXP(LN(10^E12)+H12*1000*4.184/8.31447*(1/$A$9-1/298.15)))) -> 7.69233022 | C12: =IF($R$88="N/A",0,LOG(EXP(LN(10^F12)+J12*1000*4.184/8.31447*(1/$A$9-1/298.15)))) -> 7.814317937 | D12: =IF($R$88="N/A",0,LOG(EXP(LN(10^G12)+I12*1000*4.184/8.31447*(1/$A$9-1/298.15)))) -> 7.570342504 | E12: =Equations!$B$4+L12*Equations!$B$5+M12*Equations!$B$6+N12*Equations!$B$7+O12*Equations!$B$8+P12*Equations!$B$9+Q12*Equations!$B$10+R12*Equations!$B$11+S12*Equations!$B$12+T12*Equations!$B$13 -> 7.69233022 | F12: =E12+AJ12*TINV(1-ERF(Calculator!$F$7/SQRT(2)),Equations!$F$16)*Equations!$D$16 -> 7.814317937 | G12: =E12-AJ12*TINV(1-ERF(Calculator!$F$7/SQRT(2)),Equations!$F$16)*Equations!$D$16 -> 7.570342504 | H12: =Equations!$B$33+X12*Equations!$B$30+W12*Equations!$B$31+V12*Equations!$B$32 -> 15.49763998 | I12: =H12+AP12*TINV(1-ERF(Calculator!$F$7/SQRT(2)),Equations!$F$36)*Equations!$D$36 -> 16.44418784 | J12: =H12-AP12*TINV(1-ERF(Calculator!$F$7/SQRT(2)),Equations!$F$36)*Equations!$D$36 -> 14.55109211 | K12: 1 | L12: =$A$5^2*$A12*$A$7 -> 0 | M12: =$A$5*$A12*$A$7 -> 0 | N12: =$A12*$A$7 -> 0 | O12: =$A$5^2*$A12 -> 0.49 | P12: =$A12 -> 1 | Q12: =$A$5^2/($A$7+Equations!$B$3) -> 7.325772778 | R12: =1/($A$7+Equations!$B$3) -> 14.95055669 | S12: =$A$7 -> 0 | T12: =$A$5 -> 0.7 | U12: 1 | V12: =$A12 -> 1 | W12: =$A12*$A$5 -> 0.7 | X12: =$A$5^2 -> 0.49 | Y12: =MMULT(K12:T12,Calcs!$A$134:$J$143) -> 7.241211161 | Z12: -10.47760252 | AA12: 10.84933168 | AB12: 40.03258329 | AC12: 2.522674992 | AD12: -6.28245437 | AE12: -0.1331219635 | AF12: 0.1943537281 | AG12: -49.58644322 | AH12: -2.963152794 | AI12: =MMULT(Y12:AH12,TRANSPOSE(K12:T12)) -> 2.051135755 | AJ12: =SQRT(IF(Calculator!$F$6=$A$84,1,0)+AI12) -> 1.432178674 | AK12: =MMULT(U12:X12,Calcs!$A$152:$D$155) -> 10.25019329 | AL12: -8.05434681 | AM12: -1.047154053 | AN12: -0.9181477014 | AO12: =MMULT(AK12:AN12,TRANSPOSE(U12:X12)) -> 1.012946272 | AP12: =SQRT(IF(Calculator!$F$6=$A$84,1,0)+AO12) -> 1.00645232
A13: =A12+0.05 -> 1.05 | B13: =IF($R$88="N/A",0,LOG(EXP(LN(10^E13)+H13*1000*4.184/8.31447*(1/$A$9-1/298.15)))) -> 7.261934005 | C13: =IF($R$88="N/A",0,LOG(EXP(LN(10^F13)+J13*1000*4.184/8.31447*(1/$A$9-1/298.15)))) -> 7.369023749 | D13: =IF($R$88="N/A",0,LOG(EXP(LN(10^G13)+I13*1000*4.184/8.31447*(1/$A$9-1/298.15)))) -> 7.154844261 | E13: =Equations!$B$4+L13*Equations!$B$5+M13*Equations!$B$6+N13*Equations!$B$7+O13*Equations!$B$8+P13*Equations!$B$9+Q13*Equations!$B$10+R13*Equations!$B$11+S13*Equations!$B$12+T13*Equations!$B$13 -> 7.261934005 | F13: =E13+AJ13*TINV(1-ERF(Calculator!$F$7/SQRT(2)),Equations!$F$16)*Equations!$D$16 -> 7.369023749 | G13: =E13-AJ13*TINV(1-ERF(Calculator!$F$7/SQRT(2)),Equations!$F$16)*Equations!$D$16 -> 7.154844261 | H13: =Equations!$B$33+X13*Equations!$B$30+W13*Equations!$B$31+V13*Equations!$B$32 -> 17.09643394 | I13: =H13+AP13*TINV(1-ERF(Calculator!$F$7/SQRT(2)),Equations!$F$36)*Equations!$D$36 -> 17.67577303 | J13: =H13-AP13*TINV(1-ERF(Calculator!$F$7/SQRT(2)),Equations!$F$36)*Equations!$D$36 -> 16.51709485 | K13: 1 | L13: =$A$5^2*$A13*$A$7 -> 0 | M13: =$A$5*$A13*$A$7 -> 0 | N13: =$A13*$A$7 -> 0 | O13: =$A$5^2*$A13 -> 0.5145 | P13: =$A13 -> 1.05 | Q13: =$A$5^2/($A$7+Equations!$B$3) -> 7.325772778 | R13: =1/($A$7+Equations!$B$3) -> 14.95055669 | S13: =$A$7 -> 0 | T13: =$A$5 -> 0.7 | U13: 1 | V13: =$A13 -> 1.05 | W13: =$A13*$A$5 -> 0.735 | X13: =$A$5^2 -> 0.49 | Y13: =MMULT(K13:T13,Calcs!$A$134:$J$143) -> 6.099633811 | Z13: -8.57175857 | AA13: 8.228036656 | AB13: 35.1775868 | AC13: 2.168586014 | AD13: -5.424359233 | AE13: -0.123238192 | AF13: 0.1770836241 | AG13: -42.69890011 | AH13: -2.405352744 | AI13: =MMULT(Y13:AH13,TRANSPOSE(K13:T13)) -> 1.58073097 | AJ13: =SQRT(IF(Calculator!$F$6=$A$84,1,0)+AI13) -> 1.25727124 | AK13: =MMULT(U13:X13,Calcs!$A$152:$D$155) -> 4.401054047 | AL13: -3.449209357 | AM13: -0.6187791749 | AN13: 0.1119985153 | AO13: =MMULT(AK13:AN13,TRANSPOSE(U13:X13)) -> 0.3794608009 | AP13: =SQRT(IF(Calculator!$F$6=$A$84,1,0)+AO13) -> 0.6160038968
A14: =A13+0.05 -> 1.1 | B14: 6.83153779 | C14: 6.924015328 | D14: 6.739060252 | E14: =Equations!$B$4+L14*Equations!$B$5+M14*Equations!$B$6+N14*Equations!$B$7+O14*Equations!$B$8+P14*Equations!$B$9+Q14*Equations!$B$10+R14*Equations!$B$11+S14*Equations!$B$12+T14*Equations!$B$13 -> 6.83153779 | F14: =E14+AJ14*TINV(1-ERF(Calculator!$F$7/SQRT(2)),Equations!$F$16)*Equations!$D$16 -> 6.924015328 | G14: =E14-AJ14*TINV(1-ERF(Calculator!$F$7/SQRT(2)),Equations!$F$16)*Equations!$D$16 -> 6.739060252 | H14: =Equations!$B$33+X14*Equations!$B$30+W14*Equations!$B$31+V14*Equations!$B$32 -> 18.69522791 | I14: =H14+AP14*TINV(1-ERF(Calculator!$F$7/SQRT(2)),Equations!$F$36)*Equations!$D$36 -> 19.15257116 | J14: =H14-AP14*TINV(1-ERF(Calculator!$F$7/SQRT(2)),Equations!$F$36)*Equations!$D$36 -> 18.23788465 | K14: 1 | L14: 0 | M14: 0 | N14: 0 | O14: 0.539 | P14: 1.1 | Q14: =$A$5^2/($A$7+Equations!$B$3) -> 7.325772778 | R14: =1/($A$7+Equations!$B$3) -> 14.95055669 | S14: 0 | T14: 0.7 | U14: 1 | V14: 1.1 | W14: 0.77 | X14: 0.49 | Y14: =MMULT(K14:T14,Calcs!$A$134:$J$143) -> 4.958056461 | Z14: -6.665914622 | AA14: 5.606741631 | AB14: 30.32259032 | AC14: 1.814497035 | AD14: -4.566264095 | AE14: -0.1133544204 | AF14: 0.1598135201 | AG14: -35.81135701 | AH14: -1.847552694 | AI14: =MMULT(Y14:AH14,TRANSPOSE(K14:T14)) -> 1.178785338 | AJ14: =SQRT(IF(Calculator!$F$6=$A$84,1,0)+AI14) -> 1.085718812 | AK14: =MMULT(U14:X14,Calcs!$A$152:$D$155) -> -1.4480852 | AL14: 1.155928096 | AM14: -0.1904042965 | AN14: 1.142144732 | AO14: =MMULT(AK14:AN14,TRANSPOSE(U14:X14)) -> 0.2364753164 | AP14: =SQRT(IF(Calculator!$F$6=$A$84,1,0)+AO14) -> 0.4862872776
A15: 1.15 | B15: 6.401141575 | C15: 6.479452804 | D15: 6.322830346 | E15: =Equations!$B$4+L15*Equations!$B$5+M15*Equations!$B$6+N15*Equations!$B$7+O15*Equations!$B$8+P15*Equations!$B$9+Q15*Equations!$B$10+R15*Equations!$B$11+S15*Equations!$B$12+T15*Equations!$B$13 -> 6.401141575 | F15: =E15+AJ15*TINV(1-ERF(Calculator!$F$7/SQRT(2)),Equations!$F$16)*Equations!$D$16 -> 6.479452804 | G15: =E15-AJ15*TINV(1-ERF(Calculator!$F$7/SQRT(2)),Equations!$F$16)*Equations!$D$16 -> 6.322830346 | H15: =Equations!$B$33+X15*Equations!$B$30+W15*Equations!$B$31+V15*Equations!$B$32 -> 20.29402187 | I15: =H15+AP15*TINV(1-ERF(Calculator!$F$7/SQRT(2)),Equations!$F$36)*Equations!$D$36 -> 21.0127291 | J15: =H15-AP15*TINV(1-ERF(Calculator!$F$7/SQRT(2)),Equations!$F$36)*Equations!$D$36 -> 19.57531464 | K15: 1 | L15: 0 | M15: 0 | N15: 0 | O15: 0.5635 | P15: 1.15 | Q15: =$A$5^2/($A$7+Equations!$B$3) -> 7.325772778 | R15: =1/($A$7+Equations!$B$3) -> 14.95055669 | S15: 0 | T15: 0.7 | U15: 1 | V15: 1.15 | W15: 0.805 | X15: 0.49 | Y15: =MMULT(K15:T15,Calcs!$A$134:$J$143) -> 3.816479111 | Z15: -4.760070674 | AA15: 2.985446605 | AB15: 25.46759383 | AC15: 1.460408056 | AD15: -3.708168957 | AE15: -0.1034706489 | AF15: 0.1425434161 | AG15: -28.92381391 | AH15: -1.289752644 | AI15: =MMULT(Y15:AH15,TRANSPOSE(K15:T15)) -> 0.8452988602 | AJ15: =SQRT(IF(Calculator!$F$6=$A$84,1,0)+AI15) -> 0.9194013597 | AK15: =MMULT(U15:X15,Calcs!$A$152:$D$155) -> -7.297224447 | AL15: 5.76106555 | AM15: 0.237970582 | AN15: 2.172290949 | AO15: =MMULT(AK15:AN15,TRANSPOSE(U15:X15)) -> 0.5839898187 | AP15: =SQRT(IF(Calculator!$F$6=$A$84,1,0)+AO15) -> 0.7641922655
A16: 1.2 | B16: 5.97074536 | C16: 6.035628899 | D16: 5.90586182 | E16: =Equations!$B$4+L16*Equations!$B$5+M16*Equations!$B$6+N16*Equations!$B$7+O16*Equations!$B$8+P16*Equations!$B$9+Q16*Equations!$B$10+R16*Equations!$B$11+S16*Equations!$B$12+T16*Equations!$B$13 -> 5.97074536 | F16: =E16+AJ16*TINV(1-ERF(Calculator!$F$7/SQRT(2)),Equations!$F$16)*Equations!$D$16 -> 6.035628899 | G16: =E16-AJ16*TINV(1-ERF(Calculator!$F$7/SQRT(2)),Equations!$F$16)*Equations!$D$16 -> 5.90586182 | H16: =Equations!$B$33+X16*Equations!$B$30+W16*Equations!$B$31+V16*Equations!$B$32 -> 21.89281583 | I16: =H16+AP16*TINV(1-ERF(Calculator!$F$7/SQRT(2)),Equations!$F$36)*Equations!$D$36 -> 23.01431726 | J16: =H16-AP16*TINV(1-ERF(Calculator!$F$7/SQRT(2)),Equations!$F$36)*Equations!$D$36 -> 20.77131441 | K16: 1 | L16: 0 | M16: 0 | N16: 0 | O16: 0.588 | P16: 1.2 | Q16: =$A$5^2/($A$7+Equations!$B$3) -> 7.325772778 | R16: =1/($A$7+Equations!$B$3) -> 14.95055669 | S16: 0 | T16: 0.7 | U16: 1 | V16: 1.2 | W16: 0.84 | X16: 0.49 | Y16: =MMULT(K16:T16,Calcs!$A$134:$J$143) -> 2.674901761 | Z16: -2.854226726 | AA16: 0.3641515797 | AB16: 20.61259734 | AC16: 1.106319078 | AD16: -2.850073819 | AE16: -0.09358687734 | AF16: 0.1252733121 | AG16: -22.03627081 | AH16: -0.7319525941 | AI16: =MMULT(Y16:AH16,TRANSPOSE(K16:T16)) -> 0.5802715362 | AJ16: =SQRT(IF(Calculator!$F$6=$A$84,1,0)+AI16) -> 0.761755562 | AK16: =MMULT(U16:X16,Calcs!$A$152:$D$155) -> -13.14636369 | AL16: 10.366203 | AM16: 0.6663454604 | AN16: 3.202437165 | AO16: =MMULT(AK16:AN16,TRANSPOSE(U16:X16)) -> 1.422004308 | AP16: =SQRT(IF(Calculator!$F$6=$A$84,1,0)+AO16) -> 1.192478221
A17: 1.25 | B17: 5.540349144 | C17: 5.593110592 | D17: 5.487587697 | E17: =Equations!$B$4+L17*Equations!$B$5+M17*Equations!$B$6+N17*Equations!$B$7+O17*Equations!$B$8+P17*Equations!$B$9+Q17*Equations!$B$10+R17*Equations!$B$11+S17*Equations!$B$12+T17*Equations!$B$13 -> 5.540349144 | F17: =E17+AJ17*TINV(1-ERF(Calculator!$F$7/SQRT(2)),Equations!$F$16)*Equations!$D$16 -> 5.593110592 | G17: =E17-AJ17*TINV(1-ERF(Calculator!$F$7/SQRT(2)),Equations!$F$16)*Equations!$D$16 -> 5.487587697 | H17: =Equations!$B$33+X17*Equations!$B$30+W17*Equations!$B$31+V17*Equations!$B$32 -> 23.4916098 | I17: =H17+AP17*TINV(1-ERF(Calculator!$F$7/SQRT(2)),Equations!$F$36)*Equations!$D$36 -> 25.05136586 | J17: =H17-AP17*TINV(1-ERF(Calculator!$F$7/SQRT(2)),Equations!$F$36)*Equations!$D$36 -> 21.93185374 | K17: 1 | L17: 0 | M17: 0 | N17: 0 | O17: 0.6125 | P17: 1.25 | Q17: =$A$5^2/($A$7+Equations!$B$3) -> 7.325772778 | R17: =1/($A$7+Equations!$B$3) -> 14.95055669 | S17: 0 | T17: 0.7 | U17: 1 | V17: 1.25 | W17: 0.875 | X17: 0.49 | Y17: =MMULT(K17:T17,Calcs!$A$134:$J$143) -> 1.533324411 | Z17: -0.9483827783 | AA17: -2.257143446 | AB17: 15.75760086 | AC17: 0.7522300992 | AD17: -1.991978681 | AE17: -0.0837031058 | AF17: 0.1080032081 | AG17: -15.1487277 | AH17: -0.1741525442 | AI17: =MMULT(Y17:AH17,TRANSPOSE(K17:T17)) -> 0.383703366 | AJ17: =SQRT(IF(Calculator!$F$6=$A$84,1,0)+AI17) -> 0.6194379436 | AK17: =MMULT(U17:X17,Calcs!$A$152:$D$155) -> -18.99550294 | AL17: 14.97134046 | AM17: 1.094720339 | AN17: 4.232583382 | AO17: =MMULT(AK17:AN17,TRANSPOSE(U17:X17)) -> 2.750518784 | AP17: =SQRT(IF(Calculator!$F$6=$A$84,1,0)+AO17) -> 1.658468807
A18: 1.3 | B18: 5.109952929 | C18: 5.153014962 | D18: 5.066890897 | E18: =Equations!$B$4+L18*Equations!$B$5+M18*Equations!$B$6+N18*Equations!$B$7+O18*Equations!$B$8+P18*Equations!$B$9+Q18*Equations!$B$10+R18*Equations!$B$11+S18*Equations!$B$12+T18*Equations!$B$13 -> 5.109952929 | F18: =E18+AJ18*TINV(1-ERF(Calculator!$F$7/SQRT(2)),Equations!$F$16)*Equations!$D$16 -> 5.153014962 | G18: =E18-AJ18*TINV(1-ERF(Calculator!$F$7/SQRT(2)),Equations!$F$16)*Equations!$D$16 -> 5.066890897 | H18: =Equations!$B$33+X18*Equations!$B$30+W18*Equations!$B$31+V18*Equations!$B$32 -> 25.09040376 | I18: =H18+AP18*TINV(1-ERF(Calculator!$F$7/SQRT(2)),Equations!$F$36)*Equations!$D$36 -> 27.10081681 | J18: =H18-AP18*TINV(1-ERF(Calculator!$F$7/SQRT(2)),Equations!$F$36)*Equations!$D$36 -> 23.07999071 | K18: 1 | L18: 0 | M18: 0 | N18: 0 | O18: 0.637 | P18: 1.3 | Q18: =$A$5^2/($A$7+Equations!$B$3) -> 7.325772778 | R18: =1/($A$7+Equations!$B$3) -> 14.95055669 | S18: 0 | T18: 0.7 | U18: 1 | V18: 1.3 | W18: 0.91 | X18: 0.49 | Y18: =MMULT(K18:T18,Calcs!$A$134:$J$143) -> 0.3917470606 | Z18: 0.9574611696 | AA18: -4.878438471 | AB18: 10.90260437 | AC18: 0.3981411206 | AD18: -1.133883543 | AE18: -0.07381933425 | AF18: 0.09073310413 | AG18: -8.261184601 | AH18: 0.3836475057 | AI18: =MMULT(Y18:AH18,TRANSPOSE(K18:T18)) -> 0.2555943497 | AJ18: =SQRT(IF(Calculator!$F$6=$A$84,1,0)+AI18) -> 0.5055633983 | AK18: =MMULT(U18:X18,Calcs!$A$152:$D$155) -> -24.84464219 | AL18: 19.57647791 | AM18: 1.523095217 | AN18: 5.262729599 | AO18: =MMULT(AK18:AN18,TRANSPOSE(U18:X18)) -> 4.569533247 | AP18: =SQRT(IF(Calculator!$F$6=$A$84,1,0)+AO18) -> 2.137646661
A19: 1.35 | B19: 4.679556714 | C19: 4.71726054 | D19: 4.641852888 | E19: =Equations!$B$4+L19*Equations!$B$5+M19*Equations!$B$6+N19*Equations!$B$7+O19*Equations!$B$8+P19*Equations!$B$9+Q19*Equations!$B$10+R19*Equations!$B$11+S19*Equations!$B$12+T19*Equations!$B$13 -> 4.679556714 | F19: =E19+AJ19*TINV(1-ERF(Calculator!$F$7/SQRT(2)),Equations!$F$16)*Equations!$D$16 -> 4.71726054 | G19: =E19-AJ19*TINV(1-ERF(Calculator!$F$7/SQRT(2)),Equations!$F$16)*Equations!$D$16 -> 4.641852888 | H19: =Equations!$B$33+X19*Equations!$B$30+W19*Equations!$B$31+V19*Equations!$B$32 -> 26.68919773 | I19: =H19+AP19*TINV(1-ERF(Calculator!$F$7/SQRT(2)),Equations!$F$36)*Equations!$D$36 -> 29.15588183 | J19: =H19-AP19*TINV(1-ERF(Calculator!$F$7/SQRT(2)),Equations!$F$36)*Equations!$D$36 -> 24.22251362 | K19: 1 | L19: 0 | M19: 0 | N19: 0 | O19: 0.6615 | P19: 1.35 | Q19: =$A$5^2/($A$7+Equations!$B$3) -> 7.325772778 | R19: =1/($A$7+Equations!$B$3) -> 14.95055669 | S19: 0 | T19: 0.7 | U19: 1 | V19: 1.35 | W19: 0.945 | X19: 0.49 | Y19: =MMULT(K19:T19,Calcs!$A$134:$J$143) -> -0.7498302896 | Z19: 2.863305117 | AA19: -7.499733497 | AB19: 6.047607884 | AC19: 0.04405214202 | AD19: -0.2757884054 | AE19: -0.06393556271 | AF19: 0.07346300013 | AG19: -1.373641499 | AH19: 0.9414475556 | AI19: =MMULT(Y19:AH19,TRANSPOSE(K19:T19)) -> 0.1959444872 | AJ19: =SQRT(IF(Calculator!$F$6=$A$84,1,0)+AI19) -> 0.4426561726 | AK19: =MMULT(U19:X19,Calcs!$A$152:$D$155) -> -30.69378143 | AL19: 24.18161536 | AM19: 1.951470096 | AN19: 6.292875815 | AO19: =MMULT(AK19:AN19,TRANSPOSE(U19:X19)) -> 6.879047696 | AP19: =SQRT(IF(Calculator!$F$6=$A$84,1,0)+AO19) -> 2.622793872
A20: 1.4 | B20: 4.249160499 | C20: 4.287702553 | D20: 4.210618444 | E20: =Equations!$B$4+L20*Equations!$B$5+M20*Equations!$B$6+N20*Equations!$B$7+O20*Equations!$B$8+P20*Equations!$B$9+Q20*Equations!$B$10+R20*Equations!$B$11+S20*Equations!$B$12+T20*Equations!$B$13 -> 4.249160499 | F20: =E20+AJ20*TINV(1-ERF(Calculator!$F$7/SQRT(2)),Equations!$F$16)*Equations!$D$16 -> 4.287702553 | G20: =E20-AJ20*TINV(1-ERF(Calculator!$F$7/SQRT(2)),Equations!$F$16)*Equations!$D$16 -> 4.210618444 | H20: =Equations!$B$33+X20*Equations!$B$30+W20*Equations!$B$31+V20*Equations!$B$32 -> 28.28799169 | I20: =H20+AP20*TINV(1-ERF(Calculator!$F$7/SQRT(2)),Equations!$F$36)*Equations!$D$36 -> 31.21393571 | J20: =H20-AP20*TINV(1-ERF(Calculator!$F$7/SQRT(2)),Equations!$F$36)*Equations!$D$36 -> 25.36204767 | K20: 1 | L20: 0 | M20: 0 | N20: 0 | O20: 0.686 | P20: 1.4 | Q20: =$A$5^2/($A$7+Equations!$B$3) -> 7.325772778 | R20: =1/($A$7+Equations!$B$3) -> 14.95055669 | S20: 0 | T20: 0.7 | U20: 1 | V20: 1.4 | W20: 0.98 | X20: 0.49 | Y20: =MMULT(K20:T20,Calcs!$A$134:$J$143) -> -1.89140764 | Z20: 4.769149065 | AA20: -10.12102852 | AB20: 1.192611397 | AC20: -0.3100368366 | AD20: 0.5823067324 | AE20: -0.05405179117 | AF20: 0.05619289613 | AG20: 5.513901604 | AH20: 1.499247606 | AI20: =MMULT(Y20:AH20,TRANSPOSE(K20:T20)) -> 0.2047537785 | AJ20: =SQRT(IF(Calculator!$F$6=$A$84,1,0)+AI20) -> 0.4524972691 | AK20: =MMULT(U20:X20,Calcs!$A$152:$D$155) -> -36.54292068 | AL20: 28.78675282 | AM20: 2.379844974 | AN20: 7.323022032 | AO20: =MMULT(AK20:AN20,TRANSPOSE(U20:X20)) -> 9.679062133 | AP20: =SQRT(IF(Calculator!$F$6=$A$84,1,0)+AO20) -> 3.111119113
A22: Cl/Na: | B22: GT | C22: UI | D22: LI | E22: GT25 | F22: UI25 | G22: LI25 | H22: EA | I22: UIEA | J22: LIEA | K22: 25B | L22: 25X1 | M22: 25X2 | N22: 25X3 | O22: 25X4 | P22: 25X5 | Q22: 25X6 | R22: 25X7 | S22: 25X8 | T22: 25X9 | U22: EAB | V22: EAX1 | W22: EAX2 | X22: EAX3 | Y22: 25IntMat | Z22: 25IntMat | AA22: 25IntMat | AB22: 25IntMat | AC22: 25IntMat | AD22: 25IntMat | AE22: 25IntMat | AF22: 25IntMat | AG22: 25IntMat | AH22: 25IntMat | AI22: 25FullMat | AJ22: 25SQRT | AK22: EAIntMat | AL22: EAIntMat | AM22: EAIntMat | AN22: EAIntMat | AO22: EAFullMat | AP22: EASQRT
A23: 0 | B23: =IF($R$88="N/A",0,LOG(EXP(LN(10^E23)+H23*1000*4.184/8.31447*(1/$A$9-1/298.15)))) -> 9.457504547 | C23: =IF($R$88="N/A",0,LOG(EXP(LN(10^F23)+J23*1000*4.184/8.31447*(1/$A$9-1/298.15)))) -> 9.77178027 | D23: =IF($R$88="N/A",0,LOG(EXP(LN(10^G23)+I23*1000*4.184/8.31447*(1/$A$9-1/298.15)))) -> 9.143228824 | E23: =Equations!$B$4+L23*Equations!$B$5+M23*Equations!$B$6+N23*Equations!$B$7+O23*Equations!$B$8+P23*Equations!$B$9+Q23*Equations!$B$10+R23*Equations!$B$11+S23*Equations!$B$12+T23*Equations!$B$13 -> 9.457504547 | F23: =E23+AJ23*TINV(1-ERF(Calculator!$F$7/SQRT(2)),Equations!$F$16)*Equations!$D$16 -> 9.77178027 | G23: =E23-AJ23*TINV(1-ERF(Calculator!$F$7/SQRT(2)),Equations!$F$16)*Equations!$D$16 -> 9.143228824 | H23: =Equations!$B$33+X23*Equations!$B$30+W23*Equations!$B$31+V23*Equations!$B$32 -> 25.6884498 | I23: =H23+AP23*TINV(1-ERF(Calculator!$F$7/SQRT(2)),Equations!$F$36)*Equations!$D$36 -> 26.22319296 | J23: =H23-AP23*TINV(1-ERF(Calculator!$F$7/SQRT(2)),Equations!$F$36)*Equations!$D$36 -> 25.15370664 | K23: 1 | L23: =$A23^2*$A$3*$A$7 -> 0 | M23: =$A23*$A$3*$A$7 -> 0 | N23: =$A$3*$A$7 -> 0 | O23: =$A23^2*$A$3 -> 0 | P23: =$A$3 -> 1.301029996 | Q23: =$A23^2/($A$7+Equations!$B$3) -> 0 | R23: =1/($A$7+Equations!$B$3) -> 14.95055669 | S23: =$A$7 -> 0 | T23: =$A23 -> 0 | U23: 1 | V23: =$A$3 -> 1.301029996 | W23: =$A$3*$A23 -> 0 | X23: =$A23^2 -> 0 | Y23: =MMULT(K23:T23,Calcs!$A$134:$J$143) -> 27.69490377 | Z23: -128.4037183 | AA23: 203.4705207 | AB23: -29.94114507 | AC23: 17.12306046 | AD23: -14.05764973 | AE23: -0.2783784003 | AF23: 0.2814919552 | AG23: -55.24885904 | AH23: -31.74776025 | AI23: =MMULT(Y23:AH23,TRANSPOSE(K23:T23)) -> 13.61394123 | AJ23: =SQRT(IF(Calculator!$F$6=$A$84,1,0)+AI23) -> 3.689707472 | AK23: =MMULT(U23:X23,Calcs!$A$152:$D$155) -> -3.958819529 | AL23: 3.291322363 | AM23: -0.6366686858 | AN23: 1.804921927 | AO23: =MMULT(AK23:AN23,TRANSPOSE(U23:X23)) -> 0.3232895904 | AP23: =SQRT(IF(Calculator!$F$6=$A$84,1,0)+AO23) -> 0.5685856052
A24: =A23+0.05 -> 0.05 | B24: =IF($R$88="N/A",0,LOG(EXP(LN(10^E24)+H24*1000*4.184/8.31447*(1/$A$9-1/298.15)))) -> 9.094617073 | C24: =IF($R$88="N/A",0,LOG(EXP(LN(10^F24)+J24*1000*4.184/8.31447*(1/$A$9-1/298.15)))) -> 9.373491485 | D24: =IF($R$88="N/A",0,LOG(EXP(LN(10^G24)+I24*1000*4.184/8.31447*(1/$A$9-1/298.15)))) -> 8.815742661 | E24: =Equations!$B$4+L24*Equations!$B$5+M24*Equations!$B$6+N24*Equations!$B$7+O24*Equations!$B$8+P24*Equations!$B$9+Q24*Equations!$B$10+R24*Equations!$B$11+S24*Equations!$B$12+T24*Equations!$B$13 -> 9.094617073 | F24: =E24+AJ24*TINV(1-ERF(Calculator!$F$7/SQRT(2)),Equations!$F$16)*Equations!$D$16 -> 9.373491485 | G24: =E24-AJ24*TINV(1-ERF(Calculator!$F$7/SQRT(2)),Equations!$F$16)*Equations!$D$16 -> 8.815742661 | H24: =Equations!$B$33+X24*Equations!$B$30+W24*Equations!$B$31+V24*Equations!$B$32 -> 25.12220777 | I24: =H24+AP24*TINV(1-ERF(Calculator!$F$7/SQRT(2)),Equations!$F$36)*Equations!$D$36 -> 25.6106717 | J24: =H24-AP24*TINV(1-ERF(Calculator!$F$7/SQRT(2)),Equations!$F$36)*Equations!$D$36 -> 24.63374383 | K24: 1 | L24: =$A24^2*$A$3*$A$7 -> 0 | M24: =$A24*$A$3*$A$7 -> 0 | N24: =$A$3*$A$7 -> 0 | O24: =$A24^2*$A$3 -> 0.003252574989 | P24: =$A$3 -> 1.301029996 | Q24: =$A24^2/($A$7+Equations!$B$3) -> 0.03737639173 | R24: =1/($A$7+Equations!$B$3) -> 14.95055669 | S24: =$A$7 -> 0 | T24: =$A24 -> 0.05 | U24: 1 | V24: =$A$3 -> 1.301029996 | W24: =$A$3*$A24 -> 0.06505149978 | X24: =$A24^2 -> 0.0025 | Y24: =MMULT(K24:T24,Calcs!$A$134:$J$143) -> 24.36678664 | Z24: -113.2967309 | AA24: 177.9101189 | AB24: -24.21028257 | AC24: 15.3005585 | AD24: -12.62246935 | AE24: -0.28118315 | AF24: 0.2760610967 | AG24: -49.77014212 | AH24: -27.82950889 | AI24: =MMULT(Y24:AH24,TRANSPOSE(K24:T24)) -> 10.71962363 | AJ24: =SQRT(IF(Calculator!$F$6=$A$84,1,0)+AI24) -> 3.274083632 | AK24: =MMULT(U24:X24,Calcs!$A$152:$D$155) -> -4.493729145 | AL24: 3.674100369 | AM24: -0.3137288702 | AN24: 1.51034933 | AO24: =MMULT(AK24:AN24,TRANSPOSE(U24:X24)) -> 0.2697529822 | AP24: =SQRT(IF(Calculator!$F$6=$A$84,1,0)+AO24) -> 0.5193774949
A25: =A24+0.05 -> 0.1 | B25: 8.739685718 | C25: 8.985649077 | D25: 8.493722359 | E25: =Equations!$B$4+L25*Equations!$B$5+M25*Equations!$B$6+N25*Equations!$B$7+O25*Equations!$B$8+P25*Equations!$B$9+Q25*Equations!$B$10+R25*Equations!$B$11+S25*Equations!$B$12+T25*Equations!$B$13 -> 8.739685718 | F25: =E25+AJ25*TINV(1-ERF(Calculator!$F$7/SQRT(2)),Equations!$F$16)*Equations!$D$16 -> 8.985649077 | G25: =E25-AJ25*TINV(1-ERF(Calculator!$F$7/SQRT(2)),Equations!$F$16)*Equations!$D$16 -> 8.493722359 | H25: =Equations!$B$33+X25*Equations!$B$30+W25*Equations!$B$31+V25*Equations!$B$32 -> 24.63686988 | I25: =H25+AP25*TINV(1-ERF(Calculator!$F$7/SQRT(2)),Equations!$F$36)*Equations!$D$36 -> 25.12495475 | J25: =H25-AP25*TINV(1-ERF(Calculator!$F$7/SQRT(2)),Equations!$F$36)*Equations!$D$36 -> 24.14878502 | K25: 1 | L25: 0 | M25: 0 | N25: 0 | O25: 0.01301029996 | P25: 1.301029996 | Q25: =$A25^2/($A$7+Equations!$B$3) -> 0.1495055669 | R25: =1/($A$7+Equations!$B$3) -> 14.95055669 | S25: 0 | T25: 0.1 | U25: 1 | V25: 1.301029996 | W25: 0.1301029996 | X25: 0.01 | Y25: =MMULT(K25:T25,Calcs!$A$134:$J$143) -> 21.25039442 | Z25: -99.09191251 | AA25: 153.9919443 | AB25: -18.91335786 | AC25: 13.57457098 | AD25: -11.26587229 | AE25: -0.2813062605 | AF25: 0.2693655943 | AG25: -44.61639751 | AH25: -24.16084677 | AI25: =MMULT(Y25:AH25,TRANSPOSE(K25:T25)) -> 8.338789946 | AJ25: =SQRT(IF(Calculator!$F$6=$A$84,1,0)+AI25) -> 2.887696304 | AK25: =MMULT(U25:X25,Calcs!$A$152:$D$155) -> -5.177183593 | AL25: 4.177989681 | AM25: -0.01664146143 | AN25: 1.299326678 | AO25: =MMULT(AK25:AN25,TRANSPOSE(U25:X25)) -> 0.2693344667 | AP25: =SQRT(IF(Calculator!$F$6=$A$84,1,0)+AO25) -> 0.5189744374
A26: 0.15 | B26: 8.392710483 | C26: 8.608259067 | D26: 8.177161899 | E26: =Equations!$B$4+L26*Equations!$B$5+M26*Equations!$B$6+N26*Equations!$B$7+O26*Equations!$B$8+P26*Equations!$B$9+Q26*Equations!$B$10+R26*Equations!$B$11+S26*Equations!$B$12+T26*Equations!$B$13 -> 8.392710483 | F26: =E26+AJ26*TINV(1-ERF(Calculator!$F$7/SQRT(2)),Equations!$F$16)*Equations!$D$16 -> 8.608259067 | G26: =E26-AJ26*TINV(1-ERF(Calculator!$F$7/SQRT(2)),Equations!$F$16)*Equations!$D$16 -> 8.177161899 | H26: =Equations!$B$33+X26*Equations!$B$30+W26*Equations!$B$31+V26*Equations!$B$32 -> 24.23243615 | I26: =H26+AP26*TINV(1-ERF(Calculator!$F$7/SQRT(2)),Equations!$F$36)*Equations!$D$36 -> 24.76086799 | J26: =H26-AP26*TINV(1-ERF(Calculator!$F$7/SQRT(2)),Equations!$F$36)*Equations!$D$36 -> 23.7040043 | K26: 1 | L26: 0 | M26: 0 | N26: 0 | O26: 0.0292731749 | P26: 1.301029996 | Q26: =$A26^2/($A$7+Equations!$B$3) -> 0.3363875255 | R26: =1/($A$7+Equations!$B$3) -> 14.95055669 | S26: 0 | T26: 0.15 | U26: 1 | V26: 1.301029996 | W26: 0.1951544993 | X26: 0.0225 | Y26: =MMULT(K26:T26,Calcs!$A$134:$J$143) -> 18.34572711 | Z26: -85.78926319 | AA26: 131.7159967 | AB26: -14.05037092 | AC26: 11.94509789 | AD26: -9.987858551 | AE26: -0.2787477317 | AF26: 0.261405448 | AG26: -39.7876252 | AH26: -20.74177389 | AI26: =MMULT(Y26:AH26,TRANSPOSE(K26:T26)) -> 6.404018109 | AJ26: =SQRT(IF(Calculator!$F$6=$A$84,1,0)+AI26) -> 2.530616152 | AK26: =MMULT(U26:X26,Calcs!$A$152:$D$155) -> -6.009182875 | AL26: 4.802990301 | AM26: 0.2545935404 | AN26: 1.171853971 | AO26: =MMULT(AK26:AN26,TRANSPOSE(U26:X26)) -> 0.3157033644 | AP26: =SQRT(IF(Calculator!$F$6=$A$84,1,0)+AO26) -> 0.5618748654
A27: 0.2 | B27: 8.053691368 | C27: 8.241327985 | D27: 7.866054751 | E27: =Equations!$B$4+L27*Equations!$B$5+M27*Equations!$B$6+N27*Equations!$B$7+O27*Equations!$B$8+P27*Equations!$B$9+Q27*Equations!$B$10+R27*Equations!$B$11+S27*Equations!$B$12+T27*Equations!$B$13 -> 8.053691368 | F27: =E27+AJ27*TINV(1-ERF(Calculator!$F$7/SQRT(2)),Equations!$F$16)*Equations!$D$16 -> 8.241327985 | G27: =E27-AJ27*TINV(1-ERF(Calculator!$F$7/SQRT(2)),Equations!$F$16)*Equations!$D$16 -> 7.866054751 | H27: =Equations!$B$33+X27*Equations!$B$30+W27*Equations!$B$31+V27*Equations!$B$32 -> 23.90890656 | I27: =H27+AP27*TINV(1-ERF(Calculator!$F$7/SQRT(2)),Equations!$F$36)*Equations!$D$36 -> 24.50745033 | J27: =H27-AP27*TINV(1-ERF(Calculator!$F$7/SQRT(2)),Equations!$F$36)*Equations!$D$36 -> 23.31036278 | K27: 1 | L27: 0 | M27: 0 | N27: 0 | O27: 0.05204119983 | P27: 1.301029996 | Q27: =$A27^2/($A$7+Equations!$B$3) -> 0.5980222676 | R27: =1/($A$7+Equations!$B$3) -> 14.95055669 | S27: 0 | T27: 0.2 | U27: 1 | V27: 1.301029996 | W27: 0.2602059991 | X27: 0.04 | Y27: =MMULT(K27:T27,Calcs!$A$134:$J$143) -> 15.65278471 | Z27: -73.38878294 | AA27: 111.0822763 | AB27: -9.621321765 | AC27: 10.41213925 | AD27: -8.788428138 | AE27: -0.2735075639 | AF27: 0.2521806578 | AG27: -35.2838252 | AH27: -17.57229024 | AI27: =MMULT(Y27:AH27,TRANSPOSE(K27:T27)) -> 4.852855863 | AJ27: =SQRT(IF(Calculator!$F$6=$A$84,1,0)+AI27) -> 2.202919849 | AK27: =MMULT(U27:X27,Calcs!$A$152:$D$155) -> -6.989726989 | AL27: 5.549102226 | AM27: 0.4999761353 | AN27: 1.127931207 | AO27: =MMULT(AK27:AN27,TRANSPOSE(U27:X27)) -> 0.4050354941 | AP27: =SQRT(IF(Calculator!$F$6=$A$84,1,0)+AO27) -> 0.6364239893
A28: 0.25 | B28: 7.722628373 | C28: 7.884862348 | D28: 7.560394398 | E28: =Equations!$B$4+L28*Equations!$B$5+M28*Equations!$B$6+N28*Equations!$B$7+O28*Equations!$B$8+P28*Equations!$B$9+Q28*Equations!$B$10+R28*Equations!$B$11+S28*Equations!$B$12+T28*Equations!$B$13 -> 7.722628373 | F28: =E28+AJ28*TINV(1-ERF(Calculator!$F$7/SQRT(2)),Equations!$F$16)*Equations!$D$16 -> 7.884862348 | G28: =E28-AJ28*TINV(1-ERF(Calculator!$F$7/SQRT(2)),Equations!$F$16)*Equations!$D$16 -> 7.560394398 | H28: =Equations!$B$33+X28*Equations!$B$30+W28*Equations!$B$31+V28*Equations!$B$32 -> 23.66628111 | I28: =H28+AP28*TINV(1-ERF(Calculator!$F$7/SQRT(2)),Equations!$F$36)*Equations!$D$36 -> 24.35483369 | J28: =H28-AP28*TINV(1-ERF(Calculator!$F$7/SQRT(2)),Equations!$F$36)*Equations!$D$36 -> 22.97772854 | K28: 1 | L28: 0 | M28: 0 | N28: 0 | O28: 0.08131437473 | P28: 1.301029996 | Q28: =$A28^2/($A$7+Equations!$B$3) -> 0.9344097931 | R28: =1/($A$7+Equations!$B$3) -> 14.95055669 | S28: 0 | T28: 0.25 | U28: 1 | V28: 1.301029996 | W28: 0.3252574989 | X28: 0.0625 | Y28: =MMULT(K28:T28,Calcs!$A$134:$J$143) -> 13.17156722 | Z28: -61.89047174 | AA28: 92.09078298 | AB28: -5.62621039 | AC28: 8.975695041 | AD28: -7.66758105 | AE28: -0.2655857568 | AF28: 0.2416912237 | AG28: -31.1049975 | AH28: -14.65239584 | AI28: =MMULT(Y28:AH28,TRANSPOSE(K28:T28)) -> 3.627820755 | AJ28: =SQRT(IF(Calculator!$F$6=$A$84,1,0)+AI28) -> 1.904683899 | AK28: =MMULT(U28:X28,Calcs!$A$152:$D$155) -> -8.118815937 | AL28: 6.416325459 | AM28: 0.7195063232 | AN28: 1.167558389 | AO28: =MMULT(AK28:AN28,TRANSPOSE(U28:X28)) -> 0.5360131729 | AP28: =SQRT(IF(Calculator!$F$6=$A$84,1,0)+AO28) -> 0.7321292051
A29: 0.3 | B29: 7.399521497 | C29: 7.538867469 | D29: 7.260175525 | E29: =Equations!$B$4+L29*Equations!$B$5+M29*Equations!$B$6+N29*Equations!$B$7+O29*Equations!$B$8+P29*Equations!$B$9+Q29*Equations!$B$10+R29*Equations!$B$11+S29*Equations!$B$12+T29*Equations!$B$13 -> 7.399521497 | F29: =E29+AJ29*TINV(1-ERF(Calculator!$F$7/SQRT(2)),Equations!$F$16)*Equations!$D$16 -> 7.538867469 | G29: =E29-AJ29*TINV(1-ERF(Calculator!$F$7/SQRT(2)),Equations!$F$16)*Equations!$D$16 -> 7.260175525 | H29: =Equations!$B$33+X29*Equations!$B$30+W29*Equations!$B$31+V29*Equations!$B$32 -> 23.50455982 | I29: =H29+AP29*TINV(1-ERF(Calculator!$F$7/SQRT(2)),Equations!$F$36)*Equations!$D$36 -> 24.29692446 | J29: =H29-AP29*TINV(1-ERF(Calculator!$F$7/SQRT(2)),Equations!$F$36)*Equations!$D$36 -> 22.71219518 | K29: 1 | L29: 0 | M29: 0 | N29: 0 | O29: 0.1170926996 | P29: 1.301029996 | Q29: =$A29^2/($A$7+Equations!$B$3) -> 1.345550102 | R29: =1/($A$7+Equations!$B$3) -> 14.95055669 | S29: 0 | T29: 0.3 | U29: 1 | V29: 1.301029996 | W29: 0.3903089987 | X29: 0.09 | Y29: =MMULT(K29:T29,Calcs!$A$134:$J$143) -> 10.90207463 | Z29: -51.2943296 | AA29: 74.74151677 | AB29: -2.065036795 | AC29: 7.635765274 | AD29: -6.625317287 | AE29: -0.2549823105 | AF29: 0.2299371457 | AG29: -27.2511421 | AH29: -11.98209067 | AI29: =MMULT(Y29:AH29,TRANSPOSE(K29:T29)) -> 2.676400138 | AJ29: =SQRT(IF(Calculator!$F$6=$A$84,1,0)+AI29) -> 1.635970702 | AK29: =MMULT(U29:X29,Calcs!$A$152:$D$155) -> -9.396449718 | AL29: 7.404659997 | AM29: 0.9131841042 | AN29: 1.290735514 | AO29: =MMULT(AK29:AN29,TRANSPOSE(U29:X29)) -> 0.7098252162 | AP29: =SQRT(IF(Calculator!$F$6=$A$84,1,0)+AO29) -> 0.8425112558
A30: 0.35 | B30: 7.084370741 | C30: 7.203345061 | D30: 6.965396422 | E30: =Equations!$B$4+L30*Equations!$B$5+M30*Equations!$B$6+N30*Equations!$B$7+O30*Equations!$B$8+P30*Equations!$B$9+Q30*Equations!$B$10+R30*Equations!$B$11+S30*Equations!$B$12+T30*Equations!$B$13 -> 7.084370741 | F30: =E30+AJ30*TINV(1-ERF(Calculator!$F$7/SQRT(2)),Equations!$F$16)*Equations!$D$16 -> 7.203345061 | G30: =E30-AJ30*TINV(1-ERF(Calculator!$F$7/SQRT(2)),Equations!$F$16)*Equations!$D$16 -> 6.965396422 | H30: =Equations!$B$33+X30*Equations!$B$30+W30*Equations!$B$31+V30*Equations!$B$32 -> 23.42374267 | I30: =H30+AP30*TINV(1-ERF(Calculator!$F$7/SQRT(2)),Equations!$F$36)*Equations!$D$36 -> 24.33078974 | J30: =H30-AP30*TINV(1-ERF(Calculator!$F$7/SQRT(2)),Equations!$F$36)*Equations!$D$36 -> 22.51669561 | K30: 1 | L30: 0 | M30: 0 | N30: 0 | O30: 0.1593761745 | P30: 1.301029996 | Q30: =$A30^2/($A$7+Equations!$B$3) -> 1.831443195 | R30: =1/($A$7+Equations!$B$3) -> 14.95055669 | S30: 0 | T30: 0.35 | U30: 1 | V30: 1.301029996 | W30: 0.4553604985 | X30: 0.1225 | Y30: =MMULT(K30:T30,Calcs!$A$134:$J$143) -> 8.844306956 | Z30: -41.60035652 | AA30: 59.03447767 | AB30: 1.062199019 | AC30: 6.392349945 | AD30: -5.661636848 | AE30: -0.241697225 | AF30: 0.2169184238 | AG30: -23.722259 | AH30: -9.561374735 | AI30: =MMULT(Y30:AH30,TRANSPOSE(K30:T30)) -> 1.951051169 | AJ30: =SQRT(IF(Calculator!$F$6=$A$84,1,0)+AI30) -> 1.396800333 | AK30: =MMULT(U30:X30,Calcs!$A$152:$D$155) -> -10.82262833 | AL30: 8.514105843 | AM30: 1.081009478 | AN30: 1.497462585 | AO30: =MMULT(AK30:AN30,TRANSPOSE(U30:X30)) -> 0.9301669379 | AP30: =SQRT(IF(Calculator!$F$6=$A$84,1,0)+AO30) -> 0.9644516255
A31: 0.4 | B31: 6.777176105 | C31: 6.87828872 | D31: 6.676063491 | E31: =Equations!$B$4+L31*Equations!$B$5+M31*Equations!$B$6+N31*Equations!$B$7+O31*Equations!$B$8+P31*Equations!$B$9+Q31*Equations!$B$10+R31*Equations!$B$11+S31*Equations!$B$12+T31*Equations!$B$13 -> 6.777176105 | F31: =E31+AJ31*TINV(1-ERF(Calculator!$F$7/SQRT(2)),Equations!$F$16)*Equations!$D$16 -> 6.87828872 | G31: =E31-AJ31*TINV(1-ERF(Calculator!$F$7/SQRT(2)),Equations!$F$16)*Equations!$D$16 -> 6.676063491 | H31: =Equations!$B$33+X31*Equations!$B$30+W31*Equations!$B$31+V31*Equations!$B$32 -> 23.42382967 | I31: =H31+AP31*TINV(1-ERF(Calculator!$F$7/SQRT(2)),Equations!$F$36)*Equations!$D$36 -> 24.4554634 | J31: =H31-AP31*TINV(1-ERF(Calculator!$F$7/SQRT(2)),Equations!$F$36)*Equations!$D$36 -> 22.39219595 | K31: 1 | L31: 0 | M31: 0 | N31: 0 | O31: 0.2081647993 | P31: 1.301029996 | Q31: =$A31^2/($A$7+Equations!$B$3) -> 2.39208907 | R31: =1/($A$7+Equations!$B$3) -> 14.95055669 | S31: 0 | T31: 0.4 | U31: 1 | V31: 1.301029996 | W31: 0.5204119983 | X31: 0.16 | Y31: =MMULT(K31:T31,Calcs!$A$134:$J$143) -> 6.998264189 | Z31: -32.8085525 | AA31: 44.96966568 | AB31: 3.755497052 | AC31: 5.245449054 | AD31: -4.776539733 | AE31: -0.2257305004 | AF31: 0.202635058 | AG31: -20.51834821 | AH31: -7.390248041 | AI31: =MMULT(Y31:AH31,TRANSPOSE(K31:T31)) -> 1.409200813 | AJ31: =SQRT(IF(Calculator!$F$6=$A$84,1,0)+AI31) -> 1.187097643 | AK31: =MMULT(U31:X31,Calcs!$A$152:$D$155) -> -12.39735178 | AL31: 9.744662994 | AM31: 1.222982445 | AN31: 1.787739599 | AO31: =MMULT(AK31:AN31,TRANSPOSE(U31:X31)) -> 1.20324015 | AP31: =SQRT(IF(Calculator!$F$6=$A$84,1,0)+AO31) -> 1.096923037
A32: 0.45 | B32: 6.477937589 | C32: 6.563676174 | D32: 6.392199004 | E32: =Equations!$B$4+L32*Equations!$B$5+M32*Equations!$B$6+N32*Equations!$B$7+O32*Equations!$B$8+P32*Equations!$B$9+Q32*Equations!$B$10+R32*Equations!$B$11+S32*Equations!$B$12+T32*Equations!$B$13 -> 6.477937589 | F32: =E32+AJ32*TINV(1-ERF(Calculator!$F$7/SQRT(2)),Equations!$F$16)*Equations!$D$16 -> 6.563676174 | G32: =E32-AJ32*TINV(1-ERF(Calculator!$F$7/SQRT(2)),Equations!$F$16)*Equations!$D$16 -> 6.392199004 | H32: =Equations!$B$33+X32*Equations!$B$30+W32*Equations!$B$31+V32*Equations!$B$32 -> 23.50482082 | I32: =H32+AP32*TINV(1-ERF(Calculator!$F$7/SQRT(2)),Equations!$F$36)*Equations!$D$36 -> 24.67107359 | J32: =H32-AP32*TINV(1-ERF(Calculator!$F$7/SQRT(2)),Equations!$F$36)*Equations!$D$36 -> 22.33856805 | K32: 1 | L32: 0 | M32: 0 | N32: 0 | O32: 0.2634585741 | P32: 1.301029996 | Q32: =$A32^2/($A$7+Equations!$B$3) -> 3.02748773 | R32: =1/($A$7+Equations!$B$3) -> 14.95055669 | S32: 0 | T32: 0.45 | U32: 1 | V32: 1.301029996 | W32: 0.585463498 | X32: 0.2025 | Y32: =MMULT(K32:T32,Calcs!$A$134:$J$143) -> 5.36394633 | Z32: -24.91891754 | AA32: 32.5470808 | AB32: 6.014857305 | AC32: 4.195062602 | AD32: -3.970025943 | AE32: -0.2070821365 | AF32: 0.1870870484 | AG32: -17.63940972 | AH32: -5.468710584 | AI32: =MMULT(Y32:AH32,TRANSPOSE(K32:T32)) -> 1.013245839 | AJ32: =SQRT(IF(Calculator!$F$6=$A$84,1,0)+AI32) -> 1.006601132 | AK32: =MMULT(U32:X32,Calcs!$A$152:$D$155) -> -14.12062006 | AL32: 11.09633145 | AM32: 1.339103006 | AN32: 2.161566559 | AO32: =MMULT(AK32:AN32,TRANSPOSE(U32:X32)) -> 1.537753163 | AP32: =SQRT(IF(Calculator!$F$6=$A$84,1,0)+AO32) -> 1.240061758
A33: 0.5 | B33: 6.186655193 | C33: 6.259457427 | D33: 6.113852958 | E33: =Equations!$B$4+L33*Equations!$B$5+M33*Equations!$B$6+N33*Equations!$B$7+O33*Equations!$B$8+P33*Equations!$B$9+Q33*Equations!$B$10+R33*Equations!$B$11+S33*Equations!$B$12+T33*Equations!$B$13 -> 6.186655193 | F33: =E33+AJ33*TINV(1-ERF(Calculator!$F$7/SQRT(2)),Equations!$F$16)*Equations!$D$16 -> 6.259457427 | G33: =E33-AJ33*TINV(1-ERF(Calculator!$F$7/SQRT(2)),Equations!$F$16)*Equations!$D$16 -> 6.113852958 | H33: =Equations!$B$33+X33*Equations!$B$30+W33*Equations!$B$31+V33*Equations!$B$32 -> 23.66671612 | I33: =H33+AP33*TINV(1-ERF(Calculator!$F$7/SQRT(2)),Equations!$F$36)*Equations!$D$36 -> 24.97831287 | J33: =H33-AP33*TINV(1-ERF(Calculator!$F$7/SQRT(2)),Equations!$F$36)*Equations!$D$36 -> 22.35511936 | K33: 1 | L33: 0 | M33: 0 | N33: 0 | O33: 0.3252574989 | P33: 1.301029996 | Q33: =$A33^2/($A$7+Equations!$B$3) -> 3.737639173 | R33: =1/($A$7+Equations!$B$3) -> 14.95055669 | S33: 0 | T33: 0.5 | U33: 1 | V33: 1.301029996 | W33: 0.6505149978 | X33: 0.25 | Y33: =MMULT(K33:T33,Calcs!$A$134:$J$143) -> 3.94135338 | Z33: -17.93145164 | AA33: 21.76672303 | AB33: 7.840279778 | AC33: 3.241190588 | AD33: -3.242095477 | AE33: -0.1857521335 | AF33: 0.1702743948 | AG33: -15.08544353 | AH33: -3.796762364 | AI33: =MMULT(Y33:AH33,TRANSPOSE(K33:T33)) -> 0.7305528192 | AJ33: =SQRT(IF(Calculator!$F$6=$A$84,1,0)+AI33) -> 0.8547238263 | AK33: =MMULT(U33:X33,Calcs!$A$152:$D$155) -> -15.99243317 | AL33: 12.56911122 | AM33: 1.429371159 | AN33: 2.618943462 | AO33: =MMULT(AK33:AN33,TRANSPOSE(U33:X33)) -> 1.944920785 | AP33: =SQRT(IF(Calculator!$F$6=$A$84,1,0)+AO33) -> 1.394604168
A34: 0.55 | B34: 5.903328916 | C34: 5.965540186 | D34: 5.841117646 | E34: =Equations!$B$4+L34*Equations!$B$5+M34*Equations!$B$6+N34*Equations!$B$7+O34*Equations!$B$8+P34*Equations!$B$9+Q34*Equations!$B$10+R34*Equations!$B$11+S34*Equations!$B$12+T34*Equations!$B$13 -> 5.903328916 | F34: =E34+AJ34*TINV(1-ERF(Calculator!$F$7/SQRT(2)),Equations!$F$16)*Equations!$D$16 -> 5.965540186 | G34: =E34-AJ34*TINV(1-ERF(Calculator!$F$7/SQRT(2)),Equations!$F$16)*Equations!$D$16 -> 5.841117646 | H34: =Equations!$B$33+X34*Equations!$B$30+W34*Equations!$B$31+V34*Equations!$B$32 -> 23.90951556 | I34: =H34+AP34*TINV(1-ERF(Calculator!$F$7/SQRT(2)),Equations!$F$36)*Equations!$D$36 -> 25.37812927 | J34: =H34-AP34*TINV(1-ERF(Calculator!$F$7/SQRT(2)),Equations!$F$36)*Equations!$D$36 -> 22.44090185 | K34: 1 | L34: 0 | M34: 0 | N34: 0 | O34: 0.3935615737 | P34: 1.301029996 | Q34: =$A34^2/($A$7+Equations!$B$3) -> 4.522543399 | R34: =1/($A$7+Equations!$B$3) -> 14.95055669 | S34: 0 | T34: 0.55 | U34: 1 | V34: 1.301029996 | W34: 0.7155664976 | X34: 0.3025 | Y34: =MMULT(K34:T34,Calcs!$A$134:$J$143) -> 2.730485339 | Z34: -11.84615479 | AA34: 12.62859238 | AB34: 9.23176447 | AC34: 2.383833013 | AD34: -2.592748336 | AE34: -0.1617404913 | AF34: 0.1521970973 | AG34: -12.85644965 | AH34: -2.374403382 | AI34: =MMULT(Y34:AH34,TRANSPOSE(K34:T34)) -> 0.5334581348 | AJ34: =SQRT(IF(Calculator!$F$6=$A$84,1,0)+AI34) -> 0.7303821841 | AK34: =MMULT(U34:X34,Calcs!$A$152:$D$155) -> -18.01279111 | AL34: 14.16300229 | AM34: 1.493786905 | AN34: 3.15987031 | AO34: =MMULT(AK34:AN34,TRANSPOSE(U34:X34)) -> 2.438464325 | AP34: =SQRT(IF(Calculator!$F$6=$A$84,1,0)+AO34) -> 1.5615583
A35: 0.6 | B35: 5.627958759 | C35: 5.681779681 | D35: 5.574137837 | E35: =Equations!$B$4+L35*Equations!$B$5+M35*Equations!$B$6+N35*Equations!$B$7+O35*Equations!$B$8+P35*Equations!$B$9+Q35*Equations!$B$10+R35*Equations!$B$11+S35*Equations!$B$12+T35*Equations!$B$13 -> 5.627958759 | F35: =E35+AJ35*TINV(1-ERF(Calculator!$F$7/SQRT(2)),Equations!$F$16)*Equations!$D$16 -> 5.681779681 | G35: =E35-AJ35*TINV(1-ERF(Calculator!$F$7/SQRT(2)),Equations!$F$16)*Equations!$D$16 -> 5.574137837 | H35: =Equations!$B$33+X35*Equations!$B$30+W35*Equations!$B$31+V35*Equations!$B$32 -> 24.23321915 | I35: =H35+AP35*TINV(1-ERF(Calculator!$F$7/SQRT(2)),Equations!$F$36)*Equations!$D$36 -> 25.87154744 | J35: =H35-AP35*TINV(1-ERF(Calculator!$F$7/SQRT(2)),Equations!$F$36)*Equations!$D$36 -> 22.59489086 | K35: 1 | L35: 0 | M35: 0 | N35: 0 | O35: 0.4683707984 | P35: 1.301029996 | Q35: =$A35^2/($A$7+Equations!$B$3) -> 5.382200408 | R35: =1/($A$7+Equations!$B$3) -> 14.95055669 | S35: 0 | T35: 0.6 | U35: 1 | V35: 1.301029996 | W35: 0.7806179974 | X35: 0.36 | Y35: =MMULT(K35:T35,Calcs!$A$134:$J$143) -> 1.731342206 | Z35: -6.663027006 | AA35: 5.132688834 | AB35: 10.18931138 | AC35: 1.622989876 | AD35: -2.021984519 | AE35: -0.1350472098 | AF35: 0.1328551559 | AG35: -10.95242807 | AH35: -1.201633638 | AI35: =MMULT(Y35:AH35,TRANSPOSE(K35:T35)) -> 0.3992679702 | AJ35: =SQRT(IF(Calculator!$F$6=$A$84,1,0)+AI35) -> 0.6318765467 | AK35: =MMULT(U35:X35,Calcs!$A$152:$D$155) -> -20.18169389 | AL35: 15.87800467 | AM35: 1.532350245 | AN35: 3.784347103 | AO35: =MMULT(AK35:AN35,TRANSPOSE(U35:X35)) -> 3.034611586 | AP35: =SQRT(IF(Calculator!$F$6=$A$84,1,0)+AO35) -> 1.742013658
A36: 0.65 | B36: 5.360544722 | C36: 5.407988647 | D36: 5.313100796 | E36: =Equations!$B$4+L36*Equations!$B$5+M36*Equations!$B$6+N36*Equations!$B$7+O36*Equations!$B$8+P36*Equations!$B$9+Q36*Equations!$B$10+R36*Equations!$B$11+S36*Equations!$B$12+T36*Equations!$B$13 -> 5.360544722 | F36: =E36+AJ36*TINV(1-ERF(Calculator!$F$7/SQRT(2)),Equations!$F$16)*Equations!$D$16 -> 5.407988647 | G36: =E36-AJ36*TINV(1-ERF(Calculator!$F$7/SQRT(2)),Equations!$F$16)*Equations!$D$16 -> 5.313100796 | H36: =Equations!$B$33+X36*Equations!$B$30+W36*Equations!$B$31+V36*Equations!$B$32 -> 24.63782689 | I36: =H36+AP36*TINV(1-ERF(Calculator!$F$7/SQRT(2)),Equations!$F$36)*Equations!$D$36 -> 26.4595669 | J36: =H36-AP36*TINV(1-ERF(Calculator!$F$7/SQRT(2)),Equations!$F$36)*Equations!$D$36 -> 22.81608689 | K36: 1 | L36: 0 | M36: 0 | N36: 0 | O36: 0.5496851732 | P36: 1.301029996 | Q36: =$A36^2/($A$7+Equations!$B$3) -> 6.316610202 | R36: =1/($A$7+Equations!$B$3) -> 14.95055669 | S36: 0 | T36: 0.65 | U36: 1 | V36: 1.301029996 | W36: 0.8456694972 | X36: 0.4225 | Y36: =MMULT(K36:T36,Calcs!$A$134:$J$143) -> 0.9439239818 | Z36: -2.382068279 | AA36: -0.720987599 | AB36: 10.71292051 | AC36: 0.9586611781 | AD36: -1.529804026 | AE36: -0.1056722892 | AF36: 0.1122485707 | AG36: -9.373378787 | AH36: -0.2784531309 | AI36: =MMULT(Y36:AH36,TRANSPOSE(K36:T36)) -> 0.3102583158 | AJ36: =SQRT(IF(Calculator!$F$6=$A$84,1,0)+AI36) -> 0.5570083624 | AK36: =MMULT(U36:X36,Calcs!$A$152:$D$155) -> -22.4991415 | AL36: 17.71411835 | AM36: 1.545061177 | AN36: 4.49237384 | AO36: =MMULT(AK36:AN36,TRANSPOSE(U36:X36)) -> 3.752096873 | AP36: =SQRT(IF(Calculator!$F$6=$A$84,1,0)+AO36) -> 1.937033008
A37: 0.7 | B37: 5.101086804 | C37: 5.143986845 | D37: 5.058186764 | E37: =Equations!$B$4+L37*Equations!$B$5+M37*Equations!$B$6+N37*Equations!$B$7+O37*Equations!$B$8+P37*Equations!$B$9+Q37*Equations!$B$10+R37*Equations!$B$11+S37*Equations!$B$12+T37*Equations!$B$13 -> 5.101086804 | F37: =E37+AJ37*TINV(1-ERF(Calculator!$F$7/SQRT(2)),Equations!$F$16)*Equations!$D$16 -> 5.143986845 | G37: =E37-AJ37*TINV(1-ERF(Calculator!$F$7/SQRT(2)),Equations!$F$16)*Equations!$D$16 -> 5.058186764 | H37: =Equations!$B$33+X37*Equations!$B$30+W37*Equations!$B$31+V37*Equations!$B$32 -> 25.12333878 | I37: =H37+AP37*TINV(1-ERF(Calculator!$F$7/SQRT(2)),Equations!$F$36)*Equations!$D$36 -> 27.14310732 | J37: =H37-AP37*TINV(1-ERF(Calculator!$F$7/SQRT(2)),Equations!$F$36)*Equations!$D$36 -> 23.10357024 | K37: 1 | L37: 0 | M37: 0 | N37: 0 | O37: 0.6375046979 | P37: 1.301029996 | Q37: =$A37^2/($A$7+Equations!$B$3) -> 7.325772778 | R37: =1/($A$7+Equations!$B$3) -> 14.95055669 | S37: 0 | T37: 0.7 | U37: 1 | V37: 1.301029996 | W37: 0.910720997 | X37: 0.49 | Y37: =MMULT(K37:T37,Calcs!$A$134:$J$143) -> 0.3682306661 | Z37: 0.9967213896 | AA37: -4.932436921 | AB37: 10.80259186 | AC37: 0.3908469184 | AD37: -1.116206858 | AE37: -0.07361572942 | AF37: 0.09037734148 | AG37: -8.119301811 | AH37: 0.3951381384 | AI37: =MMULT(Y37:AH37,TRANSPOSE(K37:T37)) -> 0.2536749669 | AJ37: =SQRT(IF(Calculator!$F$6=$A$84,1,0)+AI37) -> 0.5036615599 | AK37: =MMULT(U37:X37,Calcs!$A$152:$D$155) -> -24.96513395 | AL37: 19.67134334 | AM37: 1.531919703 | AN37: 5.283950521 | AO37: =MMULT(AK37:AN37,TRANSPOSE(U37:X37)) -> 4.612160989 | AP37: =SQRT(IF(Calculator!$F$6=$A$84,1,0)+AO37) -> 2.147594233
A38: 0.75 | B38: 4.849585007 | C38: 4.889693337 | D38: 4.809476677 | E38: =Equations!$B$4+L38*Equations!$B$5+M38*Equations!$B$6+N38*Equations!$B$7+O38*Equations!$B$8+P38*Equations!$B$9+Q38*Equations!$B$10+R38*Equations!$B$11+S38*Equations!$B$12+T38*Equations!$B$13 -> 4.849585007 | F38: =E38+AJ38*TINV(1-ERF(Calculator!$F$7/SQRT(2)),Equations!$F$16)*Equations!$D$16 -> 4.889693337 | G38: =E38-AJ38*TINV(1-ERF(Calculator!$F$7/SQRT(2)),Equations!$F$16)*Equations!$D$16 -> 4.809476677 | H38: =Equations!$B$33+X38*Equations!$B$30+W38*Equations!$B$31+V38*Equations!$B$32 -> 25.68975481 | I38: =H38+AP38*TINV(1-ERF(Calculator!$F$7/SQRT(2)),Equations!$F$36)*Equations!$D$36 -> 27.9229832 | J38: =H38-AP38*TINV(1-ERF(Calculator!$F$7/SQRT(2)),Equations!$F$36)*Equations!$D$36 -> 23.45652642 | K38: 1 | L38: 0 | M38: 0 | N38: 0 | O38: 0.7318293726 | P38: 1.301029996 | Q38: =$A38^2/($A$7+Equations!$B$3) -> 8.409688138 | R38: =1/($A$7+Equations!$B$3) -> 14.95055669 | S38: 0 | T38: 0.75 | U38: 1 | V38: 1.301029996 | W38: 0.9757724967 | X38: 0.5625 | Y38: =MMULT(K38:T38,Calcs!$A$134:$J$143) -> 0.004262259115 | Z38: 3.473342 | AA38: -7.501659133 | AB38: 10.45832543 | AC38: -0.08045290286 | AD38: -0.7811930141 | AE38: -0.03887753043 | AF38: 0.06724146842 | AG38: -7.190197138 | AH38: 0.8191401702 | AI38: =MMULT(Y38:AH38,TRANSPOSE(K38:T38)) -> 0.2217335246 | AJ38: =SQRT(IF(Calculator!$F$6=$A$84,1,0)+AI38) -> 0.4708858934 | AK38: =MMULT(U38:X38,Calcs!$A$152:$D$155) -> -27.57967123 | AL38: 21.74967964 | AM38: 1.492925821 | AN38: 6.159077147 | AO38: =MMULT(AK38:AN38,TRANSPOSE(U38:X38)) -> 5.638551233 | AP38: =SQRT(IF(Calculator!$F$6=$A$84,1,0)+AO38) -> 2.374563377
A39: 0.8 | B39: 4.606039329 | C39: 4.645222234 | D39: 4.566856424 | E39: =Equations!$B$4+L39*Equations!$B$5+M39*Equations!$B$6+N39*Equations!$B$7+O39*Equations!$B$8+P39*Equations!$B$9+Q39*Equations!$B$10+R39*Equations!$B$11+S39*Equations!$B$12+T39*Equations!$B$13 -> 4.606039329 | F39: =E39+AJ39*TINV(1-ERF(Calculator!$F$7/SQRT(2)),Equations!$F$16)*Equations!$D$16 -> 4.645222234 | G39: =E39-AJ39*TINV(1-ERF(Calculator!$F$7/SQRT(2)),Equations!$F$16)*Equations!$D$16 -> 4.566856424 | H39: =Equations!$B$33+X39*Equations!$B$30+W39*Equations!$B$31+V39*Equations!$B$32 -> 26.33707499 | I39: =H39+AP39*TINV(1-ERF(Calculator!$F$7/SQRT(2)),Equations!$F$36)*Equations!$D$36 -> 28.79989663 | J39: =H39-AP39*TINV(1-ERF(Calculator!$F$7/SQRT(2)),Equations!$F$36)*Equations!$D$36 -> 23.87425336 | K39: 1 | L39: 0 | M39: 0 | N39: 0 | O39: 0.8326591972 | P39: 1.301029996 | Q39: =$A39^2/($A$7+Equations!$B$3) -> 9.568356282 | R39: =1/($A$7+Equations!$B$3) -> 14.95055669 | S39: 0 | T39: 0.8 | U39: 1 | V39: 1.301029996 | W39: 1.040823997 | X39: 0.64 | Y39: =MMULT(K39:T39,Calcs!$A$134:$J$143) -> -0.1479812393 | Z39: 5.047793551 | AA39: -8.428654233 | AB39: 9.680121224 | AC39: -0.4552382856 | AD39: -0.5247624947 | AE39: -0.001457692242 | AF39: 0.04284095145 | AG39: -6.586064768 | AH39: 0.9935529644 | AI39: =MMULT(Y39:AH39,TRANSPOSE(K39:T39)) -> 0.2116193952 | AJ39: =SQRT(IF(Calculator!$F$6=$A$84,1,0)+AI39) -> 0.4600210812 | AK39: =MMULT(U39:X39,Calcs!$A$152:$D$155) -> -30.34275334 | AL39: 23.94912724 | AM39: 1.428079533 | AN39: 7.117753718 | AO39: =MMULT(AK39:AN39,TRANSPOSE(U39:X39)) -> 6.857521404 | AP39: =SQRT(IF(Calculator!$F$6=$A$84,1,0)+AO39) -> 2.618686962
A40: 0.85 | B40: 4.370449771 | C40: 4.410896222 | D40: 4.330003321 | E40: =Equations!$B$4+L40*Equations!$B$5+M40*Equations!$B$6+N40*Equations!$B$7+O40*Equations!$B$8+P40*Equations!$B$9+Q40*Equations!$B$10+R40*Equations!$B$11+S40*Equations!$B$12+T40*Equations!$B$13 -> 4.370449771 | F40: =E40+AJ40*TINV(1-ERF(Calculator!$F$7/SQRT(2)),Equations!$F$16)*Equations!$D$16 -> 4.410896222 | G40: =E40-AJ40*TINV(1-ERF(Calculator!$F$7/SQRT(2)),Equations!$F$16)*Equations!$D$16 -> 4.330003321 | H40: =Equations!$B$33+X40*Equations!$B$30+W40*Equations!$B$31+V40*Equations!$B$32 -> 27.06529932 | I40: =H40+AP40*TINV(1-ERF(Calculator!$F$7/SQRT(2)),Equations!$F$36)*Equations!$D$36 -> 29.77444082 | J40: =H40-AP40*TINV(1-ERF(Calculator!$F$7/SQRT(2)),Equations!$F$36)*Equations!$D$36 -> 24.35615783 | K40: 1 | L40: 0 | M40: 0 | N40: 0 | O40: 0.9399941719 | P40: 1.301029996 | Q40: =$A40^2/($A$7+Equations!$B$3) -> 10.80177721 | R40: =1/($A$7+Equations!$B$3) -> 14.95055669 | S40: 0 | T40: 0.85 | U40: 1 | V40: 1.301029996 | W40: 1.105875496 | X40: 0.7225 | Y40: =MMULT(K40:T40,Calcs!$A$134:$J$143) -> -0.08849982919 | Z40: 5.720076043 | AA40: -7.713422223 | AB40: 8.467979233 | AC40: -0.7335092298 | AD40: -0.3469152998 | AE40: 0.03864378513 | AF40: 0.01717579059 | AG40: -6.306904701 | AH40: 0.9183765211 | AI40: =MMULT(Y40:AH40,TRANSPOSE(K40:T40)) -> 0.2254877902 | AJ40: =SQRT(IF(Calculator!$F$6=$A$84,1,0)+AI40) -> 0.4748555467 | AK40: =MMULT(U40:X40,Calcs!$A$152:$D$155) -> -33.25438028 | AL40: 26.26968615 | AM40: 1.337380838 | AN40: 8.159980233 | AO40: =MMULT(AK40:AN40,TRANSPOSE(U40:X40)) -> 8.2978318 | AP40: =SQRT(IF(Calculator!$F$6=$A$84,1,0)+AO40) -> 2.880595737
A41: 0.9 | B41: 4.142816333 | C41: 4.187113241 | D41: 4.098519425 | E41: =Equations!$B$4+L41*Equations!$B$5+M41*Equations!$B$6+N41*Equations!$B$7+O41*Equations!$B$8+P41*Equations!$B$9+Q41*Equations!$B$10+R41*Equations!$B$11+S41*Equations!$B$12+T41*Equations!$B$13 -> 4.142816333 | F41: =E41+AJ41*TINV(1-ERF(Calculator!$F$7/SQRT(2)),Equations!$F$16)*Equations!$D$16 -> 4.187113241 | G41: =E41-AJ41*TINV(1-ERF(Calculator!$F$7/SQRT(2)),Equations!$F$16)*Equations!$D$16 -> 4.098519425 | H41: =Equations!$B$33+X41*Equations!$B$30+W41*Equations!$B$31+V41*Equations!$B$32 -> 27.8744278 | I41: =H41+AP41*TINV(1-ERF(Calculator!$F$7/SQRT(2)),Equations!$F$36)*Equations!$D$36 -> 30.84710946 | J41: =H41-AP41*TINV(1-ERF(Calculator!$F$7/SQRT(2)),Equations!$F$36)*Equations!$D$36 -> 24.90174614 | K41: 1 | L41: 0 | M41: 0 | N41: 0 | O41: 1.053834296 | P41: 1.301029996 | Q41: =$A41^2/($A$7+Equations!$B$3) -> 12.10995092 | R41: =1/($A$7+Equations!$B$3) -> 14.95055669 | S41: 0 | T41: 0.9 | U41: 1 | V41: 1.301029996 | W41: 1.170926996 | X41: 0.81 | Y41: =MMULT(K41:T41,Calcs!$A$134:$J$143) -> 0.1827064895 | Z41: 5.490189477 | AA41: -5.355963101 | AB41: 6.821899462 | AC41: -0.9152657356 | AD41: -0.2476514292 | AE41: 0.0814269017 | AF41: -0.009754014165 | AG41: -6.352716936 | AH41: 0.5936108403 | AI41: =MMULT(Y41:AH41,TRANSPOSE(K41:T41)) -> 0.2704637266 | AJ41: =SQRT(IF(Calculator!$F$6=$A$84,1,0)+AI41) -> 0.520061272 | AK41: =MMULT(U41:X41,Calcs!$A$152:$D$155) -> -36.31455206 | AL41: 28.71135637 | AM41: 1.220829736 | AN41: 9.285756692 | AO41: =MMULT(AK41:AN41,TRANSPOSE(U41:X41)) -> 9.990749215 | AP41: =SQRT(IF(Calculator!$F$6=$A$84,1,0)+AO41) -> 3.160814644
A42: 0.95 | B42: 3.923139014 | C42: 3.974148329 | D42: 3.8721297 | E42: =Equations!$B$4+L42*Equations!$B$5+M42*Equations!$B$6+N42*Equations!$B$7+O42*Equations!$B$8+P42*Equations!$B$9+Q42*Equations!$B$10+R42*Equations!$B$11+S42*Equations!$B$12+T42*Equations!$B$13 -> 3.923139014 | F42: =E42+AJ42*TINV(1-ERF(Calculator!$F$7/SQRT(2)),Equations!$F$16)*Equations!$D$16 -> 3.974148329 | G42: =E42-AJ42*TINV(1-ERF(Calculator!$F$7/SQRT(2)),Equations!$F$16)*Equations!$D$16 -> 3.8721297 | H42: =Equations!$B$33+X42*Equations!$B$30+W42*Equations!$B$31+V42*Equations!$B$32 -> 28.76446042 | I42: =H42+AP42*TINV(1-ERF(Calculator!$F$7/SQRT(2)),Equations!$F$36)*Equations!$D$36 -> 32.01830872 | J42: =H42-AP42*TINV(1-ERF(Calculator!$F$7/SQRT(2)),Equations!$F$36)*Equations!$D$36 -> 25.51061213 | K42: 1 | L42: 0 | M42: 0 | N42: 0 | O42: 1.174179571 | P42: 1.301029996 | Q42: =$A42^2/($A$7+Equations!$B$3) -> 13.49287741 | R42: =1/($A$7+Equations!$B$3) -> 14.95055669 | S42: 0 | T42: 0.95 | U42: 1 | V42: 1.301029996 | W42: 1.235978496 | X42: 0.9025 | Y42: =MMULT(K42:T42,Calcs!$A$134:$J$143) -> 0.6656377168 | Z42: 4.358133852 | AA42: -1.356276869 | AB42: 4.74188191 | AC42: -1.000507803 | AD42: -0.2269708831 | AE42: 0.1268916575 | AF42: -0.03794846282 | AG42: -6.723501475 | AH42: 0.0192559219 | AI42: =MMULT(Y42:AH42,TRANSPOSE(K42:T42)) -> 0.3586420268 | AJ42: =SQRT(IF(Calculator!$F$6=$A$84,1,0)+AI42) -> 0.5988672865 | AK42: =MMULT(U42:X42,Calcs!$A$152:$D$155) -> -39.52326866 | AL42: 31.27413789 | AM42: 1.078426226 | AN42: 10.4950831 | AO42: =MMULT(AK42:AN42,TRANSPOSE(U42:X42)) -> 11.97004694 | AP42: =SQRT(IF(Calculator!$F$6=$A$84,1,0)+AO42) -> 3.459775563
A43: 1 | B43: 3.711417816 | C43: 3.772071931 | D43: 3.6507637 | E43: =Equations!$B$4+L43*Equations!$B$5+M43*Equations!$B$6+N43*Equations!$B$7+O43*Equations!$B$8+P43*Equations!$B$9+Q43*Equations!$B$10+R43*Equations!$B$11+S43*Equations!$B$12+T43*Equations!$B$13 -> 3.711417816 | F43: =E43+AJ43*TINV(1-ERF(Calculator!$F$7/SQRT(2)),Equations!$F$16)*Equations!$D$16 -> 3.772071931 | G43: =E43-AJ43*TINV(1-ERF(Calculator!$F$7/SQRT(2)),Equations!$F$16)*Equations!$D$16 -> 3.6507637 | H43: =Equations!$B$33+X43*Equations!$B$30+W43*Equations!$B$31+V43*Equations!$B$32 -> 29.7353972 | I43: =H43+AP43*TINV(1-ERF(Calculator!$F$7/SQRT(2)),Equations!$F$36)*Equations!$D$36 -> 33.28836986 | J43: =H43-AP43*TINV(1-ERF(Calculator!$F$7/SQRT(2)),Equations!$F$36)*Equations!$D$36 -> 26.18242453 | K43: 1 | L43: 0 | M43: 0 | N43: 0 | O43: 1.301029996 | P43: 1.301029996 | Q43: =$A43^2/($A$7+Equations!$B$3) -> 14.95055669 | R43: =1/($A$7+Equations!$B$3) -> 14.95055669 | S43: 0 | T43: 1 | U43: 1 | V43: 1.301029996 | W43: 1.301029996 | X43: 1 | Y43: =MMULT(K43:T43,Calcs!$A$134:$J$143) -> 1.360293853 | Z43: 2.323909168 | AA43: 4.285636474 | AB43: 2.227926578 | AC43: -0.9892354316 | AD43: -0.2848736614 | AE43: 0.1750380524 | AF43: -0.06740755537 | AG43: -7.419258316 | AH43: -0.804688234 | AI43: =MMULT(Y43:AH43,TRANSPOSE(K43:T43)) -> 0.5070873183 | AJ43: =SQRT(IF(Calculator!$F$6=$A$84,1,0)+AI43) -> 0.7121006378 | AK43: =MMULT(U43:X43,Calcs!$A$152:$D$155) -> -42.88053011 | AL43: 33.95803072 | AM43: 0.9101703104 | AN43: 11.78795944 | AO43: =MMULT(AK43:AN43,TRANSPOSE(U43:X43)) -> 14.27200478 | AP43: =SQRT(IF(Calculator!$F$6=$A$84,1,0)+AO43) -> 3.777830697
A45: NaCl/SiO2: | B45: GT | C45: UI | D45: LI | E45: GT25 | F45: UI25 | G45: LI25 | H45: EA | I45: UIEA | J45: LIEA | K45: 25B | L45: 25X1 | M45: 25X2 | N45: 25X3 | O45: 25X4 | P45: 25X5 | Q45: 25X6 | R45: 25X7 | S45: 25X8 | T45: 25X9 | U45: EAB | V45: EAX1 | W45: EAX2 | X45: EAX3 | Y45: 25IntMat | Z45: 25IntMat | AA45: 25IntMat | AB45: 25IntMat | AC45: 25IntMat | AD45: 25IntMat | AE45: 25IntMat | AF45: 25IntMat | AG45: 25IntMat | AH45: 25IntMat | AI45: 25FullMat | AJ45: 25SQRT | AK45: EAIntMat | AL45: EAIntMat | AM45: EAIntMat | AN45: EAIntMat | AO45: EAFullMat | AP45: EASQRT
A46: 0 | B46: =IF($R$88="N/A",0,LOG(EXP(LN(10^E46)+H46*1000*4.184/8.31447*(1/$A$9-1/298.15)))) -> 5.101086804 | C46: =IF($R$88="N/A",0,LOG(EXP(LN(10^F46)+J46*1000*4.184/8.31447*(1/$A$9-1/298.15)))) -> 5.143986845 | D46: =IF($R$88="N/A",0,LOG(EXP(LN(10^G46)+I46*1000*4.184/8.31447*(1/$A$9-1/298.15)))) -> 5.058186764 | E46: =Equations!$B$4+L46*Equations!$B$5+M46*Equations!$B$6+N46*Equations!$B$7+O46*Equations!$B$8+P46*Equations!$B$9+Q46*Equations!$B$10+R46*Equations!$B$11+S46*Equations!$B$12+T46*Equations!$B$13 -> 5.101086804 | F46: =E46+AJ46*TINV(1-ERF(Calculator!$F$7/SQRT(2)),Equations!$F$16)*Equations!$D$16 -> 5.143986845 | G46: =E46-AJ46*TINV(1-ERF(Calculator!$F$7/SQRT(2)),Equations!$F$16)*Equations!$D$16 -> 5.058186764 | H46: =Equations!$B$33+X46*Equations!$B$30+W46*Equations!$B$31+V46*Equations!$B$32 -> 25.12333878 | I46: =H46+AP46*TINV(1-ERF(Calculator!$F$7/SQRT(2)),Equations!$F$36)*Equations!$D$36 -> 27.14310732 | J46: =H46-AP46*TINV(1-ERF(Calculator!$F$7/SQRT(2)),Equations!$F$36)*Equations!$D$36 -> 23.10357024 | K46: 1 | L46: =$A$5^2*$A$3*$A46 -> 0 | M46: =$A$5*$A$3*$A46 -> 0 | N46: =$A$3*$A46 -> 0 | O46: =$A$5^2*$A$3 -> 0.6375046979 | P46: =$A$3 -> 1.301029996 | Q46: =$A$5^2/($A46+Equations!$B$3) -> 7.325772778 | R46: =1/($A46+Equations!$B$3) -> 14.95055669 | S46: =$A46 -> 0 | T46: =$A$5 -> 0.7 | U46: 1 | V46: =$A$3 -> 1.301029996 | W46: =$A$3*$A$5 -> 0.910720997 | X46: =$A$5^2 -> 0.49 | Y46: =MMULT(K46:T46,Calcs!$A$134:$J$143) -> 0.3682306661 | Z46: 0.9967213896 | AA46: -4.932436921 | AB46: 10.80259186 | AC46: 0.3908469184 | AD46: -1.116206858 | AE46: -0.07361572942 | AF46: 0.09037734148 | AG46: -8.119301811 | AH46: 0.3951381384 | AI46: =MMULT(Y46:AH46,TRANSPOSE(K46:T46)) -> 0.2536749669 | AJ46: =SQRT(IF(Calculator!$F$6=$A$84,1,0)+AI46) -> 0.5036615599 | AK46: =MMULT(U46:X46,Calcs!$A$152:$D$155) -> -24.96513395 | AL46: 19.67134334 | AM46: 1.531919703 | AN46: 5.283950521 | AO46: =MMULT(AK46:AN46,TRANSPOSE(U46:X46)) -> 4.612160989 | AP46: =SQRT(IF(Calculator!$F$6=$A$84,1,0)+AO46) -> 2.147594233
A47: 0.005 | B47: =IF($R$88="N/A",0,LOG(EXP(LN(10^E47)+H47*1000*4.184/8.31447*(1/$A$9-1/298.15)))) -> 4.809136793 | C47: =IF($R$88="N/A",0,LOG(EXP(LN(10^F47)+J47*1000*4.184/8.31447*(1/$A$9-1/298.15)))) -> 4.844436986 | D47: =IF($R$88="N/A",0,LOG(EXP(LN(10^G47)+I47*1000*4.184/8.31447*(1/$A$9-1/298.15)))) -> 4.7738366 | E47: =Equations!$B$4+L47*Equations!$B$5+M47*Equations!$B$6+N47*Equations!$B$7+O47*Equations!$B$8+P47*Equations!$B$9+Q47*Equations!$B$10+R47*Equations!$B$11+S47*Equations!$B$12+T47*Equations!$B$13 -> 4.809136793 | F47: =E47+AJ47*TINV(1-ERF(Calculator!$F$7/SQRT(2)),Equations!$F$16)*Equations!$D$16 -> 4.844436986 | G47: =E47-AJ47*TINV(1-ERF(Calculator!$F$7/SQRT(2)),Equations!$F$16)*Equations!$D$16 -> 4.7738366 | H47: =Equations!$B$33+X47*Equations!$B$30+W47*Equations!$B$31+V47*Equations!$B$32 -> 25.12333878 | I47: =H47+AP47*TINV(1-ERF(Calculator!$F$7/SQRT(2)),Equations!$F$36)*Equations!$D$36 -> 27.14310732 | J47: =H47-AP47*TINV(1-ERF(Calculator!$F$7/SQRT(2)),Equations!$F$36)*Equations!$D$36 -> 23.10357024 | K47: 1 | L47: =$A$5^2*$A$3*$A47 -> 0.003187523489 | M47: =$A$5*$A$3*$A47 -> 0.004553604985 | N47: =$A$3*$A47 -> 0.006505149978 | O47: =$A$5^2*$A$3 -> 0.6375046979 | P47: =$A$3 -> 1.301029996 | Q47: =$A$5^2/($A47+Equations!$B$3) -> 6.816239875 | R47: =1/($A47+Equations!$B$3) -> 13.91069362 | S47: =$A47 -> 0.005 | T47: =$A$5 -> 0.7 | U47: 1 | V47: =$A$3 -> 1.301029996 | W47: =$A$3*$A$5 -> 0.910720997 | X47: =$A$5^2 -> 0.49 | Y47: =MMULT(K47:T47,Calcs!$A$134:$J$143) -> 0.2048251657 | Z47: 1.259001725 | AA47: -4.590065339 | AB47: 8.585410874 | AC47: 0.223843218 | AD47: -0.8360500047 | AE47: -0.05770015038 | AF47: 0.06992736532 | AG47: -6.297168005 | AH47: 0.4643460502 | AI47: =MMULT(Y47:AH47,TRANSPOSE(K47:T47)) -> 0.1717577573 | AJ47: =SQRT(IF(Calculator!$F$6=$A$84,1,0)+AI47) -> 0.4144366747 | AK47: =MMULT(U47:X47,Calcs!$A$152:$D$155) -> -24.96513395 | AL47: 19.67134334 | AM47: 1.531919703 | AN47: 5.283950521 | AO47: =MMULT(AK47:AN47,TRANSPOSE(U47:X47)) -> 4.612160989 | AP47: =SQRT(IF(Calculator!$F$6=$A$84,1,0)+AO47) -> 2.147594233
A48: 0.015 | B48: 4.335948104 | C48: 4.360652479 | D48: 4.311243729 | E48: =Equations!$B$4+L48*Equations!$B$5+M48*Equations!$B$6+N48*Equations!$B$7+O48*Equations!$B$8+P48*Equations!$B$9+Q48*Equations!$B$10+R48*Equations!$B$11+S48*Equations!$B$12+T48*Equations!$B$13 -> 4.335948104 | F48: =E48+AJ48*TINV(1-ERF(Calculator!$F$7/SQRT(2)),Equations!$F$16)*Equations!$D$16 -> 4.360652479 | G48: =E48-AJ48*TINV(1-ERF(Calculator!$F$7/SQRT(2)),Equations!$F$16)*Equations!$D$16 -> 4.311243729 | H48: =Equations!$B$33+X48*Equations!$B$30+W48*Equations!$B$31+V48*Equations!$B$32 -> 25.12333878 | I48: =H48+AP48*TINV(1-ERF(Calculator!$F$7/SQRT(2)),Equations!$F$36)*Equations!$D$36 -> 27.14310732 | J48: =H48-AP48*TINV(1-ERF(Calculator!$F$7/SQRT(2)),Equations!$F$36)*Equations!$D$36 -> 23.10357024 | K48: 1 | L48: 0.009562570468 | M48: 0.01366081495 | N48: 0.01951544993 | O48: 0.6375046979 | P48: 1.301029996 | Q48: =$A$5^2/($A48+Equations!$B$3) -> 5.983845465 | R48: =1/($A48+Equations!$B$3) -> 12.21192952 | S48: 0.015 | T48: 0.7 | U48: 1 | V48: 1.301029996 | W48: 0.910720997 | X48: 0.49 | Y48: =MMULT(K48:T48,Calcs!$A$134:$J$143) -> -0.03234977528 | Z48: 1.529152127 | AA48: -3.863875096 | AB48: 5.171211869 | AC48: -0.0221583694 | AD48: -0.4135438775 | AE48: -0.03327590035 | AF48: 0.03872124582 | AG48: -3.55841916 | AH48: 0.5507234847 | AI48: =MMULT(Y48:AH48,TRANSPOSE(K48:T48)) -> 0.08412207095 | AJ48: =SQRT(IF(Calculator!$F$6=$A$84,1,0)+AI48) -> 0.2900380509 | AK48: =MMULT(U48:X48,Calcs!$A$152:$D$155) -> -24.96513395 | AL48: 19.67134334 | AM48: 1.531919703 | AN48: 5.283950521 | AO48: =MMULT(AK48:AN48,TRANSPOSE(U48:X48)) -> 4.612160989 | AP48: =SQRT(IF(Calculator!$F$6=$A$84,1,0)+AO48) -> 2.147594233
A49: 0.025 | B49: 3.970212457 | C49: 3.989063619 | D49: 3.951361295 | E49: =Equations!$B$4+L49*Equations!$B$5+M49*Equations!$B$6+N49*Equations!$B$7+O49*Equations!$B$8+P49*Equations!$B$9+Q49*Equations!$B$10+R49*Equations!$B$11+S49*Equations!$B$12+T49*Equations!$B$13 -> 3.970212457 | F49: =E49+AJ49*TINV(1-ERF(Calculator!$F$7/SQRT(2)),Equations!$F$16)*Equations!$D$16 -> 3.989063619 | G49: =E49-AJ49*TINV(1-ERF(Calculator!$F$7/SQRT(2)),Equations!$F$16)*Equations!$D$16 -> 3.951361295 | H49: =Equations!$B$33+X49*Equations!$B$30+W49*Equations!$B$31+V49*Equations!$B$32 -> 25.12333878 | I49: =H49+AP49*TINV(1-ERF(Calculator!$F$7/SQRT(2)),Equations!$F$36)*Equations!$D$36 -> 27.14310732 | J49: =H49-AP49*TINV(1-ERF(Calculator!$F$7/SQRT(2)),Equations!$F$36)*Equations!$D$36 -> 23.10357024 | K49: 1 | L49: 0.01593761745 | M49: 0.02276802492 | N49: 0.03252574989 | O49: 0.6375046979 | P49: 1.301029996 | Q49: =$A$5^2/($A49+Equations!$B$3) -> 5.332628617 | R49: =1/($A49+Equations!$B$3) -> 10.88291554 | S49: 0.025 | T49: 0.7 | U49: 1 | V49: 1.301029996 | W49: 0.910720997 | X49: 0.49 | Y49: =MMULT(K49:T49,Calcs!$A$134:$J$143) -> -0.1825266922 | Z49: 1.552379686 | AA49: -3.097457585 | AB49: 2.747151913 | AC49: -0.1827442 | AD49: -0.1247895807 | AE49: -0.01604056923 | AF49: 0.01692366462 | AG49: -1.698539196 | AH49: 0.5865940467 | AI49: =MMULT(Y49:AH49,TRANSPOSE(K49:T49)) -> 0.04898221926 | AJ49: =SQRT(IF(Calculator!$F$6=$A$84,1,0)+AI49) -> 0.22131927 | AK49: =MMULT(U49:X49,Calcs!$A$152:$D$155) -> -24.96513395 | AL49: 19.67134334 | AM49: 1.531919703 | AN49: 5.283950521 | AO49: =MMULT(AK49:AN49,TRANSPOSE(U49:X49)) -> 4.612160989 | AP49: =SQRT(IF(Calculator!$F$6=$A$84,1,0)+AO49) -> 2.147594233
A50: 0.035 | B50: 3.68029101 | C50: 3.696576632 | D50: 3.664005389 | E50: =Equations!$B$4+L50*Equations!$B$5+M50*Equations!$B$6+N50*Equations!$B$7+O50*Equations!$B$8+P50*Equations!$B$9+Q50*Equations!$B$10+R50*Equations!$B$11+S50*Equations!$B$12+T50*Equations!$B$13 -> 3.68029101 | F50: =E50+AJ50*TINV(1-ERF(Calculator!$F$7/SQRT(2)),Equations!$F$16)*Equations!$D$16 -> 3.696576632 | G50: =E50-AJ50*TINV(1-ERF(Calculator!$F$7/SQRT(2)),Equations!$F$16)*Equations!$D$16 -> 3.664005389 | H50: =Equations!$B$33+X50*Equations!$B$30+W50*Equations!$B$31+V50*Equations!$B$32 -> 25.12333878 | I50: =H50+AP50*TINV(1-ERF(Calculator!$F$7/SQRT(2)),Equations!$F$36)*Equations!$D$36 -> 27.14310732 | J50: =H50-AP50*TINV(1-ERF(Calculator!$F$7/SQRT(2)),Equations!$F$36)*Equations!$D$36 -> 23.10357024 | K50: 1 | L50: 0.02231266443 | M50: 0.03187523489 | N50: 0.04553604985 | O50: 0.6375046979 | P50: 1.301029996 | Q50: =$A$5^2/($A50+Equations!$B$3) -> 4.809242786 | R50: =1/($A50+Equations!$B$3) -> 9.814781196 | S50: 0.035 | T50: 0.7 | U50: 1 | V50: 1.301029996 | W50: 0.910720997 | X50: 0.49 | Y50: =MMULT(K50:T50,Calcs!$A$134:$J$143) -> -0.2713215821 | Z50: 1.401389212 | AA50: -2.302657461 | AB50: 1.021691063 | AC50: -0.2830643828 | AD50: 0.06959523402 | AE50: -0.003877427042 | AF50: 0.001764339387 | AG50: -0.4587509391 | AH50: 0.5868291533 | AI50: =MMULT(Y50:AH50,TRANSPOSE(K50:T50)) -> 0.03655702747 | AJ50: =SQRT(IF(Calculator!$F$6=$A$84,1,0)+AI50) -> 0.1911989212 | AK50: =MMULT(U50:X50,Calcs!$A$152:$D$155) -> -24.96513395 | AL50: 19.67134334 | AM50: 1.531919703 | AN50: 5.283950521 | AO50: =MMULT(AK50:AN50,TRANSPOSE(U50:X50)) -> 4.612160989 | AP50: =SQRT(IF(Calculator!$F$6=$A$84,1,0)+AO50) -> 2.147594233
A51: 0.045 | B51: 3.445855904 | C51: 3.461387394 | D51: 3.430324414 | E51: =Equations!$B$4+L51*Equations!$B$5+M51*Equations!$B$6+N51*Equations!$B$7+O51*Equations!$B$8+P51*Equations!$B$9+Q51*Equations!$B$10+R51*Equations!$B$11+S51*Equations!$B$12+T51*Equations!$B$13 -> 3.445855904 | F51: =E51+AJ51*TINV(1-ERF(Calculator!$F$7/SQRT(2)),Equations!$F$16)*Equations!$D$16 -> 3.461387394 | G51: =E51-AJ51*TINV(1-ERF(Calculator!$F$7/SQRT(2)),Equations!$F$16)*Equations!$D$16 -> 3.430324414 | H51: =Equations!$B$33+X51*Equations!$B$30+W51*Equations!$B$31+V51*Equations!$B$32 -> 25.12333878 | I51: =H51+AP51*TINV(1-ERF(Calculator!$F$7/SQRT(2)),Equations!$F$36)*Equations!$D$36 -> 27.14310732 | J51: =H51-AP51*TINV(1-ERF(Calculator!$F$7/SQRT(2)),Equations!$F$36)*Equations!$D$36 -> 23.10357024 | K51: 1 | L51: 0.0286877114 | M51: 0.04098244486 | N51: 0.0585463498 | O51: 0.6375046979 | P51: 1.301029996 | Q51: =$A$5^2/($A51+Equations!$B$3) -> 4.379412984 | R51: =1/($A51+Equations!$B$3) -> 8.937577519 | S51: 0.045 | T51: 0.7 | U51: 1 | V51: 1.301029996 | W51: 0.910720997 | X51: 0.49 | Y51: =MMULT(K51:T51,Calcs!$A$134:$J$143) -> -0.3151926439 | Z51: 1.12289332 | AA51: -1.487084878 | AB51: -0.1924841914 | AC51: -0.3392777846 | AD51: 0.1949136036 | AE51: 0.004573518675 | AF51: -0.008536627702 | AG51: 0.3272091413 | AH51: 0.5609836439 | AI51: =MMULT(Y51:AH51,TRANSPOSE(K51:T51)) -> 0.03324975543 | AJ51: =SQRT(IF(Calculator!$F$6=$A$84,1,0)+AI51) -> 0.1823451547 | AK51: =MMULT(U51:X51,Calcs!$A$152:$D$155) -> -24.96513395 | AL51: 19.67134334 | AM51: 1.531919703 | AN51: 5.283950521 | AO51: =MMULT(AK51:AN51,TRANSPOSE(U51:X51)) -> 4.612160989 | AP51: =SQRT(IF(Calculator!$F$6=$A$84,1,0)+AO51) -> 2.147594233
A52: 0.055 | B52: 3.253250323 | C52: 3.268705487 | D52: 3.237795159 | E52: =Equations!$B$4+L52*Equations!$B$5+M52*Equations!$B$6+N52*Equations!$B$7+O52*Equations!$B$8+P52*Equations!$B$9+Q52*Equations!$B$10+R52*Equations!$B$11+S52*Equations!$B$12+T52*Equations!$B$13 -> 3.253250323 | F52: =E52+AJ52*TINV(1-ERF(Calculator!$F$7/SQRT(2)),Equations!$F$16)*Equations!$D$16 -> 3.268705487 | G52: =E52-AJ52*TINV(1-ERF(Calculator!$F$7/SQRT(2)),Equations!$F$16)*Equations!$D$16 -> 3.237795159 | H52: =Equations!$B$33+X52*Equations!$B$30+W52*Equations!$B$31+V52*Equations!$B$32 -> 25.12333878 | I52: =H52+AP52*TINV(1-ERF(Calculator!$F$7/SQRT(2)),Equations!$F$36)*Equations!$D$36 -> 27.14310732 | J52: =H52-AP52*TINV(1-ERF(Calculator!$F$7/SQRT(2)),Equations!$F$36)*Equations!$D$36 -> 23.10357024 | K52: 1 | L52: 0.03506275838 | M52: 0.05008965483 | N52: 0.07155664976 | O52: 0.6375046979 | P52: 1.301029996 | Q52: =$A$5^2/($A52+Equations!$B$3) -> 4.020112328 | R52: =1/($A52+Equations!$B$3) -> 8.204310874 | S52: 0.055 | T52: 0.7 | U52: 1 | V52: 1.301029996 | W52: 0.910720997 | X52: 0.49 | Y52: =MMULT(K52:T52,Calcs!$A$134:$J$143) -> -0.3251969489 | Z52: 0.7482748337 | AA52: -0.6558525469 | AB52: -1.021216229 | AC52: -0.3622403779 | AD52: 0.2681648056 | AE52: 0.01022594834 | AF52: -0.01517502106 | AG52: 0.7710414685 | AH52: 0.515476723 | AI52: =MMULT(Y52:AH52,TRANSPOSE(K52:T52)) -> 0.03292376173 | AJ52: =SQRT(IF(Calculator!$F$6=$A$84,1,0)+AI52) -> 0.181449061 | AK52: =MMULT(U52:X52,Calcs!$A$152:$D$155) -> -24.96513395 | AL52: 19.67134334 | AM52: 1.531919703 | AN52: 5.283950521 | AO52: =MMULT(AK52:AN52,TRANSPOSE(U52:X52)) -> 4.612160989 | AP52: =SQRT(IF(Calculator!$F$6=$A$84,1,0)+AO52) -> 2.147594233
A53: 0.065 | B53: 3.092959422 | C53: 3.108438068 | D53: 3.077480776 | E53: =Equations!$B$4+L53*Equations!$B$5+M53*Equations!$B$6+N53*Equations!$B$7+O53*Equations!$B$8+P53*Equations!$B$9+Q53*Equations!$B$10+R53*Equations!$B$11+S53*Equations!$B$12+T53*Equations!$B$13 -> 3.092959422 | F53: =E53+AJ53*TINV(1-ERF(Calculator!$F$7/SQRT(2)),Equations!$F$16)*Equations!$D$16 -> 3.108438068 | G53: =E53-AJ53*TINV(1-ERF(Calculator!$F$7/SQRT(2)),Equations!$F$16)*Equations!$D$16 -> 3.077480776 | H53: =Equations!$B$33+X53*Equations!$B$30+W53*Equations!$B$31+V53*Equations!$B$32 -> 25.12333878 | I53: =H53+AP53*TINV(1-ERF(Calculator!$F$7/SQRT(2)),Equations!$F$36)*Equations!$D$36 -> 27.14310732 | J53: =H53-AP53*TINV(1-ERF(Calculator!$F$7/SQRT(2)),Equations!$F$36)*Equations!$D$36 -> 23.10357024 | K53: 1 | L53: 0.04143780536 | M53: 0.0591968648 | N53: 0.08456694972 | O53: 0.6375046979 | P53: 1.301029996 | Q53: =$A$5^2/($A53+Equations!$B$3) -> 3.715297751 | R53: =1/($A53+Equations!$B$3) -> 7.582240308 | S53: 0.065 | T53: 0.7 | U53: 1 | V53: 1.301029996 | W53: 0.910720997 | X53: 0.49 | Y53: =MMULT(K53:T53,Calcs!$A$134:$J$143) -> -0.3090380739 | Z53: 0.2993984902 | AA53: 0.1874774525 | AB53: -1.552180743 | AC53: -0.3595156312 | AD53: 0.3011924134 | AE53: 0.01371643258 | AF53: -0.01898395612 | AG53: 0.9505688878 | AH53: 0.4547807169 | AI53: =MMULT(Y53:AH53,TRANSPOSE(K53:T53)) -> 0.03302388267 | AJ53: =SQRT(IF(Calculator!$F$6=$A$84,1,0)+AI53) -> 0.1817247442 | AK53: =MMULT(U53:X53,Calcs!$A$152:$D$155) -> -24.96513395 | AL53: 19.67134334 | AM53: 1.531919703 | AN53: 5.283950521 | AO53: =MMULT(AK53:AN53,TRANSPOSE(U53:X53)) -> 4.612160989 | AP53: =SQRT(IF(Calculator!$F$6=$A$84,1,0)+AO53) -> 2.147594233
A54: 0.075 | B54: 2.958150725 | C54: 2.973565251 | D54: 2.942736198 | E54: =Equations!$B$4+L54*Equations!$B$5+M54*Equations!$B$6+N54*Equations!$B$7+O54*Equations!$B$8+P54*Equations!$B$9+Q54*Equations!$B$10+R54*Equations!$B$11+S54*Equations!$B$12+T54*Equations!$B$13 -> 2.958150725 | F54: =E54+AJ54*TINV(1-ERF(Calculator!$F$7/SQRT(2)),Equations!$F$16)*Equations!$D$16 -> 2.973565251 | G54: =E54-AJ54*TINV(1-ERF(Calculator!$F$7/SQRT(2)),Equations!$F$16)*Equations!$D$16 -> 2.942736198 | H54: =Equations!$B$33+X54*Equations!$B$30+W54*Equations!$B$31+V54*Equations!$B$32 -> 25.12333878 | I54: =H54+AP54*TINV(1-ERF(Calculator!$F$7/SQRT(2)),Equations!$F$36)*Equations!$D$36 -> 27.14310732 | J54: =H54-AP54*TINV(1-ERF(Calculator!$F$7/SQRT(2)),Equations!$F$36)*Equations!$D$36 -> 23.10357024 | K54: 1 | L54: 0.04781285234 | M54: 0.06830407477 | N54: 0.09757724967 | O54: 0.6375046979 | P54: 1.301029996 | Q54: =$A$5^2/($A54+Equations!$B$3) -> 3.453448953 | R54: =1/($A54+Equations!$B$3) -> 7.047855005 | S54: 0.075 | T54: 0.7 | U54: 1 | V54: 1.301029996 | W54: 0.910720997 | X54: 0.49 | Y54: =MMULT(K54:T54,Calcs!$A$134:$J$143) -> -0.2722478479 | Z54: -0.2080349517 | AA54: 1.040347242 | AB54: -1.848336403 | AC54: -0.336534764 | AD54: 0.3025011287 | AE54: 0.01550208373 | AF54: -0.02056168124 | AG54: 0.9216748793 | AH54: 0.3821071397 | AI54: =MMULT(Y54:AH54,TRANSPOSE(K54:T54)) -> 0.03275085043 | AJ54: =SQRT(IF(Calculator!$F$6=$A$84,1,0)+AI54) -> 0.1809719603 | AK54: =MMULT(U54:X54,Calcs!$A$152:$D$155) -> -24.96513395 | AL54: 19.67134334 | AM54: 1.531919703 | AN54: 5.283950521 | AO54: =MMULT(AK54:AN54,TRANSPOSE(U54:X54)) -> 4.612160989 | AP54: =SQRT(IF(Calculator!$F$6=$A$84,1,0)+AO54) -> 2.147594233
A55: 0.085 | B55: 2.843791113 | C55: 2.859067105 | D55: 2.828515121 | E55: =Equations!$B$4+L55*Equations!$B$5+M55*Equations!$B$6+N55*Equations!$B$7+O55*Equations!$B$8+P55*Equations!$B$9+Q55*Equations!$B$10+R55*Equations!$B$11+S55*Equations!$B$12+T55*Equations!$B$13 -> 2.843791113 | F55: =E55+AJ55*TINV(1-ERF(Calculator!$F$7/SQRT(2)),Equations!$F$16)*Equations!$D$16 -> 2.859067105 | G55: =E55-AJ55*TINV(1-ERF(Calculator!$F$7/SQRT(2)),Equations!$F$16)*Equations!$D$16 -> 2.828515121 | H55: =Equations!$B$33+X55*Equations!$B$30+W55*Equations!$B$31+V55*Equations!$B$32 -> 25.12333878 | I55: =H55+AP55*TINV(1-ERF(Calculator!$F$7/SQRT(2)),Equations!$F$36)*Equations!$D$36 -> 27.14310732 | J55: =H55-AP55*TINV(1-ERF(Calculator!$F$7/SQRT(2)),Equations!$F$36)*Equations!$D$36 -> 23.10357024 | K55: 1 | L55: 0.05418789932 | M55: 0.07741128474 | N55: 0.1105875496 | O55: 0.6375046979 | P55: 1.301029996 | Q55: =$A$5^2/($A55+Equations!$B$3) -> 3.226079544 | R55: =1/($A55+Equations!$B$3) -> 6.583835804 | S55: 0.085 | T55: 0.7 | U55: 1 | V55: 1.301029996 | W55: 0.910720997 | X55: 0.49 | Y55: =MMULT(K55:T55,Calcs!$A$134:$J$143) -> -0.2189012736 | Z55: -0.7624595824 | AA55: 1.900872569 | AB55: -1.956061497 | AC55: -0.2972986654 | AD55: 0.2783559109 | AE55: 0.01591963204 | AF55: -0.020348894 | AG55: 0.7255258166 | AH55: 0.2998217423 | AI55: =MMULT(Y55:AH55,TRANSPOSE(K55:T55)) -> 0.0321648132 | AJ55: =SQRT(IF(Calculator!$F$6=$A$84,1,0)+AI55) -> 0.1793455135 | AK55: =MMULT(U55:X55,Calcs!$A$152:$D$155) -> -24.96513395 | AL55: 19.67134334 | AM55: 1.531919703 | AN55: 5.283950521 | AO55: =MMULT(AK55:AN55,TRANSPOSE(U55:X55)) -> 4.612160989 | AP55: =SQRT(IF(Calculator!$F$6=$A$84,1,0)+AO55) -> 2.147594233
A56: 0.095 | B56: 2.746091079 | C56: 2.76126391 | D56: 2.730918248 | E56: =Equations!$B$4+L56*Equations!$B$5+M56*Equations!$B$6+N56*Equations!$B$7+O56*Equations!$B$8+P56*Equations!$B$9+Q56*Equations!$B$10+R56*Equations!$B$11+S56*Equations!$B$12+T56*Equations!$B$13 -> 2.746091079 | F56: =E56+AJ56*TINV(1-ERF(Calculator!$F$7/SQRT(2)),Equations!$F$16)*Equations!$D$16 -> 2.76126391 | G56: =E56-AJ56*TINV(1-ERF(Calculator!$F$7/SQRT(2)),Equations!$F$16)*Equations!$D$16 -> 2.730918248 | H56: =Equations!$B$33+X56*Equations!$B$30+W56*Equations!$B$31+V56*Equations!$B$32 -> 25.12333878 | I56: =H56+AP56*TINV(1-ERF(Calculator!$F$7/SQRT(2)),Equations!$F$36)*Equations!$D$36 -> 27.14310732 | J56: =H56-AP56*TINV(1-ERF(Calculator!$F$7/SQRT(2)),Equations!$F$36)*Equations!$D$36 -> 23.10357024 | K56: 1 | L56: 0.0605629463 | M56: 0.08651849471 | N56: 0.1235978496 | O56: 0.6375046979 | P56: 1.301029996 | Q56: =$A$5^2/($A56+Equations!$B$3) -> 3.026800002 | R56: =1/($A56+Equations!$B$3) -> 6.177142861 | S56: 0.095 | T56: 0.7 | U56: 1 | V56: 1.301029996 | W56: 0.910720997 | X56: 0.49 | Y56: =MMULT(K56:T56,Calcs!$A$134:$J$143) -> -0.152066479 | Z56: -1.355167263 | AA56: 2.767634754 | AB56: -1.910274902 | AC56: -0.2448196619 | AD56: 0.2334737375 | AE56: 0.01522260649 | AF56: -0.01867740193 | AG56: 0.3931164507 | AH56: 0.2097057323 | AI56: =MMULT(Y56:AH56,TRANSPOSE(K56:T56)) -> 0.03173185352 | AJ56: =SQRT(IF(Calculator!$F$6=$A$84,1,0)+AI56) -> 0.1781343693 | AK56: =MMULT(U56:X56,Calcs!$A$152:$D$155) -> -24.96513395 | AL56: 19.67134334 | AM56: 1.531919703 | AN56: 5.283950521 | AO56: =MMULT(AK56:AN56,TRANSPOSE(U56:X56)) -> 4.612160989 | AP56: =SQRT(IF(Calculator!$F$6=$A$84,1,0)+AO56) -> 2.147594233
A57: 0.105 | B57: 2.662142974 | C57: 2.677401338 | D57: 2.64688461 | E57: =Equations!$B$4+L57*Equations!$B$5+M57*Equations!$B$6+N57*Equations!$B$7+O57*Equations!$B$8+P57*Equations!$B$9+Q57*Equations!$B$10+R57*Equations!$B$11+S57*Equations!$B$12+T57*Equations!$B$13 -> 2.662142974 | F57: =E57+AJ57*TINV(1-ERF(Calculator!$F$7/SQRT(2)),Equations!$F$16)*Equations!$D$16 -> 2.677401338 | G57: =E57-AJ57*TINV(1-ERF(Calculator!$F$7/SQRT(2)),Equations!$F$16)*Equations!$D$16 -> 2.64688461 | H57: =Equations!$B$33+X57*Equations!$B$30+W57*Equations!$B$31+V57*Equations!$B$32 -> 25.12333878 | I57: =H57+AP57*TINV(1-ERF(Calculator!$F$7/SQRT(2)),Equations!$F$36)*Equations!$D$36 -> 27.14310732 | J57: =H57-AP57*TINV(1-ERF(Calculator!$F$7/SQRT(2)),Equations!$F$36)*Equations!$D$36 -> 23.10357024 | K57: 1 | L57: 0.06693799328 | M57: 0.09562570468 | N57: 0.1366081495 | O57: 0.6375046979 | P57: 1.301029996 | Q57: =$A$5^2/($A57+Equations!$B$3) -> 2.850707714 | R57: =1/($A57+Equations!$B$3) -> 5.817770844 | S57: 0.105 | T57: 0.7 | U57: 1 | V57: 1.301029996 | W57: 0.910720997 | X57: 0.49 | Y57: =MMULT(K57:T57,Calcs!$A$134:$J$143) -> -0.07409760521 | Z57: -1.979476334 | AA57: 3.639545258 | AB57: -1.737769491 | AC57: -0.1814090793 | AD57: 0.1714738941 | AE57: 0.01360553716 | AF57: -0.01580179734 | AG57: -0.05177128177 | AH57: 0.1131258109 | AI57: =MMULT(Y57:AH57,TRANSPOSE(K57:T57)) -> 0.03209062308 | AJ57: =SQRT(IF(Calculator!$F$6=$A$84,1,0)+AI57) -> 0.1791385583 | AK57: =MMULT(U57:X57,Calcs!$A$152:$D$155) -> -24.96513395 | AL57: 19.67134334 | AM57: 1.531919703 | AN57: 5.283950521 | AO57: =MMULT(AK57:AN57,TRANSPOSE(U57:X57)) -> 4.612160989 | AP57: =SQRT(IF(Calculator!$F$6=$A$84,1,0)+AO57) -> 2.147594233
A58: 0.155 | B58: 2.383605396 | C58: 2.405997555 | D58: 2.361213237 | E58: =Equations!$B$4+L58*Equations!$B$5+M58*Equations!$B$6+N58*Equations!$B$7+O58*Equations!$B$8+P58*Equations!$B$9+Q58*Equations!$B$10+R58*Equations!$B$11+S58*Equations!$B$12+T58*Equations!$B$13 -> 2.383605396 | F58: =E58+AJ58*TINV(1-ERF(Calculator!$F$7/SQRT(2)),Equations!$F$16)*Equations!$D$16 -> 2.405997555 | G58: =E58-AJ58*TINV(1-ERF(Calculator!$F$7/SQRT(2)),Equations!$F$16)*Equations!$D$16 -> 2.361213237 | H58: =Equations!$B$33+X58*Equations!$B$30+W58*Equations!$B$31+V58*Equations!$B$32 -> 25.12333878 | I58: =H58+AP58*TINV(1-ERF(Calculator!$F$7/SQRT(2)),Equations!$F$36)*Equations!$D$36 -> 27.14310732 | J58: =H58-AP58*TINV(1-ERF(Calculator!$F$7/SQRT(2)),Equations!$F$36)*Equations!$D$36 -> 23.10357024 | K58: 1 | L58: 0.09881322817 | M58: 0.1411617545 | N58: 0.2016596493 | O58: 0.6375046979 | P58: 1.301029996 | Q58: =$A$5^2/($A58+Equations!$B$3) -> 2.20832986 | R58: =1/($A58+Equations!$B$3) -> 4.506795633 | S58: 0.155 | T58: 0.7 | U58: 1 | V58: 1.301029996 | W58: 0.910720997 | X58: 0.49 | Y58: =MMULT(K58:T58,Calcs!$A$134:$J$143) -> 0.4300699803 | Z58: -5.425500479 | AA58: 8.051960019 | AB58: 0.4258891937 | AC58: 0.2478878093 | AD58: -0.3142872398 | AE58: -0.003926694574 | AF58: 0.01093988988 | AG58: -3.431122582 | AH58: -0.4361443621 | AI58: =MMULT(Y58:AH58,TRANSPOSE(K58:T58)) -> 0.06911210684 | AJ58: =SQRT(IF(Calculator!$F$6=$A$84,1,0)+AI58) -> 0.2628918158 | AK58: =MMULT(U58:X58,Calcs!$A$152:$D$155) -> -24.96513395 | AL58: 19.67134334 | AM58: 1.531919703 | AN58: 5.283950521 | AO58: =MMULT(AK58:AN58,TRANSPOSE(U58:X58)) -> 4.612160989 | AP58: =SQRT(IF(Calculator!$F$6=$A$84,1,0)+AO58) -> 2.147594233
A59: 0.205 | B59: 2.245193003 | C59: 2.284611123 | D59: 2.205774884 | E59: =Equations!$B$4+L59*Equations!$B$5+M59*Equations!$B$6+N59*Equations!$B$7+O59*Equations!$B$8+P59*Equations!$B$9+Q59*Equations!$B$10+R59*Equations!$B$11+S59*Equations!$B$12+T59*Equations!$B$13 -> 2.245193003 | F59: =E59+AJ59*TINV(1-ERF(Calculator!$F$7/SQRT(2)),Equations!$F$16)*Equations!$D$16 -> 2.284611123 | G59: =E59-AJ59*TINV(1-ERF(Calculator!$F$7/SQRT(2)),Equations!$F$16)*Equations!$D$16 -> 2.205774884 | H59: =Equations!$B$33+X59*Equations!$B$30+W59*Equations!$B$31+V59*Equations!$B$32 -> 25.12333878 | I59: =H59+AP59*TINV(1-ERF(Calculator!$F$7/SQRT(2)),Equations!$F$36)*Equations!$D$36 -> 27.14310732 | J59: =H59-AP59*TINV(1-ERF(Calculator!$F$7/SQRT(2)),Equations!$F$36)*Equations!$D$36 -> 23.10357024 | K59: 1 | L59: 0.1306884631 | M59: 0.1866978044 | N59: 0.2667111491 | O59: 0.6375046979 | P59: 1.301029996 | Q59: =$A$5^2/($A59+Equations!$B$3) -> 1.802218367 | R59: =1/($A59+Equations!$B$3) -> 3.677996667 | S59: 0.205 | T59: 0.7 | U59: 1 | V59: 1.301029996 | W59: 0.910720997 | X59: 0.49 | Y59: =MMULT(K59:T59,Calcs!$A$134:$J$143) -> 1.047688185 | Z59: -9.193526759 | AA59: 12.51683354 | AB59: 3.880748334 | AC59: 0.7885719461 | AD59: -0.9744687489 | AE59: -0.03083370592 | AF59: 0.04995087297 | AG59: -7.956571391 | AH59: -1.051278513 | AI59: =MMULT(Y59:AH59,TRANSPOSE(K59:T59)) -> 0.214167717 | AJ59: =SQRT(IF(Calculator!$F$6=$A$84,1,0)+AI59) -> 0.4627825807 | AK59: =MMULT(U59:X59,Calcs!$A$152:$D$155) -> -24.96513395 | AL59: 19.67134334 | AM59: 1.531919703 | AN59: 5.283950521 | AO59: =MMULT(AK59:AN59,TRANSPOSE(U59:X59)) -> 4.612160989 | AP59: =SQRT(IF(Calculator!$F$6=$A$84,1,0)+AO59) -> 2.147594233
A60: 0.255 | B60: 2.181607201 | C60: 2.242558316 | D60: 2.120656087 | E60: =Equations!$B$4+L60*Equations!$B$5+M60*Equations!$B$6+N60*Equations!$B$7+O60*Equations!$B$8+P60*Equations!$B$9+Q60*Equations!$B$10+R60*Equations!$B$11+S60*Equations!$B$12+T60*Equations!$B$13 -> 2.181607201 | F60: =E60+AJ60*TINV(1-ERF(Calculator!$F$7/SQRT(2)),Equations!$F$16)*Equations!$D$16 -> 2.242558316 | G60: =E60-AJ60*TINV(1-ERF(Calculator!$F$7/SQRT(2)),Equations!$F$16)*Equations!$D$16 -> 2.120656087 | H60: =Equations!$B$33+X60*Equations!$B$30+W60*Equations!$B$31+V60*Equations!$B$32 -> 25.12333878 | I60: =H60+AP60*TINV(1-ERF(Calculator!$F$7/SQRT(2)),Equations!$F$36)*Equations!$D$36 -> 27.14310732 | J60: =H60-AP60*TINV(1-ERF(Calculator!$F$7/SQRT(2)),Equations!$F$36)*Equations!$D$36 -> 23.10357024 | K60: 1 | L60: 0.162563698 | M60: 0.2322338542 | N60: 0.3317626489 | O60: 0.6375046979 | P60: 1.301029996 | Q60: =$A$5^2/($A60+Equations!$B$3) -> 1.522272675 | R60: =1/($A60+Equations!$B$3) -> 3.106678929 | S60: 0.255 | T60: 0.7 | U60: 1 | V60: 1.301029996 | W60: 0.910720997 | X60: 0.49 | Y60: =MMULT(K60:T60,Calcs!$A$134:$J$143) -> 1.725888812 | Z60: -13.13350159 | AA60: 17.00971994 | AB60: 8.025106143 | AC60: 1.388736669 | AD60: -1.727790418 | AE60: -0.06274683233 | AF60: 0.09551363749 | AG60: -13.09403416 | AH60: -1.701583908 | AI60: =MMULT(Y60:AH60,TRANSPOSE(K60:T60)) -> 0.5120654811 | AJ60: =SQRT(IF(Calculator!$F$6=$A$84,1,0)+AI60) -> 0.7155875076 | AK60: =MMULT(U60:X60,Calcs!$A$152:$D$155) -> -24.96513395 | AL60: 19.67134334 | AM60: 1.531919703 | AN60: 5.283950521 | AO60: =MMULT(AK60:AN60,TRANSPOSE(U60:X60)) -> 4.612160989 | AP60: =SQRT(IF(Calculator!$F$6=$A$84,1,0)+AO60) -> 2.147594233
A62: Temperature: | B62: GT | C62: UI | D62: LI | E62: GT25 | F62: UI25 | G62: LI25 | H62: EA | I62: UIEA | J62: LIEA | K62: 25B | L62: 25X1 | M62: 25X2 | N62: 25X3 | O62: 25X4 | P62: 25X5 | Q62: 25X6 | R62: 25X7 | S62: 25X8 | T62: 25X9 | U62: EAB | V62: EAX1 | W62: EAX2 | X62: EAX3 | Y62: 25IntMat | Z62: 25IntMat | AA62: 25IntMat | AB62: 25IntMat | AC62: 25IntMat | AD62: 25IntMat | AE62: 25IntMat | AF62: 25IntMat | AG62: 25IntMat | AH62: 25IntMat | AI62: 25FullMat | AJ62: 25SQRT | AK62: EAIntMat | AL62: EAIntMat | AM62: EAIntMat | AN62: EAIntMat | AO62: EAFullMat | AP62: EASQRT
A63: 25 | B63: =IF($R$88="N/A",0,LOG(EXP(LN(10^E63)+H63*1000*4.184/8.31447*(1/($A63+273.15)-1/298.15)))) -> 5.101086804 | C63: =IF($R$88="N/A",0,LOG(EXP(LN(10^F63)+J63*1000*4.184/8.31447*(1/($A63+273.15)-1/298.15)))) -> 5.143986845 | D63: =IF($R$88="N/A",0,LOG(EXP(LN(10^G63)+I63*1000*4.184/8.31447*(1/($A63+273.15)-1/298.15)))) -> 5.058186764 | E63: =Equations!$B$4+L63*Equations!$B$5+M63*Equations!$B$6+N63*Equations!$B$7+O63*Equations!$B$8+P63*Equations!$B$9+Q63*Equations!$B$10+R63*Equations!$B$11+S63*Equations!$B$12+T63*Equations!$B$13 -> 5.101086804 | F63: =E63+AJ63*TINV(1-ERF(Calculator!$F$7/SQRT(2)),Equations!$F$16)*Equations!$D$16 -> 5.143986845 | G63: =E63-AJ63*TINV(1-ERF(Calculator!$F$7/SQRT(2)),Equations!$F$16)*Equations!$D$16 -> 5.058186764 | H63: =Equations!$B$33+X63*Equations!$B$30+W63*Equations!$B$31+V63*Equations!$B$32 -> 25.12333878 | I63: =H63+AP63*TINV(1-ERF(Calculator!$F$7/SQRT(2)),Equations!$F$36)*Equations!$D$36 -> 27.14310732 | J63: =H63-AP63*TINV(1-ERF(Calculator!$F$7/SQRT(2)),Equations!$F$36)*Equations!$D$36 -> 23.10357024 | K63: 1 | L63: =$A$5^2*$A$3*$A$7 -> 0 | M63: =$A$5*$A$3*$A$7 -> 0 | N63: =$A$3*$A$7 -> 0 | O63: =$A$5^2*$A$3 -> 0.6375046979 | P63: =$A$3 -> 1.301029996 | Q63: =$A$5^2/($A$7+Equations!$B$3) -> 7.325772778 | R63: =1/($A$7+Equations!$B$3) -> 14.95055669 | S63: =$A$7 -> 0 | T63: =$A$5 -> 0.7 | U63: 1 | V63: =$A$3 -> 1.301029996 | W63: =$A$3*$A$5 -> 0.910720997 | X63: =$A$5^2 -> 0.49 | Y63: =MMULT(K63:T63,Calcs!$A$134:$J$143) -> 0.3682306661 | Z63: 0.9967213896 | AA63: -4.932436921 | AB63: 10.80259186 | AC63: 0.3908469184 | AD63: -1.116206858 | AE63: -0.07361572942 | AF63: 0.09037734148 | AG63: -8.119301811 | AH63: 0.3951381384 | AI63: =MMULT(Y63:AH63,TRANSPOSE(K63:T63)) -> 0.2536749669 | AJ63: =SQRT(IF(Calculator!$F$6=$A$84,1,0)+AI63) -> 0.5036615599 | AK63: =MMULT(U63:X63,Calcs!$A$152:$D$155) -> -24.96513395 | AL63: 19.67134334 | AM63: 1.531919703 | AN63: 5.283950521 | AO63: =MMULT(AK63:AN63,TRANSPOSE(U63:X63)) -> 4.612160989 | AP63: =SQRT(IF(Calculator!$F$6=$A$84,1,0)+AO63) -> 2.147594233
A64: =A63+10 -> 35 | B64: =IF($R$88="N/A",0,LOG(EXP(LN(10^E64)+H64*1000*4.184/8.31447*(1/($A64+273.15)-1/298.15)))) -> 4.503471397 | C64: =IF($R$88="N/A",0,LOG(EXP(LN(10^F64)+J64*1000*4.184/8.31447*(1/($A64+273.15)-1/298.15)))) -> 4.594416199 | D64: =IF($R$88="N/A",0,LOG(EXP(LN(10^G64)+I64*1000*4.184/8.31447*(1/($A64+273.15)-1/298.15)))) -> 4.412526596 | E64: =Equations!$B$4+L64*Equations!$B$5+M64*Equations!$B$6+N64*Equations!$B$7+O64*Equations!$B$8+P64*Equations!$B$9+Q64*Equations!$B$10+R64*Equations!$B$11+S64*Equations!$B$12+T64*Equations!$B$13 -> 5.101086804 | F64: =E64+AJ64*TINV(1-ERF(Calculator!$F$7/SQRT(2)),Equations!$F$16)*Equations!$D$16 -> 5.143986845 | G64: =E64-AJ64*TINV(1-ERF(Calculator!$F$7/SQRT(2)),Equations!$F$16)*Equations!$D$16 -> 5.058186764 | H64: =Equations!$B$33+X64*Equations!$B$30+W64*Equations!$B$31+V64*Equations!$B$32 -> 25.12333878 | I64: =H64+AP64*TINV(1-ERF(Calculator!$F$7/SQRT(2)),Equations!$F$36)*Equations!$D$36 -> 27.14310732 | J64: =H64-AP64*TINV(1-ERF(Calculator!$F$7/SQRT(2)),Equations!$F$36)*Equations!$D$36 -> 23.10357024 | K64: 1 | L64: =$A$5^2*$A$3*$A$7 -> 0 | M64: =$A$5*$A$3*$A$7 -> 0 | N64: =$A$3*$A$7 -> 0 | O64: =$A$5^2*$A$3 -> 0.6375046979 | P64: =$A$3 -> 1.301029996 | Q64: =$A$5^2/($A$7+Equations!$B$3) -> 7.325772778 | R64: =1/($A$7+Equations!$B$3) -> 14.95055669 | S64: =$A$7 -> 0 | T64: =$A$5 -> 0.7 | U64: 1 | V64: =$A$3 -> 1.301029996 | W64: =$A$3*$A$5 -> 0.910720997 | X64: =$A$5^2 -> 0.49 | Y64: =MMULT(K64:T64,Calcs!$A$134:$J$143) -> 0.3682306661 | Z64: 0.9967213896 | AA64: -4.932436921 | AB64: 10.80259186 | AC64: 0.3908469184 | AD64: -1.116206858 | AE64: -0.07361572942 | AF64: 0.09037734148 | AG64: -8.119301811 | AH64: 0.3951381384 | AI64: =MMULT(Y64:AH64,TRANSPOSE(K64:T64)) -> 0.2536749669 | AJ64: =SQRT(IF(Calculator!$F$6=$A$84,1,0)+AI64) -> 0.5036615599 | AK64: =MMULT(U64:X64,Calcs!$A$152:$D$155) -> -24.96513395 | AL64: 19.67134334 | AM64: 1.531919703 | AN64: 5.283950521 | AO64: =MMULT(AK64:AN64,TRANSPOSE(U64:X64)) -> 4.612160989 | AP64: =SQRT(IF(Calculator!$F$6=$A$84,1,0)+AO64) -> 2.147594233
A65: =A64+10 -> 45 | B65: 3.943424144 | C65: 4.079393448 | D65: 3.80745484 | E65: =Equations!$B$4+L65*Equations!$B$5+M65*Equations!$B$6+N65*Equations!$B$7+O65*Equations!$B$8+P65*Equations!$B$9+Q65*Equations!$B$10+R65*Equations!$B$11+S65*Equations!$B$12+T65*Equations!$B$13 -> 5.101086804 | F65: =E65+AJ65*TINV(1-ERF(Calculator!$F$7/SQRT(2)),Equations!$F$16)*Equations!$D$16 -> 5.143986845 | G65: =E65-AJ65*TINV(1-ERF(Calculator!$F$7/SQRT(2)),Equations!$F$16)*Equations!$D$16 -> 5.058186764 | H65: =Equations!$B$33+X65*Equations!$B$30+W65*Equations!$B$31+V65*Equations!$B$32 -> 25.12333878 | I65: =H65+AP65*TINV(1-ERF(Calculator!$F$7/SQRT(2)),Equations!$F$36)*Equations!$D$36 -> 27.14310732 | J65: =H65-AP65*TINV(1-ERF(Calculator!$F$7/SQRT(2)),Equations!$F$36)*Equations!$D$36 -> 23.10357024 | K65: 1 | L65: 0 | M65: 0 | N65: 0 | O65: 0.6375046979 | P65: 1.301029996 | Q65: =$A$5^2/($A$7+Equations!$B$3) -> 7.325772778 | R65: =1/($A$7+Equations!$B$3) -> 14.95055669 | S65: 0 | T65: 0.7 | U65: 1 | V65: 1.301029996 | W65: 0.910720997 | X65: 0.49 | Y65: =MMULT(K65:T65,Calcs!$A$134:$J$143) -> 0.3682306661 | Z65: 0.9967213896 | AA65: -4.932436921 | AB65: 10.80259186 | AC65: 0.3908469184 | AD65: -1.116206858 | AE65: -0.07361572942 | AF65: 0.09037734148 | AG65: -8.119301811 | AH65: 0.3951381384 | AI65: =MMULT(Y65:AH65,TRANSPOSE(K65:T65)) -> 0.2536749669 | AJ65: =SQRT(IF(Calculator!$F$6=$A$84,1,0)+AI65) -> 0.5036615599 | AK65: =MMULT(U65:X65,Calcs!$A$152:$D$155) -> -24.96513395 | AL65: 19.67134334 | AM65: 1.531919703 | AN65: 5.283950521 | AO65: =MMULT(AK65:AN65,TRANSPOSE(U65:X65)) -> 4.612160989 | AP65: =SQRT(IF(Calculator!$F$6=$A$84,1,0)+AO65) -> 2.147594233
A66: 55 | B66: 3.417510504 | C66: 3.595760168 | D66: 3.239260839 | E66: =Equations!$B$4+L66*Equations!$B$5+M66*Equations!$B$6+N66*Equations!$B$7+O66*Equations!$B$8+P66*Equations!$B$9+Q66*Equations!$B$10+R66*Equations!$B$11+S66*Equations!$B$12+T66*Equations!$B$13 -> 5.101086804 | F66: =E66+AJ66*TINV(1-ERF(Calculator!$F$7/SQRT(2)),Equations!$F$16)*Equations!$D$16 -> 5.143986845 | G66: =E66-AJ66*TINV(1-ERF(Calculator!$F$7/SQRT(2)),Equations!$F$16)*Equations!$D$16 -> 5.058186764 | H66: =Equations!$B$33+X66*Equations!$B$30+W66*Equations!$B$31+V66*Equations!$B$32 -> 25.12333878 | I66: =H66+AP66*TINV(1-ERF(Calculator!$F$7/SQRT(2)),Equations!$F$36)*Equations!$D$36 -> 27.14310732 | J66: =H66-AP66*TINV(1-ERF(Calculator!$F$7/SQRT(2)),Equations!$F$36)*Equations!$D$36 -> 23.10357024 | K66: 1 | L66: 0 | M66: 0 | N66: 0 | O66: 0.6375046979 | P66: 1.301029996 | Q66: =$A$5^2/($A$7+Equations!$B$3) -> 7.325772778 | R66: =1/($A$7+Equations!$B$3) -> 14.95055669 | S66: 0 | T66: 0.7 | U66: 1 | V66: 1.301029996 | W66: 0.910720997 | X66: 0.49 | Y66: =MMULT(K66:T66,Calcs!$A$134:$J$143) -> 0.3682306661 | Z66: 0.9967213896 | AA66: -4.932436921 | AB66: 10.80259186 | AC66: 0.3908469184 | AD66: -1.116206858 | AE66: -0.07361572942 | AF66: 0.09037734148 | AG66: -8.119301811 | AH66: 0.3951381384 | AI66: =MMULT(Y66:AH66,TRANSPOSE(K66:T66)) -> 0.2536749669 | AJ66: =SQRT(IF(Calculator!$F$6=$A$84,1,0)+AI66) -> 0.5036615599 | AK66: =MMULT(U66:X66,Calcs!$A$152:$D$155) -> -24.96513395 | AL66: 19.67134334 | AM66: 1.531919703 | AN66: 5.283950521 | AO66: =MMULT(AK66:AN66,TRANSPOSE(U66:X66)) -> 4.612160989 | AP66: =SQRT(IF(Calculator!$F$6=$A$84,1,0)+AO66) -> 2.147594233
A67: 65 | B67: 2.92270221 | C67: 3.140731548 | D67: 2.704672871 | E67: =Equations!$B$4+L67*Equations!$B$5+M67*Equations!$B$6+N67*Equations!$B$7+O67*Equations!$B$8+P67*Equations!$B$9+Q67*Equations!$B$10+R67*Equations!$B$11+S67*Equations!$B$12+T67*Equations!$B$13 -> 5.101086804 | F67: =E67+AJ67*TINV(1-ERF(Calculator!$F$7/SQRT(2)),Equations!$F$16)*Equations!$D$16 -> 5.143986845 | G67: =E67-AJ67*TINV(1-ERF(Calculator!$F$7/SQRT(2)),Equations!$F$16)*Equations!$D$16 -> 5.058186764 | H67: =Equations!$B$33+X67*Equations!$B$30+W67*Equations!$B$31+V67*Equations!$B$32 -> 25.12333878 | I67: =H67+AP67*TINV(1-ERF(Calculator!$F$7/SQRT(2)),Equations!$F$36)*Equations!$D$36 -> 27.14310732 | J67: =H67-AP67*TINV(1-ERF(Calculator!$F$7/SQRT(2)),Equations!$F$36)*Equations!$D$36 -> 23.10357024 | K67: 1 | L67: 0 | M67: 0 | N67: 0 | O67: 0.6375046979 | P67: 1.301029996 | Q67: =$A$5^2/($A$7+Equations!$B$3) -> 7.325772778 | R67: =1/($A$7+Equations!$B$3) -> 14.95055669 | S67: 0 | T67: 0.7 | U67: 1 | V67: 1.301029996 | W67: 0.910720997 | X67: 0.49 | Y67: =MMULT(K67:T67,Calcs!$A$134:$J$143) -> 0.3682306661 | Z67: 0.9967213896 | AA67: -4.932436921 | AB67: 10.80259186 | AC67: 0.3908469184 | AD67: -1.116206858 | AE67: -0.07361572942 | AF67: 0.09037734148 | AG67: -8.119301811 | AH67: 0.3951381384 | AI67: =MMULT(Y67:AH67,TRANSPOSE(K67:T67)) -> 0.2536749669 | AJ67: =SQRT(IF(Calculator!$F$6=$A$84,1,0)+AI67) -> 0.5036615599 | AK67: =MMULT(U67:X67,Calcs!$A$152:$D$155) -> -24.96513395 | AL67: 19.67134334 | AM67: 1.531919703 | AN67: 5.283950521 | AO67: =MMULT(AK67:AN67,TRANSPOSE(U67:X67)) -> 4.612160989 | AP67: =SQRT(IF(Calculator!$F$6=$A$84,1,0)+AO67) -> 2.147594233
A68: 75 | B68: 2.456318922 | C68: 2.711842731 | D68: 2.200795112 | E68: =Equations!$B$4+L68*Equations!$B$5+M68*Equations!$B$6+N68*Equations!$B$7+O68*Equations!$B$8+P68*Equations!$B$9+Q68*Equations!$B$10+R68*Equations!$B$11+S68*Equations!$B$12+T68*Equations!$B$13 -> 5.101086804 | F68: =E68+AJ68*TINV(1-ERF(Calculator!$F$7/SQRT(2)),Equations!$F$16)*Equations!$D$16 -> 5.143986845 | G68: =E68-AJ68*TINV(1-ERF(Calculator!$F$7/SQRT(2)),Equations!$F$16)*Equations!$D$16 -> 5.058186764 | H68: =Equations!$B$33+X68*Equations!$B$30+W68*Equations!$B$31+V68*Equations!$B$32 -> 25.12333878 | I68: =H68+AP68*TINV(1-ERF(Calculator!$F$7/SQRT(2)),Equations!$F$36)*Equations!$D$36 -> 27.14310732 | J68: =H68-AP68*TINV(1-ERF(Calculator!$F$7/SQRT(2)),Equations!$F$36)*Equations!$D$36 -> 23.10357024 | K68: 1 | L68: 0 | M68: 0 | N68: 0 | O68: 0.6375046979 | P68: 1.301029996 | Q68: =$A$5^2/($A$7+Equations!$B$3) -> 7.325772778 | R68: =1/($A$7+Equations!$B$3) -> 14.95055669 | S68: 0 | T68: 0.7 | U68: 1 | V68: 1.301029996 | W68: 0.910720997 | X68: 0.49 | Y68: =MMULT(K68:T68,Calcs!$A$134:$J$143) -> 0.3682306661 | Z68: 0.9967213896 | AA68: -4.932436921 | AB68: 10.80259186 | AC68: 0.3908469184 | AD68: -1.116206858 | AE68: -0.07361572942 | AF68: 0.09037734148 | AG68: -8.119301811 | AH68: 0.3951381384 | AI68: =MMULT(Y68:AH68,TRANSPOSE(K68:T68)) -> 0.2536749669 | AJ68: =SQRT(IF(Calculator!$F$6=$A$84,1,0)+AI68) -> 0.5036615599 | AK68: =MMULT(U68:X68,Calcs!$A$152:$D$155) -> -24.96513395 | AL68: 19.67134334 | AM68: 1.531919703 | AN68: 5.283950521 | AO68: =MMULT(AK68:AN68,TRANSPOSE(U68:X68)) -> 4.612160989 | AP68: =SQRT(IF(Calculator!$F$6=$A$84,1,0)+AO68) -> 2.147594233
A69: 85 | B69: 2.015979654 | C69: 2.306904148 | D69: 1.725055159 | E69: =Equations!$B$4+L69*Equations!$B$5+M69*Equations!$B$6+N69*Equations!$B$7+O69*Equations!$B$8+P69*Equations!$B$9+Q69*Equations!$B$10+R69*Equations!$B$11+S69*Equations!$B$12+T69*Equations!$B$13 -> 5.101086804 | F69: =E69+AJ69*TINV(1-ERF(Calculator!$F$7/SQRT(2)),Equations!$F$16)*Equations!$D$16 -> 5.143986845 | G69: =E69-AJ69*TINV(1-ERF(Calculator!$F$7/SQRT(2)),Equations!$F$16)*Equations!$D$16 -> 5.058186764 | H69: =Equations!$B$33+X69*Equations!$B$30+W69*Equations!$B$31+V69*Equations!$B$32 -> 25.12333878 | I69: =H69+AP69*TINV(1-ERF(Calculator!$F$7/SQRT(2)),Equations!$F$36)*Equations!$D$36 -> 27.14310732 | J69: =H69-AP69*TINV(1-ERF(Calculator!$F$7/SQRT(2)),Equations!$F$36)*Equations!$D$36 -> 23.10357024 | K69: 1 | L69: 0 | M69: 0 | N69: 0 | O69: 0.6375046979 | P69: 1.301029996 | Q69: =$A$5^2/($A$7+Equations!$B$3) -> 7.325772778 | R69: =1/($A$7+Equations!$B$3) -> 14.95055669 | S69: 0 | T69: 0.7 | U69: 1 | V69: 1.301029996 | W69: 0.910720997 | X69: 0.49 | Y69: =MMULT(K69:T69,Calcs!$A$134:$J$143) -> 0.3682306661 | Z69: 0.9967213896 | AA69: -4.932436921 | AB69: 10.80259186 | AC69: 0.3908469184 | AD69: -1.116206858 | AE69: -0.07361572942 | AF69: 0.09037734148 | AG69: -8.119301811 | AH69: 0.3951381384 | AI69: =MMULT(Y69:AH69,TRANSPOSE(K69:T69)) -> 0.2536749669 | AJ69: =SQRT(IF(Calculator!$F$6=$A$84,1,0)+AI69) -> 0.5036615599 | AK69: =MMULT(U69:X69,Calcs!$A$152:$D$155) -> -24.96513395 | AL69: 19.67134334 | AM69: 1.531919703 | AN69: 5.283950521 | AO69: =MMULT(AK69:AN69,TRANSPOSE(U69:X69)) -> 4.612160989 | AP69: =SQRT(IF(Calculator!$F$6=$A$84,1,0)+AO69) -> 2.147594233
A70: 95 | B70: 1.599562117 | C70: 1.92396413 | D70: 1.275160104 | E70: =Equations!$B$4+L70*Equations!$B$5+M70*Equations!$B$6+N70*Equations!$B$7+O70*Equations!$B$8+P70*Equations!$B$9+Q70*Equations!$B$10+R70*Equations!$B$11+S70*Equations!$B$12+T70*Equations!$B$13 -> 5.101086804 | F70: =E70+AJ70*TINV(1-ERF(Calculator!$F$7/SQRT(2)),Equations!$F$16)*Equations!$D$16 -> 5.143986845 | G70: =E70-AJ70*TINV(1-ERF(Calculator!$F$7/SQRT(2)),Equations!$F$16)*Equations!$D$16 -> 5.058186764 | H70: =Equations!$B$33+X70*Equations!$B$30+W70*Equations!$B$31+V70*Equations!$B$32 -> 25.12333878 | I70: =H70+AP70*TINV(1-ERF(Calculator!$F$7/SQRT(2)),Equations!$F$36)*Equations!$D$36 -> 27.14310732 | J70: =H70-AP70*TINV(1-ERF(Calculator!$F$7/SQRT(2)),Equations!$F$36)*Equations!$D$36 -> 23.10357024 | K70: 1 | L70: 0 | M70: 0 | N70: 0 | O70: 0.6375046979 | P70: 1.301029996 | Q70: =$A$5^2/($A$7+Equations!$B$3) -> 7.325772778 | R70: =1/($A$7+Equations!$B$3) -> 14.95055669 | S70: 0 | T70: 0.7 | U70: 1 | V70: 1.301029996 | W70: 0.910720997 | X70: 0.49 | Y70: =MMULT(K70:T70,Calcs!$A$134:$J$143) -> 0.3682306661 | Z70: 0.9967213896 | AA70: -4.932436921 | AB70: 10.80259186 | AC70: 0.3908469184 | AD70: -1.116206858 | AE70: -0.07361572942 | AF70: 0.09037734148 | AG70: -8.119301811 | AH70: 0.3951381384 | AI70: =MMULT(Y70:AH70,TRANSPOSE(K70:T70)) -> 0.2536749669 | AJ70: =SQRT(IF(Calculator!$F$6=$A$84,1,0)+AI70) -> 0.5036615599 | AK70: =MMULT(U70:X70,Calcs!$A$152:$D$155) -> -24.96513395 | AL70: 19.67134334 | AM70: 1.531919703 | AN70: 5.283950521 | AO70: =MMULT(AK70:AN70,TRANSPOSE(U70:X70)) -> 4.612160989 | AP70: =SQRT(IF(Calculator!$F$6=$A$84,1,0)+AO70) -> 2.147594233
A71: 105 | B71: 1.205168514 | C71: 1.561277451 | D71: 0.8490595774 | E71: =Equations!$B$4+L71*Equations!$B$5+M71*Equations!$B$6+N71*Equations!$B$7+O71*Equations!$B$8+P71*Equations!$B$9+Q71*Equations!$B$10+R71*Equations!$B$11+S71*Equations!$B$12+T71*Equations!$B$13 -> 5.101086804 | F71: =E71+AJ71*TINV(1-ERF(Calculator!$F$7/SQRT(2)),Equations!$F$16)*Equations!$D$16 -> 5.143986845 | G71: =E71-AJ71*TINV(1-ERF(Calculator!$F$7/SQRT(2)),Equations!$F$16)*Equations!$D$16 -> 5.058186764 | H71: =Equations!$B$33+X71*Equations!$B$30+W71*Equations!$B$31+V71*Equations!$B$32 -> 25.12333878 | I71: =H71+AP71*TINV(1-ERF(Calculator!$F$7/SQRT(2)),Equations!$F$36)*Equations!$D$36 -> 27.14310732 | J71: =H71-AP71*TINV(1-ERF(Calculator!$F$7/SQRT(2)),Equations!$F$36)*Equations!$D$36 -> 23.10357024 | K71: 1 | L71: 0 | M71: 0 | N71: 0 | O71: 0.6375046979 | P71: 1.301029996 | Q71: =$A$5^2/($A$7+Equations!$B$3) -> 7.325772778 | R71: =1/($A$7+Equations!$B$3) -> 14.95055669 | S71: 0 | T71: 0.7 | U71: 1 | V71: 1.301029996 | W71: 0.910720997 | X71: 0.49 | Y71: =MMULT(K71:T71,Calcs!$A$134:$J$143) -> 0.3682306661 | Z71: 0.9967213896 | AA71: -4.932436921 | AB71: 10.80259186 | AC71: 0.3908469184 | AD71: -1.116206858 | AE71: -0.07361572942 | AF71: 0.09037734148 | AG71: -8.119301811 | AH71: 0.3951381384 | AI71: =MMULT(Y71:AH71,TRANSPOSE(K71:T71)) -> 0.2536749669 | AJ71: =SQRT(IF(Calculator!$F$6=$A$84,1,0)+AI71) -> 0.5036615599 | AK71: =MMULT(U71:X71,Calcs!$A$152:$D$155) -> -24.96513395 | AL71: 19.67134334 | AM71: 1.531919703 | AN71: 5.283950521 | AO71: =MMULT(AK71:AN71,TRANSPOSE(U71:X71)) -> 4.612160989 | AP71: =SQRT(IF(Calculator!$F$6=$A$84,1,0)+AO71) -> 2.147594233
A72: 115 | B72: 0.8310966224 | C72: 1.217278737 | D72: 0.4449145077 | E72: =Equations!$B$4+L72*Equations!$B$5+M72*Equations!$B$6+N72*Equations!$B$7+O72*Equations!$B$8+P72*Equations!$B$9+Q72*Equations!$B$10+R72*Equations!$B$11+S72*Equations!$B$12+T72*Equations!$B$13 -> 5.101086804 | F72: =E72+AJ72*TINV(1-ERF(Calculator!$F$7/SQRT(2)),Equations!$F$16)*Equations!$D$16 -> 5.143986845 | G72: =E72-AJ72*TINV(1-ERF(Calculator!$F$7/SQRT(2)),Equations!$F$16)*Equations!$D$16 -> 5.058186764 | H72: =Equations!$B$33+X72*Equations!$B$30+W72*Equations!$B$31+V72*Equations!$B$32 -> 25.12333878 | I72: =H72+AP72*TINV(1-ERF(Calculator!$F$7/SQRT(2)),Equations!$F$36)*Equations!$D$36 -> 27.14310732 | J72: =H72-AP72*TINV(1-ERF(Calculator!$F$7/SQRT(2)),Equations!$F$36)*Equations!$D$36 -> 23.10357024 | K72: 1 | L72: 0 | M72: 0 | N72: 0 | O72: 0.6375046979 | P72: 1.301029996 | Q72: =$A$5^2/($A$7+Equations!$B$3) -> 7.325772778 | R72: =1/($A$7+Equations!$B$3) -> 14.95055669 | S72: 0 | T72: 0.7 | U72: 1 | V72: 1.301029996 | W72: 0.910720997 | X72: 0.49 | Y72: =MMULT(K72:T72,Calcs!$A$134:$J$143) -> 0.3682306661 | Z72: 0.9967213896 | AA72: -4.932436921 | AB72: 10.80259186 | AC72: 0.3908469184 | AD72: -1.116206858 | AE72: -0.07361572942 | AF72: 0.09037734148 | AG72: -8.119301811 | AH72: 0.3951381384 | AI72: =MMULT(Y72:AH72,TRANSPOSE(K72:T72)) -> 0.2536749669 | AJ72: =SQRT(IF(Calculator!$F$6=$A$84,1,0)+AI72) -> 0.5036615599 | AK72: =MMULT(U72:X72,Calcs!$A$152:$D$155) -> -24.96513395 | AL72: 19.67134334 | AM72: 1.531919703 | AN72: 5.283950521 | AO72: =MMULT(AK72:AN72,TRANSPOSE(U72:X72)) -> 4.612160989 | AP72: =SQRT(IF(Calculator!$F$6=$A$84,1,0)+AO72) -> 2.147594233
A73: 125 | B73: 0.4758152313 | C73: 0.8905598785 | D73: 0.0610705842 | E73: =Equations!$B$4+L73*Equations!$B$5+M73*Equations!$B$6+N73*Equations!$B$7+O73*Equations!$B$8+P73*Equations!$B$9+Q73*Equations!$B$10+R73*Equations!$B$11+S73*Equations!$B$12+T73*Equations!$B$13 -> 5.101086804 | F73: =E73+AJ73*TINV(1-ERF(Calculator!$F$7/SQRT(2)),Equations!$F$16)*Equations!$D$16 -> 5.143986845 | G73: =E73-AJ73*TINV(1-ERF(Calculator!$F$7/SQRT(2)),Equations!$F$16)*Equations!$D$16 -> 5.058186764 | H73: =Equations!$B$33+X73*Equations!$B$30+W73*Equations!$B$31+V73*Equations!$B$32 -> 25.12333878 | I73: =H73+AP73*TINV(1-ERF(Calculator!$F$7/SQRT(2)),Equations!$F$36)*Equations!$D$36 -> 27.14310732 | J73: =H73-AP73*TINV(1-ERF(Calculator!$F$7/SQRT(2)),Equations!$F$36)*Equations!$D$36 -> 23.10357024 | K73: 1 | L73: 0 | M73: 0 | N73: 0 | O73: 0.6375046979 | P73: 1.301029996 | Q73: =$A$5^2/($A$7+Equations!$B$3) -> 7.325772778 | R73: =1/($A$7+Equations!$B$3) -> 14.95055669 | S73: 0 | T73: 0.7 | U73: 1 | V73: 1.301029996 | W73: 0.910720997 | X73: 0.49 | Y73: =MMULT(K73:T73,Calcs!$A$134:$J$143) -> 0.3682306661 | Z73: 0.9967213896 | AA73: -4.932436921 | AB73: 10.80259186 | AC73: 0.3908469184 | AD73: -1.116206858 | AE73: -0.07361572942 | AF73: 0.09037734148 | AG73: -8.119301811 | AH73: 0.3951381384 | AI73: =MMULT(Y73:AH73,TRANSPOSE(K73:T73)) -> 0.2536749669 | AJ73: =SQRT(IF(Calculator!$F$6=$A$84,1,0)+AI73) -> 0.5036615599 | AK73: =MMULT(U73:X73,Calcs!$A$152:$D$155) -> -24.96513395 | AL73: 19.67134334 | AM73: 1.531919703 | AN73: 5.283950521 | AO73: =MMULT(AK73:AN73,TRANSPOSE(U73:X73)) -> 4.612160989 | AP73: =SQRT(IF(Calculator!$F$6=$A$84,1,0)+AO73) -> 2.147594233
A74: 135 | B74: 0.1379431942 | C74: 0.5798507641 | D74: -0.3039643757 | E74: =Equations!$B$4+L74*Equations!$B$5+M74*Equations!$B$6+N74*Equations!$B$7+O74*Equations!$B$8+P74*Equations!$B$9+Q74*Equations!$B$10+R74*Equations!$B$11+S74*Equations!$B$12+T74*Equations!$B$13 -> 5.101086804 | F74: =E74+AJ74*TINV(1-ERF(Calculator!$F$7/SQRT(2)),Equations!$F$16)*Equations!$D$16 -> 5.143986845 | G74: =E74-AJ74*TINV(1-ERF(Calculator!$F$7/SQRT(2)),Equations!$F$16)*Equations!$D$16 -> 5.058186764 | H74: =Equations!$B$33+X74*Equations!$B$30+W74*Equations!$B$31+V74*Equations!$B$32 -> 25.12333878 | I74: =H74+AP74*TINV(1-ERF(Calculator!$F$7/SQRT(2)),Equations!$F$36)*Equations!$D$36 -> 27.14310732 | J74: =H74-AP74*TINV(1-ERF(Calculator!$F$7/SQRT(2)),Equations!$F$36)*Equations!$D$36 -> 23.10357024 | K74: 1 | L74: 0 | M74: 0 | N74: 0 | O74: 0.6375046979 | P74: 1.301029996 | Q74: =$A$5^2/($A$7+Equations!$B$3) -> 7.325772778 | R74: =1/($A$7+Equations!$B$3) -> 14.95055669 | S74: 0 | T74: 0.7 | U74: 1 | V74: 1.301029996 | W74: 0.910720997 | X74: 0.49 | Y74: =MMULT(K74:T74,Calcs!$A$134:$J$143) -> 0.3682306661 | Z74: 0.9967213896 | AA74: -4.932436921 | AB74: 10.80259186 | AC74: 0.3908469184 | AD74: -1.116206858 | AE74: -0.07361572942 | AF74: 0.09037734148 | AG74: -8.119301811 | AH74: 0.3951381384 | AI74: =MMULT(Y74:AH74,TRANSPOSE(K74:T74)) -> 0.2536749669 | AJ74: =SQRT(IF(Calculator!$F$6=$A$84,1,0)+AI74) -> 0.5036615599 | AK74: =MMULT(U74:X74,Calcs!$A$152:$D$155) -> -24.96513395 | AL74: 19.67134334 | AM74: 1.531919703 | AN74: 5.283950521 | AO74: =MMULT(AK74:AN74,TRANSPOSE(U74:X74)) -> 4.612160989 | AP74: =SQRT(IF(Calculator!$F$6=$A$84,1,0)+AO74) -> 2.147594233
A75: 145 | B75: -0.1837685159 | C75: 0.2840027816 | D75: -0.6515398135 | E75: =Equations!$B$4+L75*Equations!$B$5+M75*Equations!$B$6+N75*Equations!$B$7+O75*Equations!$B$8+P75*Equations!$B$9+Q75*Equations!$B$10+R75*Equations!$B$11+S75*Equations!$B$12+T75*Equations!$B$13 -> 5.101086804 | F75: =E75+AJ75*TINV(1-ERF(Calculator!$F$7/SQRT(2)),Equations!$F$16)*Equations!$D$16 -> 5.143986845 | G75: =E75-AJ75*TINV(1-ERF(Calculator!$F$7/SQRT(2)),Equations!$F$16)*Equations!$D$16 -> 5.058186764 | H75: =Equations!$B$33+X75*Equations!$B$30+W75*Equations!$B$31+V75*Equations!$B$32 -> 25.12333878 | I75: =H75+AP75*TINV(1-ERF(Calculator!$F$7/SQRT(2)),Equations!$F$36)*Equations!$D$36 -> 27.14310732 | J75: =H75-AP75*TINV(1-ERF(Calculator!$F$7/SQRT(2)),Equations!$F$36)*Equations!$D$36 -> 23.10357024 | K75: 1 | L75: 0 | M75: 0 | N75: 0 | O75: 0.6375046979 | P75: 1.301029996 | Q75: =$A$5^2/($A$7+Equations!$B$3) -> 7.325772778 | R75: =1/($A$7+Equations!$B$3) -> 14.95055669 | S75: 0 | T75: 0.7 | U75: 1 | V75: 1.301029996 | W75: 0.910720997 | X75: 0.49 | Y75: =MMULT(K75:T75,Calcs!$A$134:$J$143) -> 0.3682306661 | Z75: 0.9967213896 | AA75: -4.932436921 | AB75: 10.80259186 | AC75: 0.3908469184 | AD75: -1.116206858 | AE75: -0.07361572942 | AF75: 0.09037734148 | AG75: -8.119301811 | AH75: 0.3951381384 | AI75: =MMULT(Y75:AH75,TRANSPOSE(K75:T75)) -> 0.2536749669 | AJ75: =SQRT(IF(Calculator!$F$6=$A$84,1,0)+AI75) -> 0.5036615599 | AK75: =MMULT(U75:X75,Calcs!$A$152:$D$155) -> -24.96513395 | AL75: 19.67134334 | AM75: 1.531919703 | AN75: 5.283950521 | AO75: =MMULT(AK75:AN75,TRANSPOSE(U75:X75)) -> 4.612160989 | AP75: =SQRT(IF(Calculator!$F$6=$A$84,1,0)+AO75) -> 2.147594233
A76: 155 | B76: -0.4904522354 | C76: 0.001974627847 | D76: -0.9828790986 | E76: =Equations!$B$4+L76*Equations!$B$5+M76*Equations!$B$6+N76*Equations!$B$7+O76*Equations!$B$8+P76*Equations!$B$9+Q76*Equations!$B$10+R76*Equations!$B$11+S76*Equations!$B$12+T76*Equations!$B$13 -> 5.101086804 | F76: =E76+AJ76*TINV(1-ERF(Calculator!$F$7/SQRT(2)),Equations!$F$16)*Equations!$D$16 -> 5.143986845 | G76: =E76-AJ76*TINV(1-ERF(Calculator!$F$7/SQRT(2)),Equations!$F$16)*Equations!$D$16 -> 5.058186764 | H76: =Equations!$B$33+X76*Equations!$B$30+W76*Equations!$B$31+V76*Equations!$B$32 -> 25.12333878 | I76: =H76+AP76*TINV(1-ERF(Calculator!$F$7/SQRT(2)),Equations!$F$36)*Equations!$D$36 -> 27.14310732 | J76: =H76-AP76*TINV(1-ERF(Calculator!$F$7/SQRT(2)),Equations!$F$36)*Equations!$D$36 -> 23.10357024 | K76: 1 | L76: 0 | M76: 0 | N76: 0 | O76: 0.6375046979 | P76: 1.301029996 | Q76: =$A$5^2/($A$7+Equations!$B$3) -> 7.325772778 | R76: =1/($A$7+Equations!$B$3) -> 14.95055669 | S76: 0 | T76: 0.7 | U76: 1 | V76: 1.301029996 | W76: 0.910720997 | X76: 0.49 | Y76: =MMULT(K76:T76,Calcs!$A$134:$J$143) -> 0.3682306661 | Z76: 0.9967213896 | AA76: -4.932436921 | AB76: 10.80259186 | AC76: 0.3908469184 | AD76: -1.116206858 | AE76: -0.07361572942 | AF76: 0.09037734148 | AG76: -8.119301811 | AH76: 0.3951381384 | AI76: =MMULT(Y76:AH76,TRANSPOSE(K76:T76)) -> 0.2536749669 | AJ76: =SQRT(IF(Calculator!$F$6=$A$84,1,0)+AI76) -> 0.5036615599 | AK76: =MMULT(U76:X76,Calcs!$A$152:$D$155) -> -24.96513395 | AL76: 19.67134334 | AM76: 1.531919703 | AN76: 5.283950521 | AO76: =MMULT(AK76:AN76,TRANSPOSE(U76:X76)) -> 4.612160989 | AP76: =SQRT(IF(Calculator!$F$6=$A$84,1,0)+AO76) -> 2.147594233
A77: 165 | B77: -0.7831369262 | C77: -0.2671799368 | D77: -1.299093916 | E77: =Equations!$B$4+L77*Equations!$B$5+M77*Equations!$B$6+N77*Equations!$B$7+O77*Equations!$B$8+P77*Equations!$B$9+Q77*Equations!$B$10+R77*Equations!$B$11+S77*Equations!$B$12+T77*Equations!$B$13 -> 5.101086804 | F77: =E77+AJ77*TINV(1-ERF(Calculator!$F$7/SQRT(2)),Equations!$F$16)*Equations!$D$16 -> 5.143986845 | G77: =E77-AJ77*TINV(1-ERF(Calculator!$F$7/SQRT(2)),Equations!$F$16)*Equations!$D$16 -> 5.058186764 | H77: =Equations!$B$33+X77*Equations!$B$30+W77*Equations!$B$31+V77*Equations!$B$32 -> 25.12333878 | I77: =H77+AP77*TINV(1-ERF(Calculator!$F$7/SQRT(2)),Equations!$F$36)*Equations!$D$36 -> 27.14310732 | J77: =H77-AP77*TINV(1-ERF(Calculator!$F$7/SQRT(2)),Equations!$F$36)*Equations!$D$36 -> 23.10357024 | K77: 1 | L77: 0 | M77: 0 | N77: 0 | O77: 0.6375046979 | P77: 1.301029996 | Q77: =$A$5^2/($A$7+Equations!$B$3) -> 7.325772778 | R77: =1/($A$7+Equations!$B$3) -> 14.95055669 | S77: 0 | T77: 0.7 | U77: 1 | V77: 1.301029996 | W77: 0.910720997 | X77: 0.49 | Y77: =MMULT(K77:T77,Calcs!$A$134:$J$143) -> 0.3682306661 | Z77: 0.9967213896 | AA77: -4.932436921 | AB77: 10.80259186 | AC77: 0.3908469184 | AD77: -1.116206858 | AE77: -0.07361572942 | AF77: 0.09037734148 | AG77: -8.119301811 | AH77: 0.3951381384 | AI77: =MMULT(Y77:AH77,TRANSPOSE(K77:T77)) -> 0.2536749669 | AJ77: =SQRT(IF(Calculator!$F$6=$A$84,1,0)+AI77) -> 0.5036615599 | AK77: =MMULT(U77:X77,Calcs!$A$152:$D$155) -> -24.96513395 | AL77: 19.67134334 | AM77: 1.531919703 | AN77: 5.283950521 | AO77: =MMULT(AK77:AN77,TRANSPOSE(U77:X77)) -> 4.612160989 | AP77: =SQRT(IF(Calculator!$F$6=$A$84,1,0)+AO77) -> 2.147594233
A78: 175 | B78: -1.06275971 | C78: -0.5243226945 | D78: -1.601196725 | E78: =Equations!$B$4+L78*Equations!$B$5+M78*Equations!$B$6+N78*Equations!$B$7+O78*Equations!$B$8+P78*Equations!$B$9+Q78*Equations!$B$10+R78*Equations!$B$11+S78*Equations!$B$12+T78*Equations!$B$13 -> 5.101086804 | F78: =E78+AJ78*TINV(1-ERF(Calculator!$F$7/SQRT(2)),Equations!$F$16)*Equations!$D$16 -> 5.143986845 | G78: =E78-AJ78*TINV(1-ERF(Calculator!$F$7/SQRT(2)),Equations!$F$16)*Equations!$D$16 -> 5.058186764 | H78: =Equations!$B$33+X78*Equations!$B$30+W78*Equations!$B$31+V78*Equations!$B$32 -> 25.12333878 | I78: =H78+AP78*TINV(1-ERF(Calculator!$F$7/SQRT(2)),Equations!$F$36)*Equations!$D$36 -> 27.14310732 | J78: =H78-AP78*TINV(1-ERF(Calculator!$F$7/SQRT(2)),Equations!$F$36)*Equations!$D$36 -> 23.10357024 | K78: 1 | L78: 0 | M78: 0 | N78: 0 | O78: 0.6375046979 | P78: 1.301029996 | Q78: =$A$5^2/($A$7+Equations!$B$3) -> 7.325772778 | R78: =1/($A$7+Equations!$B$3) -> 14.95055669 | S78: 0 | T78: 0.7 | U78: 1 | V78: 1.301029996 | W78: 0.910720997 | X78: 0.49 | Y78: =MMULT(K78:T78,Calcs!$A$134:$J$143) -> 0.3682306661 | Z78: 0.9967213896 | AA78: -4.932436921 | AB78: 10.80259186 | AC78: 0.3908469184 | AD78: -1.116206858 | AE78: -0.07361572942 | AF78: 0.09037734148 | AG78: -8.119301811 | AH78: 0.3951381384 | AI78: =MMULT(Y78:AH78,TRANSPOSE(K78:T78)) -> 0.2536749669 | AJ78: =SQRT(IF(Calculator!$F$6=$A$84,1,0)+AI78) -> 0.5036615599 | AK78: =MMULT(U78:X78,Calcs!$A$152:$D$155) -> -24.96513395 | AL78: 19.67134334 | AM78: 1.531919703 | AN78: 5.283950521 | AO78: =MMULT(AK78:AN78,TRANSPOSE(U78:X78)) -> 4.612160989 | AP78: =SQRT(IF(Calculator!$F$6=$A$84,1,0)+AO78) -> 2.147594233
A79: 185 | B79: -1.330175889 | C79: -0.7702401872 | D79: -1.890111591 | E79: =Equations!$B$4+L79*Equations!$B$5+M79*Equations!$B$6+N79*Equations!$B$7+O79*Equations!$B$8+P79*Equations!$B$9+Q79*Equations!$B$10+R79*Equations!$B$11+S79*Equations!$B$12+T79*Equations!$B$13 -> 5.101086804 | F79: =E79+AJ79*TINV(1-ERF(Calculator!$F$7/SQRT(2)),Equations!$F$16)*Equations!$D$16 -> 5.143986845 | G79: =E79-AJ79*TINV(1-ERF(Calculator!$F$7/SQRT(2)),Equations!$F$16)*Equations!$D$16 -> 5.058186764 | H79: =Equations!$B$33+X79*Equations!$B$30+W79*Equations!$B$31+V79*Equations!$B$32 -> 25.12333878 | I79: =H79+AP79*TINV(1-ERF(Calculator!$F$7/SQRT(2)),Equations!$F$36)*Equations!$D$36 -> 27.14310732 | J79: =H79-AP79*TINV(1-ERF(Calculator!$F$7/SQRT(2)),Equations!$F$36)*Equations!$D$36 -> 23.10357024 | K79: 1 | L79: 0 | M79: 0 | N79: 0 | O79: 0.6375046979 | P79: 1.301029996 | Q79: =$A$5^2/($A$7+Equations!$B$3) -> 7.325772778 | R79: =1/($A$7+Equations!$B$3) -> 14.95055669 | S79: 0 | T79: 0.7 | U79: 1 | V79: 1.301029996 | W79: 0.910720997 | X79: 0.49 | Y79: =MMULT(K79:T79,Calcs!$A$134:$J$143) -> 0.3682306661 | Z79: 0.9967213896 | AA79: -4.932436921 | AB79: 10.80259186 | AC79: 0.3908469184 | AD79: -1.116206858 | AE79: -0.07361572942 | AF79: 0.09037734148 | AG79: -8.119301811 | AH79: 0.3951381384 | AI79: =MMULT(Y79:AH79,TRANSPOSE(K79:T79)) -> 0.2536749669 | AJ79: =SQRT(IF(Calculator!$F$6=$A$84,1,0)+AI79) -> 0.5036615599 | AK79: =MMULT(U79:X79,Calcs!$A$152:$D$155) -> -24.96513395 | AL79: 19.67134334 | AM79: 1.531919703 | AN79: 5.283950521 | AO79: =MMULT(AK79:AN79,TRANSPOSE(U79:X79)) -> 4.612160989 | AP79: =SQRT(IF(Calculator!$F$6=$A$84,1,0)+AO79) -> 2.147594233
A80: 195 | B80: -1.586167688 | C80: -1.005651753 | D80: -2.166683623 | E80: =Equations!$B$4+L80*Equations!$B$5+M80*Equations!$B$6+N80*Equations!$B$7+O80*Equations!$B$8+P80*Equations!$B$9+Q80*Equations!$B$10+R80*Equations!$B$11+S80*Equations!$B$12+T80*Equations!$B$13 -> 5.101086804 | F80: =E80+AJ80*TINV(1-ERF(Calculator!$F$7/SQRT(2)),Equations!$F$16)*Equations!$D$16 -> 5.143986845 | G80: =E80-AJ80*TINV(1-ERF(Calculator!$F$7/SQRT(2)),Equations!$F$16)*Equations!$D$16 -> 5.058186764 | H80: =Equations!$B$33+X80*Equations!$B$30+W80*Equations!$B$31+V80*Equations!$B$32 -> 25.12333878 | I80: =H80+AP80*TINV(1-ERF(Calculator!$F$7/SQRT(2)),Equations!$F$36)*Equations!$D$36 -> 27.14310732 | J80: =H80-AP80*TINV(1-ERF(Calculator!$F$7/SQRT(2)),Equations!$F$36)*Equations!$D$36 -> 23.10357024 | K80: 1 | L80: 0 | M80: 0 | N80: 0 | O80: 0.6375046979 | P80: 1.301029996 | Q80: =$A$5^2/($A$7+Equations!$B$3) -> 7.325772778 | R80: =1/($A$7+Equations!$B$3) -> 14.95055669 | S80: 0 | T80: 0.7 | U80: 1 | V80: 1.301029996 | W80: 0.910720997 | X80: 0.49 | Y80: =MMULT(K80:T80,Calcs!$A$134:$J$143) -> 0.3682306661 | Z80: 0.9967213896 | AA80: -4.932436921 | AB80: 10.80259186 | AC80: 0.3908469184 | AD80: -1.116206858 | AE80: -0.07361572942 | AF80: 0.09037734148 | AG80: -8.119301811 | AH80: 0.3951381384 | AI80: =MMULT(Y80:AH80,TRANSPOSE(K80:T80)) -> 0.2536749669 | AJ80: =SQRT(IF(Calculator!$F$6=$A$84,1,0)+AI80) -> 0.5036615599 | AK80: =MMULT(U80:X80,Calcs!$A$152:$D$155) -> -24.96513395 | AL80: 19.67134334 | AM80: 1.531919703 | AN80: 5.283950521 | AO80: =MMULT(AK80:AN80,TRANSPOSE(U80:X80)) -> 4.612160989 | AP80: =SQRT(IF(Calculator!$F$6=$A$84,1,0)+AO80) -> 2.147594233
A81: 200 | B81: -1.710105808 | C81: -1.119625977 | D81: -2.300585638 | E81: =Equations!$B$4+L81*Equations!$B$5+M81*Equations!$B$6+N81*Equations!$B$7+O81*Equations!$B$8+P81*Equations!$B$9+Q81*Equations!$B$10+R81*Equations!$B$11+S81*Equations!$B$12+T81*Equations!$B$13 -> 5.101086804 | F81: =E81+AJ81*TINV(1-ERF(Calculator!$F$7/SQRT(2)),Equations!$F$16)*Equations!$D$16 -> 5.143986845 | G81: =E81-AJ81*TINV(1-ERF(Calculator!$F$7/SQRT(2)),Equations!$F$16)*Equations!$D$16 -> 5.058186764 | H81: =Equations!$B$33+X81*Equations!$B$30+W81*Equations!$B$31+V81*Equations!$B$32 -> 25.12333878 | I81: =H81+AP81*TINV(1-ERF(Calculator!$F$7/SQRT(2)),Equations!$F$36)*Equations!$D$36 -> 27.14310732 | J81: =H81-AP81*TINV(1-ERF(Calculator!$F$7/SQRT(2)),Equations!$F$36)*Equations!$D$36 -> 23.10357024 | K81: 1 | L81: 0 | M81: 0 | N81: 0 | O81: 0.6375046979 | P81: 1.301029996 | Q81: =$A$5^2/($A$7+Equations!$B$3) -> 7.325772778 | R81: =1/($A$7+Equations!$B$3) -> 14.95055669 | S81: 0 | T81: 0.7 | U81: 1 | V81: 1.301029996 | W81: 0.910720997 | X81: 0.49 | Y81: =MMULT(K81:T81,Calcs!$A$134:$J$143) -> 0.3682306661 | Z81: 0.9967213896 | AA81: -4.932436921 | AB81: 10.80259186 | AC81: 0.3908469184 | AD81: -1.116206858 | AE81: -0.07361572942 | AF81: 0.09037734148 | AG81: -8.119301811 | AH81: 0.3951381384 | AI81: =MMULT(Y81:AH81,TRANSPOSE(K81:T81)) -> 0.2536749669 | AJ81: =SQRT(IF(Calculator!$F$6=$A$84,1,0)+AI81) -> 0.5036615599 | AK81: =MMULT(U81:X81,Calcs!$A$152:$D$155) -> -24.96513395 | AL81: 19.67134334 | AM81: 1.531919703 | AN81: 5.283950521 | AO81: =MMULT(AK81:AN81,TRANSPOSE(U81:X81)) -> 4.612160989 | AP81: =SQRT(IF(Calculator!$F$6=$A$84,1,0)+AO81) -> 2.147594233
A83: Confidence | B83: Temperature (°F): | C83: 2 | D83: =LOG(10) -> 1 | E83: =LOG(15) -> 1.176091259 | F83: =LOG(20) -> 1.301029996 | G83: =LOG(25) -> 1.397940009 | J83: 10m | K83: 1h | L83: 6h | M83: 1d | N83: 1w | O83: 4w
A84: Prediction | B84: Temperature (°C): | C84: 7 | D84: =D83 -> 1 | E84: =LOG(15) -> 1.176091259 | F84: =LOG(20) -> 1.301029996 | G84: =LOG(25) -> 1.397940009 | I84: 0 | J84: =LOG(3600/6) -> 2.77815125 | K84: =LOG(3600) -> 3.556302501 | L84: =LOG(6*3600) -> 4.334453751 | M84: =LOG(24*3600) -> 4.936513742 | N84: =LOG(7*24*3600) -> 5.781611782 | O84: =LOG(4*7*24*3600) -> 6.383671774 | P84: 0 | Q84: 0 | R84: =IF(Calculator!$C$5=$B$84,A63,IF(Calculator!$C$5=$B$85,A63+273,IF(Calculator!$C$5=$B$83,A63*9/5+32,273))) -> 25
B85: Temperature (K): | H85: NaCl/SiO2: | I85: 1.4 | J85: =LOG(3600/6) -> 2.77815125 | K85: =LOG(3600) -> 3.556302501 | L85: =LOG(6*3600) -> 4.334453751 | M85: =LOG(24*3600) -> 4.936513742 | N85: =LOG(7*24*3600) -> 5.781611782 | O85: =LOG(4*7*24*3600) -> 6.383671774 | P85: 1 | Q85: 0.2 | R85: =IF(Calculator!$C$5=$B$84,A81,IF(Calculator!$C$5=$B$85,A81+273,IF(Calculator!$C$5=$B$83,A81*9/5+32,273))) -> 200
A86: Cl-/Na+: | C86: T (°C) | D86: =A9-273.15 -> 25 | E86: [SiO2] | F86: =ROUND(10^A3,2) -> 20 | H86: NaCl (m): | N86: T (DPT): | O86: =IF(Calculator!$C$5=$B$84,D86,IF(Calculator!$C$5=$B$85,D86+273.15,IF(Calculator!$C$5=$B$83,D86*9/5+32,273.15))) -> 25
A87: pH: | C87: Cl/Na | D87: =A5 -> 0.7 | E87: NaCl/SiO2 | F87: =ROUND(A7,4) -> 0 | H87: NaCl (ppm): | N87: Temperature X Axis
A88: SiO2 data pts: | D88: NaCl data pts: | G88: Cl/Na data pts: | J88: T data pts | L88: Xaxis T | N88: =IF(Calculator!$C$5=$B$84,A63,IF(Calculator!$C$5=$B$85,A63+273.15,IF(Calculator!$C$5=$B$83,A63*9/5+32,273.15))) -> 25 | Q88: Log(s) | R88: =IF(OR(Calculator!F2<0,AND(Calculator!C3='Chart Data'!A86,Calculator!F3<0),AND(Calculator!C3='Chart Data'!A87,Calculator!F3>10.3),Calculator!F4<0,Calculator!F4>30,'Chart Data'!D86<0),"N/A",ROUND(B3,3)) -> 5.101 | S88: =IF(OR(Calculator!F2<0,AND(Calculator!C3='Chart Data'!A86,Calculator!F3<0),AND(Calculator!C3='Chart Data'!A87,Calculator!F3>10.3),Calculator!F4<0,Calculator!F4>30,'Chart Data'!D86<0),"N/A",ROUND(C3,3)) -> 5.144 | T88: =IF(OR(Calculator!F2<0,AND(Calculator!C3='Chart Data'!A86,Calculator!F3<0),AND(Calculator!C3='Chart Data'!A87,Calculator!F3>10.3),Calculator!F4<0,Calculator!F4>30,'Chart Data'!D86<0),"N/A",ROUND(D3,3)) -> 5.058
A89: =IF($D$86=25,IFERROR(INDEX(INDIRECT("XDPT" & $D$87 & $F$87),ROW($A1)),0),IFERROR(INDEX(INDIRECT("XDPT" & $D$87 & $F$87 & $D$86),ROW($A1)),0)) -> 1.301029996 | B89: =IF($D$86=25,IFERROR(INDEX(INDIRECT("YDPT" & $D$87 & $F$87),ROW($A1)),0),IFERROR(INDEX(INDIRECT("YDPT" & $D$87 & $F$87 & $D$86),ROW($A1)),0)) -> 5.159621326 | D89: =IF($D$86=25,IFERROR(INDEX(INDIRECT("XDPT" & $D$87 & $F$86),ROW($A1)),0),IF(AND($D$87=0,$F$87=0),IFERROR(INDEX(INDIRECT("XDPTNaCl" & $D$87 & $F$86 & $D$86),ROW($A1)),0),IFERROR(INDEX(INDIRECT("XDPT" & $D$87 & $F$86 & $D$86),ROW($A1)),0))) -> 0 | E89: =IF($D$86=25,IFERROR(INDEX(INDIRECT("YDPT" & $D$87 & $F$86),ROW($A1)),0),IF(AND($D$87=0,$F$87=0),IFERROR(INDEX(INDIRECT("YDPTNaCl" & $D$87 & $F$86 & $D$86),ROW($A1)),0),IFERROR(INDEX(INDIRECT("YDPT" & $D$87 & $F$86 & $D$86),ROW($A1)),0))) -> 5.159621326 | G89: =IF($D$86=25,IFERROR(INDEX(INDIRECT("XDPT" & $F$87 & $F$86),ROW($A1)),0),IF(AND($D$87=0,$F$87=0),IFERROR(INDEX(INDIRECT("XDPTClNa" & $F$87 & $F$86 & $D$86),ROW($A1)),0),IFERROR(INDEX(INDIRECT("XDPT" & $F$87 & $F$86 & $D$86),ROW($A1)),0))) -> 0.7 | H89: =IF($D$86=25,IFERROR(INDEX(INDIRECT("YDPT" & $F$87 & $F$86),ROW($A1)),0),IF(AND($D$87=0,$F$87=0),IFERROR(INDEX(INDIRECT("YDPTClNa" & $F$87 & $F$86 & $D$86),ROW($A1)),0),IFERROR(INDEX(INDIRECT("YDPT" & $F$87 & $F$86 & $D$86),ROW($A1)),0))) -> 5.159621326 | J89: =IFERROR(INDEX(INDIRECT("XDPT" & $D$87 & $F$87 & $F$86),ROW($A1)),0) -> 25 | K89: =IFERROR(INDEX(INDIRECT("YDPT" & $D$87 & $F$87 & $F$86),ROW($A1)),0) -> 5.159621326 | L89: =IF(Calculator!$C$5=$B$84,J89,IF(Calculator!$C$5=$B$85,J89+273.15,IF(Calculator!$C$5=$B$83,J89*9/5+32,273.15))) -> 25 | N89: =IF(Calculator!$C$5=$B$84,A64,IF(Calculator!$C$5=$B$85,A64+273.15,IF(Calculator!$C$5=$B$83,A64*9/5+32,273.15))) -> 35 | Q89: Hr:Min:Sec | R89: =IF(OR(Calculator!F2<0,AND(Calculator!C3='Chart Data'!A86,Calculator!F3<0),AND(Calculator!C3='Chart Data'!A87,Calculator!F3>10.3),Calculator!F4<0,Calculator!F4>30,'Chart Data'!D86<0),"N/A",ROUNDDOWN(10^B3/3600,0) & ":" & ROUNDDOWN(60*(10^B3/3600-ROUNDDOWN(10^B3/3600,0)),0) & ":" & ROUND((60*(10^B3/3600-ROUNDDOWN(10^B3/3600,0))-ROUNDDOWN(60*(10^B3/3600-ROUNDDOWN(10^B3/3600,0)),0))*60,0)) -> 35:3:28 | S89: =IF(OR(Calculator!F2<0,AND(Calculator!C3='Chart Data'!A86,Calculator!F3<0),AND(Calculator!C3='Chart Data'!A87,Calculator!F3>10.3),Calculator!F4<0,Calculator!F4>30,'Chart Data'!D86<0),"N/A",ROUNDDOWN(10^C3/3600,0) & ":" & ROUNDDOWN(60*(10^C3/3600-ROUNDDOWN(10^C3/3600,0)),0) & ":" & ROUND((60*(10^C3/3600-ROUNDDOWN(10^C3/3600,0))-ROUNDDOWN(60*(10^C3/3600-ROUNDDOWN(10^C3/3600,0)),0))*60,0)) -> 38:41:51 | T89: =IF(OR(Calculator!F2<0,AND(Calculator!C3='Chart Data'!A86,Calculator!F3<0),AND(Calculator!C3='Chart Data'!A87,Calculator!F3>10.3),Calculator!F4<0,Calculator!F4>30,'Chart Data'!D86<0),"N/A",ROUNDDOWN(10^D3/3600,0) & ":" & ROUNDDOWN(60*(10^D3/3600-ROUNDDOWN(10^D3/3600,0)),0) & ":" & ROUND((60*(10^D3/3600-ROUNDDOWN(10^D3/3600,0))-ROUNDDOWN(60*(10^D3/3600-ROUNDDOWN(10^D3/3600,0)),0))*60,0)) -> 31:45:37
A90: =IF($D$86=25,IFERROR(INDEX(INDIRECT("XDPT" & $D$87 & $F$87),ROW($A2)),0),IFERROR(INDEX(INDIRECT("XDPT" & $D$87 & $F$87 & $D$86),ROW($A2)),0)) -> 1.397940009 | B90: =IF($D$86=25,IFERROR(INDEX(INDIRECT("YDPT" & $D$87 & $F$87),ROW($A2)),0),IFERROR(INDEX(INDIRECT("YDPT" & $D$87 & $F$87 & $D$86),ROW($A2)),0)) -> 4.240324555 | D90: =IF($D$86=25,IFERROR(INDEX(INDIRECT("XDPT" & $D$87 & $F$86),ROW($A2)),0),IF(AND($D$87=0,$F$87=0),IFERROR(INDEX(INDIRECT("XDPTNaCl" & $D$87 & $F$86 & $D$86),ROW($A2)),0),IFERROR(INDEX(INDIRECT("XDPT" & $D$87 & $F$86 & $D$86),ROW($A2)),0))) -> 0.01 | E90: =IF($D$86=25,IFERROR(INDEX(INDIRECT("YDPT" & $D$87 & $F$86),ROW($A2)),0),IF(AND($D$87=0,$F$87=0),IFERROR(INDEX(INDIRECT("YDPTNaCl" & $D$87 & $F$86 & $D$86),ROW($A2)),0),IFERROR(INDEX(INDIRECT("YDPT" & $D$87 & $F$86 & $D$86),ROW($A2)),0))) -> 4.607840891 | G90: =IF($D$86=25,IFERROR(INDEX(INDIRECT("XDPT" & $F$87 & $F$86),ROW($A2)),0),IF(AND($D$87=0,$F$87=0),IFERROR(INDEX(INDIRECT("XDPTClNa" & $F$87 & $F$86 & $D$86),ROW($A2)),0),IFERROR(INDEX(INDIRECT("XDPT" & $F$87 & $F$86 & $D$86),ROW($A2)),0))) -> 0 | H90: =IF($D$86=25,IFERROR(INDEX(INDIRECT("YDPT" & $F$87 & $F$86),ROW($A2)),0),IF(AND($D$87=0,$F$87=0),IFERROR(INDEX(INDIRECT("YDPTClNa" & $F$87 & $F$86 & $D$86),ROW($A2)),0),IFERROR(INDEX(INDIRECT("YDPT" & $F$87 & $F$86 & $D$86),ROW($A2)),0))) -> 0 | J90: =IFERROR(INDEX(INDIRECT("XDPT" & $D$87 & $F$87 & $F$86),ROW($A2)),0) -> 0 | K90: =IFERROR(INDEX(INDIRECT("YDPT" & $D$87 & $F$87 & $F$86),ROW($A2)),0) -> 0 | L90: =IF(Calculator!$C$5=$B$84,J90,IF(Calculator!$C$5=$B$85,J90+273.15,IF(Calculator!$C$5=$B$83,J90*9/5+32,273.15))) -> 0 | N90: =IF(Calculator!$C$5=$B$84,A65,IF(Calculator!$C$5=$B$85,A65+273.15,IF(Calculator!$C$5=$B$83,A65*9/5+32,273.15))) -> 45 | Q90: Days:Hrs | R90: =IF(OR(Calculator!F2<0,AND(Calculator!C3='Chart Data'!A86,Calculator!F3<0),AND(Calculator!C3='Chart Data'!A87,Calculator!F3>10.3),Calculator!F4<0,Calculator!F4>30,'Chart Data'!D86<0),"N/A",ROUNDDOWN(10^B3/(3600*24),0) & ":" & ROUND(24*(10^B3/(3600*24)-ROUNDDOWN(10^B3/(3600*24),0)),0)) -> 1:11 | S90: =IF(OR(Calculator!F2<0,AND(Calculator!C3='Chart Data'!A86,Calculator!F3<0),AND(Calculator!C3='Chart Data'!A87,Calculator!F3>10.3),Calculator!F4<0,Calculator!F4>30,'Chart Data'!D86<0),"N/A",ROUNDDOWN(10^C3/(3600*24),0) & ":" & ROUND(24*(10^C3/(3600*24)-ROUNDDOWN(10^C3/(3600*24),0)),0)) -> 1:15 | T90: =IF(OR(Calculator!F2<0,AND(Calculator!C3='Chart Data'!A86,Calculator!F3<0),AND(Calculator!C3='Chart Data'!A87,Calculator!F3>10.3),Calculator!F4<0,Calculator!F4>30,'Chart Data'!D86<0),"N/A",ROUNDDOWN(10^D3/(3600*24),0) & ":" & ROUND(24*(10^D3/(3600*24)-ROUNDDOWN(10^D3/(3600*24),0)),0)) -> 1:8
A91: =IF($D$86=25,IFERROR(INDEX(INDIRECT("XDPT" & $D$87 & $F$87),ROW($A3)),0),IFERROR(INDEX(INDIRECT("XDPT" & $D$87 & $F$87 & $D$86),ROW($A3)),0)) -> 0 | B91: 0 | D91: 0.025 | E91: 4.013553431 | G91: 0 | H91: 0 | J91: 0 | K91: 0 | L91: =IF(Calculator!$C$5=$B$84,J91,IF(Calculator!$C$5=$B$85,J91+273.15,IF(Calculator!$C$5=$B$83,J91*9/5+32,273.15))) -> 0 | N91: =IF(Calculator!$C$5=$B$84,A66,IF(Calculator!$C$5=$B$85,A66+273.15,IF(Calculator!$C$5=$B$83,A66*9/5+32,273.15))) -> 55 | Q91: Weeks | R91: =IF(OR(Calculator!F2<0,AND(Calculator!C3='Chart Data'!A86,Calculator!F3<0),AND(Calculator!C3='Chart Data'!A87,Calculator!F3>10.3),Calculator!F4<0,Calculator!F4>30,'Chart Data'!D86<0),"N/A",ROUND(10^B3/(3600*24*7),0)) -> 0 | S91: =IF(OR(Calculator!F2<0,AND(Calculator!C3='Chart Data'!A86,Calculator!F3<0),AND(Calculator!C3='Chart Data'!A87,Calculator!F3>10.3),Calculator!F4<0,Calculator!F4>30,'Chart Data'!D86<0),"N/A",ROUND(10^C3/(3600*24*7),0)) -> 0 | T91: =IF(OR(Calculator!F2<0,AND(Calculator!C3='Chart Data'!A86,Calculator!F3<0),AND(Calculator!C3='Chart Data'!A87,Calculator!F3>10.3),Calculator!F4<0,Calculator!F4>30,'Chart Data'!D86<0),"N/A",ROUND(10^D3/(3600*24*7),0)) -> 0
A92: =IF($D$86=25,IFERROR(INDEX(INDIRECT("XDPT" & $D$87 & $F$87),ROW($A4)),0),IFERROR(INDEX(INDIRECT("XDPT" & $D$87 & $F$87 & $D$86),ROW($A4)),0)) -> 0 | B92: 0 | D92: 0.0535 | E92: 3.273232834 | G92: 0 | H92: 0 | J92: 0 | K92: 0 | L92: =IF(Calculator!$C$5=$B$84,J92,IF(Calculator!$C$5=$B$85,J92+273.15,IF(Calculator!$C$5=$B$83,J92*9/5+32,273.15))) -> 0 | N92: =IF(Calculator!$C$5=$B$84,A67,IF(Calculator!$C$5=$B$85,A67+273.15,IF(Calculator!$C$5=$B$83,A67*9/5+32,273.15))) -> 65 | Q92: Years | R92: =IF(OR(Calculator!F2<0,AND(Calculator!C3='Chart Data'!A86,Calculator!F3<0),AND(Calculator!C3='Chart Data'!A87,Calculator!F3>10.3),Calculator!F4<0,Calculator!F4>30,'Chart Data'!D86<0),"N/A",ROUND(10^B3/(3600*24*365),1)) -> 0 | S92: =IF(OR(Calculator!F2<0,AND(Calculator!C3='Chart Data'!A86,Calculator!F3<0),AND(Calculator!C3='Chart Data'!A87,Calculator!F3>10.3),Calculator!F4<0,Calculator!F4>30,'Chart Data'!D86<0),"N/A",ROUND(10^C3/(3600*24*365),1)) -> 0 | T92: =IF(OR(Calculator!F2<0,AND(Calculator!C3='Chart Data'!A86,Calculator!F3<0),AND(Calculator!C3='Chart Data'!A87,Calculator!F3>10.3),Calculator!F4<0,Calculator!F4>30,'Chart Data'!D86<0),"N/A",ROUND(10^D3/(3600*24*365),1)) -> 0
A93: =IF($D$86=25,IFERROR(INDEX(INDIRECT("XDPT" & $D$87 & $F$87),ROW($A5)),0),IFERROR(INDEX(INDIRECT("XDPT" & $D$87 & $F$87 & $D$86),ROW($A5)),0)) -> 0 | B93: 0 | D93: 0.075 | E93: 2.961895474 | G93: 0 | H93: 0 | J93: 0 | K93: 0 | L93: =IF(Calculator!$C$5=$B$84,J93,IF(Calculator!$C$5=$B$85,J93+273.15,IF(Calculator!$C$5=$B$83,J93*9/5+32,273.15))) -> 0 | N93: =IF(Calculator!$C$5=$B$84,A68,IF(Calculator!$C$5=$B$85,A68+273.15,IF(Calculator!$C$5=$B$83,A68*9/5+32,273.15))) -> 75
A94: =IF($D$86=25,IFERROR(INDEX(INDIRECT("XDPT" & $D$87 & $F$87),ROW($A6)),0),IFERROR(INDEX(INDIRECT("XDPT" & $D$87 & $F$87 & $D$86),ROW($A6)),0)) -> 0 | B94: 0 | D94: 0.11 | E94: 2.662757832 | G94: 0 | H94: 0 | J94: 0 | K94: 0 | L94: =IF(Calculator!$C$5=$B$84,J94,IF(Calculator!$C$5=$B$85,J94+273.15,IF(Calculator!$C$5=$B$83,J94*9/5+32,273.15))) -> 0 | N94: =IF(Calculator!$C$5=$B$84,A69,IF(Calculator!$C$5=$B$85,A69+273.15,IF(Calculator!$C$5=$B$83,A69*9/5+32,273.15))) -> 85
A95: =IF($D$86=25,IFERROR(INDEX(INDIRECT("XDPT" & $D$87 & $F$87),ROW($A7)),0),IFERROR(INDEX(INDIRECT("XDPT" & $D$87 & $F$87 & $D$86),ROW($A7)),0)) -> 0 | B95: 0 | D95: 0.12 | E95: 2.527629901 | G95: 0 | H95: 0 | J95: 0 | K95: 0 | L95: =IF(Calculator!$C$5=$B$84,J95,IF(Calculator!$C$5=$B$85,J95+273.15,IF(Calculator!$C$5=$B$83,J95*9/5+32,273.15))) -> 0 | N95: =IF(Calculator!$C$5=$B$84,A70,IF(Calculator!$C$5=$B$85,A70+273.15,IF(Calculator!$C$5=$B$83,A70*9/5+32,273.15))) -> 95
A96: =IF($D$86=25,IFERROR(INDEX(INDIRECT("XDPT" & $D$87 & $F$87),ROW($A8)),0),IFERROR(INDEX(INDIRECT("XDPT" & $D$87 & $F$87 & $D$86),ROW($A8)),0)) -> 0 | B96: 0 | D96: 0.13 | E96: 2.437750563 | G96: 0 | H96: 0 | J96: 0 | K96: 0 | L96: =IF(Calculator!$C$5=$B$84,J96,IF(Calculator!$C$5=$B$85,J96+273.15,IF(Calculator!$C$5=$B$83,J96*9/5+32,273.15))) -> 0 | N96: =IF(Calculator!$C$5=$B$84,A71,IF(Calculator!$C$5=$B$85,A71+273.15,IF(Calculator!$C$5=$B$83,A71*9/5+32,273.15))) -> 105
A97: =IF($D$86=25,IFERROR(INDEX(INDIRECT("XDPT" & $D$87 & $F$87),ROW($A9)),0),IFERROR(INDEX(INDIRECT("XDPT" & $D$87 & $F$87 & $D$86),ROW($A9)),0)) -> 0 | B97: 0 | D97: 0.14 | E97: 2.387389826 | G97: 0 | H97: 0 | J97: 0 | K97: 0 | L97: =IF(Calculator!$C$5=$B$84,J97,IF(Calculator!$C$5=$B$85,J97+273.15,IF(Calculator!$C$5=$B$83,J97*9/5+32,273.15))) -> 0 | N97: =IF(Calculator!$C$5=$B$84,A72,IF(Calculator!$C$5=$B$85,A72+273.15,IF(Calculator!$C$5=$B$83,A72*9/5+32,273.15))) -> 115
A98: =IF($D$86=25,IFERROR(INDEX(INDIRECT("XDPT" & $D$87 & $F$87),ROW($A10)),0),IFERROR(INDEX(INDIRECT("XDPT" & $D$87 & $F$87 & $D$86),ROW($A10)),0)) -> 0 | B98: 0 | D98: 0.1622 | E98: 2.324282455 | G98: 0 | H98: 0 | J98: 0 | K98: 0 | L98: =IF(Calculator!$C$5=$B$84,J98,IF(Calculator!$C$5=$B$85,J98+273.15,IF(Calculator!$C$5=$B$83,J98*9/5+32,273.15))) -> 0 | N98: =IF(Calculator!$C$5=$B$84,A73,IF(Calculator!$C$5=$B$85,A73+273.15,IF(Calculator!$C$5=$B$83,A73*9/5+32,273.15))) -> 125
A99: =IF($D$86=25,IFERROR(INDEX(INDIRECT("XDPT" & $D$87 & $F$87),ROW($A11)),0),IFERROR(INDEX(INDIRECT("XDPT" & $D$87 & $F$87 & $D$86),ROW($A11)),0)) -> 0 | B99: 0 | D99: 0.1622 | E99: 2.346352974 | G99: 0 | H99: 0 | J99: 0 | K99: 0 | L99: =IF(Calculator!$C$5=$B$84,J99,IF(Calculator!$C$5=$B$85,J99+273.15,IF(Calculator!$C$5=$B$83,J99*9/5+32,273.15))) -> 0 | N99: =IF(Calculator!$C$5=$B$84,A74,IF(Calculator!$C$5=$B$85,A74+273.15,IF(Calculator!$C$5=$B$83,A74*9/5+32,273.15))) -> 135
A100: =IF($D$86=25,IFERROR(INDEX(INDIRECT("XDPT" & $D$87 & $F$87),ROW($A12)),0),IFERROR(INDEX(INDIRECT("XDPT" & $D$87 & $F$87 & $D$86),ROW($A12)),0)) -> 0 | B100: 0 | D100: 0.2 | E100: 2.285557309 | G100: 0 | H100: 0 | J100: 0 | K100: 0 | L100: =IF(Calculator!$C$5=$B$84,J100,IF(Calculator!$C$5=$B$85,J100+273.15,IF(Calculator!$C$5=$B$83,J100*9/5+32,273.15))) -> 0 | N100: =IF(Calculator!$C$5=$B$84,A75,IF(Calculator!$C$5=$B$85,A75+273.15,IF(Calculator!$C$5=$B$83,A75*9/5+32,273.15))) -> 145
A101: =IF($D$86=25,IFERROR(INDEX(INDIRECT("XDPT" & $D$87 & $F$87),ROW($A13)),0),IFERROR(INDEX(INDIRECT("XDPT" & $D$87 & $F$87 & $D$86),ROW($A13)),0)) -> 0 | B101: 0 | D101: 0 | E101: 0 | G101: 0 | H101: 0 | J101: 0 | K101: 0 | L101: =IF(Calculator!$C$5=$B$84,J101,IF(Calculator!$C$5=$B$85,J101+273.15,IF(Calculator!$C$5=$B$83,J101*9/5+32,273.15))) -> 0 | N101: =IF(Calculator!$C$5=$B$84,A76,IF(Calculator!$C$5=$B$85,A76+273.15,IF(Calculator!$C$5=$B$83,A76*9/5+32,273.15))) -> 155
A102: =IF($D$86=25,IFERROR(INDEX(INDIRECT("XDPT" & $D$87 & $F$87),ROW($A14)),0),IFERROR(INDEX(INDIRECT("XDPT" & $D$87 & $F$87 & $D$86),ROW($A14)),0)) -> 0 | B102: 0 | D102: 0 | E102: 0 | G102: 0 | H102: 0 | J102: 0 | K102: 0 | L102: =IF(Calculator!$C$5=$B$84,J102,IF(Calculator!$C$5=$B$85,J102+273.15,IF(Calculator!$C$5=$B$83,J102*9/5+32,273.15))) -> 0 | N102: =IF(Calculator!$C$5=$B$84,A77,IF(Calculator!$C$5=$B$85,A77+273.15,IF(Calculator!$C$5=$B$83,A77*9/5+32,273.15))) -> 165
A103: =IF($D$86=25,IFERROR(INDEX(INDIRECT("XDPT" & $D$87 & $F$87),ROW($A15)),0),IFERROR(INDEX(INDIRECT("XDPT" & $D$87 & $F$87 & $D$86),ROW($A15)),0)) -> 0 | B103: 0 | D103: 0 | E103: 0 | G103: 0 | H103: 0 | J103: 0 | K103: 0 | L103: =IF(Calculator!$C$5=$B$84,J103,IF(Calculator!$C$5=$B$85,J103+273.15,IF(Calculator!$C$5=$B$83,J103*9/5+32,273.15))) -> 0 | N103: =IF(Calculator!$C$5=$B$84,A78,IF(Calculator!$C$5=$B$85,A78+273.15,IF(Calculator!$C$5=$B$83,A78*9/5+32,273.15))) -> 175
A104: =IF($D$86=25,IFERROR(INDEX(INDIRECT("XDPT" & $D$87 & $F$87),ROW($A16)),0),IFERROR(INDEX(INDIRECT("XDPT" & $D$87 & $F$87 & $D$86),ROW($A16)),0)) -> 0 | B104: 0 | D104: 0 | E104: 0 | G104: 0 | H104: 0 | J104: 0 | K104: 0 | L104: =IF(Calculator!$C$5=$B$84,J104,IF(Calculator!$C$5=$B$85,J104+273.15,IF(Calculator!$C$5=$B$83,J104*9/5+32,273.15))) -> 0 | N104: =IF(Calculator!$C$5=$B$84,A79,IF(Calculator!$C$5=$B$85,A79+273.15,IF(Calculator!$C$5=$B$83,A79*9/5+32,273.15))) -> 185
N105: =IF(Calculator!$C$5=$B$84,A80,IF(Calculator!$C$5=$B$85,A80+273.15,IF(Calculator!$C$5=$B$83,A80*9/5+32,273.15))) -> 195
N106: =IF(Calculator!$C$5=$B$84,A81,IF(Calculator!$C$5=$B$85,A81+273.15,IF(Calculator!$C$5=$B$83,A81*9/5+32,273.15))) -> 200
A107: WARNING: Selected chemistry will either create a ductile paste or will not gel at all, and will not follow the shown gelation curves.
A108: NOTE: Selected chemistry is actually constrained at high T (100-150 °C), but a full nonlinear error analysis would require MATLAB.
A109: The error envelopes are therefore based on the error of the activation energy and the modeled data point at 25 °C.
A110: WARNING: Selected chemistry is not well-tested at elevated temperatures: specific gelation tests are recommended to verify model results.
A111: Activation energies are calculated based on the same chemistry without salt.
A112: WARNING: Selected chemistry is not well-tested, and model results may be misleading.
A113: WARNING: Selected chemistry and temperature indicate a very long gel time.
A114: These gel times have not been tested and model results may be misleading.
A115: Inputs are out of range. NaCl/SiO2 must be positive, Cl-/Na+ must be positive (pH less than 10.3)
A116: SiO2 wt% must be positive and less than 30%, and Temperature must be above the freezing point of water.

Sheet Calcs
A1: D | B1: Exp. # | C1: Cl-/Na+ | D1: NaCl/SiO2 | E1: SiO2 wt% | F1: GT(s) | G1: Log(GT(s) | H1: T(eff) °C | I1: 25B | J1: 25X1 | K1: 25X2 | L1: 25X3 | M1: 25X4 | N1: 25X5 | O1: 25X6 | P1: 25X7 | Q1: 25X8 | R1: 25X9 | S1: EAB | T1: EAX1 | U1: EAX2 | V1: EAX3
A2: =SQRT((((LOG(E2)-1)/0.4)-((LOG('Chart Data'!$F$86)-1)/0.4))^2+(C2-'Chart Data'!$D$87)^2+(D2/0.2-'Chart Data'!$F$87/0.2)^2+((H2-25)/175-('Chart Data'!$D$86-25)/175)^2) -> 0.3141610915 | B2: 1 | C2: 0.5 | D2: 0 | E2: 25 | F2: 168043 | G2: =LOG(F2) -> 5.225420426 | H2: 25 | I2: 1 | J2: =C2^2*LOG(E2)*D2 -> 0 | K2: =C2*LOG(E2)*D2 -> 0 | L2: =LOG(E2)*D2 -> 0 | M2: =C2^2*LOG(E2) -> 0.3494850022 | N2: =LOG(E2) -> 1.397940009 | O2: =C2^2/(D2+Equations!$B$3) -> 3.737639173 | P2: =1/(D2+Equations!$B$3) -> 14.95055669 | Q2: =D2 -> 0 | R2: =C2 -> 0.5
A3: =SQRT((((LOG(E3)-1)/0.4)-((LOG('Chart Data'!$F$86)-1)/0.4))^2+(C3-'Chart Data'!$D$87)^2+(D3/0.2-'Chart Data'!$F$87/0.2)^2+((H3-25)/175-('Chart Data'!$D$86-25)/175)^2) -> 0.4572929033 | B3: =B2+1 -> 2 | C3: 0.5 | D3: 0.0535 | E3: 15 | F3: 66290 | G3: 4.821448019 | H3: 25 | I3: 1 | J3: =C3^2*LOG(E3)*D3 -> 0.01573022059 | K3: =C3*LOG(E3)*D3 -> 0.03146044118 | L3: =LOG(E3)*D3 -> 0.06292088236 | M3: =C3^2*LOG(E3) -> 0.2940228148 | N3: =LOG(E3) -> 1.176091259 | O3: =C3^2/(D3+Equations!$B$3) -> 2.076633742 | P3: =1/(D3+Equations!$B$3) -> 8.306534967 | Q3: =D3 -> 0.0535 | R3: =C3 -> 0.5
A4: =SQRT((((LOG(E4)-1)/0.4)-((LOG('Chart Data'!$F$86)-1)/0.4))^2+(C4-'Chart Data'!$D$87)^2+(D4/0.2-'Chart Data'!$F$87/0.2)^2+((H4-25)/175-('Chart Data'!$D$86-25)/175)^2) -> 0.3386114824 | B4: =B3+1 -> 3 | C4: 0.5 | D4: 0.0535 | E4: 19 | F4: 7200 | G4: 3.857332496 | H4: 25 | I4: 1 | J4: 0.01710332941 | K4: 0.03420665883 | L4: 0.06841331765 | M4: 0.3196884002 | N4: 1.278753601 | O4: =C4^2/(D4+Equations!$B$3) -> 2.076633742 | P4: =1/(D4+Equations!$B$3) -> 8.306534967 | Q4: 0.0535 | R4: 0.5
A5: =SQRT((((LOG(E5)-1)/0.4)-((LOG('Chart Data'!$F$86)-1)/0.4))^2+(C5-'Chart Data'!$D$87)^2+(D5/0.2-'Chart Data'!$F$87/0.2)^2+((H5-25)/175-('Chart Data'!$D$86-25)/175)^2) -> 0.3381751247 | B5: 4 | C5: 0.5 | D5: 0.0535 | E5: 21 | F5: 2954 | G5: 3.470410491 | H5: 25 | I5: 1 | J5: 0.01768468307 | K5: 0.03536936613 | L5: 0.07073873227 | M5: 0.3305548237 | N5: 1.322219295 | O5: =C5^2/(D5+Equations!$B$3) -> 2.076633742 | P5: =1/(D5+Equations!$B$3) -> 8.306534967 | Q5: 0.0535 | R5: 0.5
A6: =SQRT((((LOG(E6)-1)/0.4)-((LOG('Chart Data'!$F$86)-1)/0.4))^2+(C6-'Chart Data'!$D$87)^2+(D6/0.2-'Chart Data'!$F$87/0.2)^2+((H6-25)/175-('Chart Data'!$D$86-25)/175)^2) -> 0.3496637169 | B6: 5 | C6: 0.5 | D6: 0.0535 | E6: 22 | F6: 1809 | G6: 3.257438567 | H6: 25 | I6: 1 | J6: 0.01795490336 | K6: 0.03590980671 | L6: 0.07181961342 | M6: 0.3356056702 | N6: 1.342422681 | O6: =C6^2/(D6+Equations!$B$3) -> 2.076633742 | P6: =1/(D6+Equations!$B$3) -> 8.306534967 | Q6: 0.0535 | R6: 0.5
A7: =SQRT((((LOG(E7)-1)/0.4)-((LOG('Chart Data'!$F$86)-1)/0.4))^2+(C7-'Chart Data'!$D$87)^2+(D7/0.2-'Chart Data'!$F$87/0.2)^2+((H7-25)/175-('Chart Data'!$D$86-25)/175)^2) -> 0.3668551129 | B7: 6 | C7: 0.5 | D7: 0.0535 | E7: 23 | F7: 1199 | G7: 3.078819183 | H7: 25 | I7: 1 | J7: 0.01821310981 | K7: 0.03642621961 | L7: 0.07285243923 | M7: 0.340431959 | N7: 1.361727836 | O7: =C7^2/(D7+Equations!$B$3) -> 2.076633742 | P7: =1/(D7+Equations!$B$3) -> 8.306534967 | Q7: 0.0535 | R7: 0.5
A8: =SQRT((((LOG(E8)-1)/0.4)-((LOG('Chart Data'!$F$86)-1)/0.4))^2+(C8-'Chart Data'!$D$87)^2+(D8/0.2-'Chart Data'!$F$87/0.2)^2+((H8-25)/175-('Chart Data'!$D$86-25)/175)^2) -> 0.3882546661 | B8: 7 | C8: 0.5 | D8: 0.0535 | E8: 24 | F8: 753 | G8: 2.876794976 | H8: 25 | I8: 1 | J8: 0.01846032536 | K8: 0.03692065072 | L8: 0.07384130143 | M8: 0.3450528104 | N8: 1.380211242 | O8: =C8^2/(D8+Equations!$B$3) -> 2.076633742 | P8: =1/(D8+Equations!$B$3) -> 8.306534967 | Q8: 0.0535 | R8: 0.5
A9: =SQRT((((LOG(E9)-1)/0.4)-((LOG('Chart Data'!$F$86)-1)/0.4))^2+(C9-'Chart Data'!$D$87)^2+(D9/0.2-'Chart Data'!$F$87/0.2)^2+((H9-25)/175-('Chart Data'!$D$86-25)/175)^2) -> 0.4126177909 | B9: 8 | C9: 0.5 | D9: 0.0535 | E9: 25 | F9: 559 | G9: 2.747411808 | H9: 25 | I9: 1 | J9: 0.01869744762 | K9: 0.03739489523 | L9: 0.07478979046 | M9: 0.3494850022 | N9: 1.397940009 | O9: =C9^2/(D9+Equations!$B$3) -> 2.076633742 | P9: =1/(D9+Equations!$B$3) -> 8.306534967 | Q9: 0.0535 | R9: 0.5
A10: =SQRT((((LOG(E10)-1)/0.4)-((LOG('Chart Data'!$F$86)-1)/0.4))^2+(C10-'Chart Data'!$D$87)^2+(D10/0.2-'Chart Data'!$F$87/0.2)^2+((H10-25)/175-('Chart Data'!$D$86-25)/175)^2) -> 0.6633705973 | B10: 9 | C10: 0.5 | D10: 0.11 | E10: 15 | F10: 4523 | G10: 3.655426588 | H10: 25 | I10: 1 | J10: 0.03234250962 | K10: 0.06468501925 | L10: 0.1293700385 | M10: 0.2940228148 | N10: 1.176091259 | O10: =C10^2/(D10+Equations!$B$3) -> 1.413330545 | P10: =1/(D10+Equations!$B$3) -> 5.65332218 | Q10: 0.11 | R10: 0.5
A11: =SQRT((((LOG(E11)-1)/0.4)-((LOG('Chart Data'!$F$86)-1)/0.4))^2+(C11-'Chart Data'!$D$87)^2+(D11/0.2-'Chart Data'!$F$87/0.2)^2+((H11-25)/175-('Chart Data'!$D$86-25)/175)^2) -> 0.6334012878 | B11: 10 | C11: 0.5 | D11: 0.11 | E11: 16 | F11: 2632 | G11: 3.420285885 | H11: 25 | I11: 1 | J11: 0.03311329952 | K11: 0.06622659905 | L11: 0.1324531981 | M11: 0.3010299957 | N11: 1.204119983 | O11: =C11^2/(D11+Equations!$B$3) -> 1.413330545 | P11: =1/(D11+Equations!$B$3) -> 5.65332218 | Q11: 0.11 | R11: 0.5
A12: =SQRT((((LOG(E12)-1)/0.4)-((LOG('Chart Data'!$F$86)-1)/0.4))^2+(C12-'Chart Data'!$D$87)^2+(D12/0.2-'Chart Data'!$F$87/0.2)^2+((H12-25)/175-('Chart Data'!$D$86-25)/175)^2) -> 0.6112573519 | B12: 11 | C12: 0.5 | D12: 0.11 | E12: 17 | F12: 1634 | G12: 3.213252052 | H12: 25 | I12: 1 | J12: 0.03383734534 | K12: 0.06767469068 | L12: 0.1353493814 | M12: 0.3076122303 | N12: 1.230448921 | O12: =C12^2/(D12+Equations!$B$3) -> 1.413330545 | P12: =1/(D12+Equations!$B$3) -> 5.65332218 | Q12: 0.11 | R12: 0.5
A13: =SQRT((((LOG(E13)-1)/0.4)-((LOG('Chart Data'!$F$86)-1)/0.4))^2+(C13-'Chart Data'!$D$87)^2+(D13/0.2-'Chart Data'!$F$87/0.2)^2+((H13-25)/175-('Chart Data'!$D$86-25)/175)^2) -> 0.5963102587 | B13: 12 | C13: 0.5 | D13: 0.11 | E13: 18 | F13: 983 | G13: 2.992553518 | H13: 25 | I13: 1 | J13: 0.03451999389 | K13: 0.06903998778 | L13: 0.1380799756 | M13: 0.3138181263 | N13: 1.255272505 | O13: =C13^2/(D13+Equations!$B$3) -> 1.413330545 | P13: =1/(D13+Equations!$B$3) -> 5.65332218 | Q13: 0.11 | R13: 0.5
A14: =SQRT((((LOG(E14)-1)/0.4)-((LOG('Chart Data'!$F$86)-1)/0.4))^2+(C14-'Chart Data'!$D$87)^2+(D14/0.2-'Chart Data'!$F$87/0.2)^2+((H14-25)/175-('Chart Data'!$D$86-25)/175)^2) -> 0.5878788021 | B14: 13 | C14: 0.5 | D14: 0.11 | E14: 19 | F14: 675 | G14: 2.829303773 | H14: 25 | I14: 1 | J14: 0.03516572403 | K14: 0.07033144805 | L14: 0.1406628961 | M14: 0.3196884002 | N14: 1.278753601 | O14: =C14^2/(D14+Equations!$B$3) -> 1.413330545 | P14: =1/(D14+Equations!$B$3) -> 5.65332218 | Q14: 0.11 | R14: 0.5
A15: =SQRT((((LOG(E15)-1)/0.4)-((LOG('Chart Data'!$F$86)-1)/0.4))^2+(C15-'Chart Data'!$D$87)^2+(D15/0.2-'Chart Data'!$F$87/0.2)^2+((H15-25)/175-('Chart Data'!$D$86-25)/175)^2) -> 0.5852349955 | B15: 14 | C15: 0.5 | D15: 0.11 | E15: 20 | F15: 440 | G15: 2.643452676 | H15: 25 | I15: 1 | J15: 0.03577832488 | K15: 0.07155664976 | L15: 0.1431132995 | M15: 0.3252574989 | N15: 1.301029996 | O15: =C15^2/(D15+Equations!$B$3) -> 1.413330545 | P15: =1/(D15+Equations!$B$3) -> 5.65332218 | Q15: 0.11 | R15: 0.5
A16: =SQRT((((LOG(E16)-1)/0.4)-((LOG('Chart Data'!$F$86)-1)/0.4))^2+(C16-'Chart Data'!$D$87)^2+(D16/0.2-'Chart Data'!$F$87/0.2)^2+((H16-25)/175-('Chart Data'!$D$86-25)/175)^2) -> 0.5876275734 | B16: 15 | C16: 0.5 | D16: 0.11 | E16: 21 | F16: 323 | G16: 2.509202522 | H16: 25 | I16: 1 | J16: 0.03636103061 | K16: 0.07272206121 | L16: 0.1454441224 | M16: 0.3305548237 | N16: 1.322219295 | O16: =C16^2/(D16+Equations!$B$3) -> 1.413330545 | P16: =1/(D16+Equations!$B$3) -> 5.65332218 | Q16: 0.11 | R16: 0.5
A17: =SQRT((((LOG(E17)-1)/0.4)-((LOG('Chart Data'!$F$86)-1)/0.4))^2+(C17-'Chart Data'!$D$87)^2+(D17/0.2-'Chart Data'!$F$87/0.2)^2+((H17-25)/175-('Chart Data'!$D$86-25)/175)^2) -> 0.5943134399 | B17: 16 | C17: 0.5 | D17: 0.11 | E17: 22 | F17: 214 | G17: 2.330413773 | H17: 25 | I17: 1 | J17: 0.03691662372 | K17: 0.07383324745 | L17: 0.1476664949 | M17: 0.3356056702 | N17: 1.342422681 | O17: =C17^2/(D17+Equations!$B$3) -> 1.413330545 | P17: =1/(D17+Equations!$B$3) -> 5.65332218 | Q17: 0.11 | R17: 0.5
A18: =SQRT((((LOG(E18)-1)/0.4)-((LOG('Chart Data'!$F$86)-1)/0.4))^2+(C18-'Chart Data'!$D$87)^2+(D18/0.2-'Chart Data'!$F$87/0.2)^2+((H18-25)/175-('Chart Data'!$D$86-25)/175)^2) -> 1.124317622 | B18: 17 | C18: 0.5 | D18: 0.1622 | E18: 10 | F18: 31147 | G18: 4.493416223 | H18: 25 | I18: 1 | J18: 0.04055 | K18: 0.0811 | L18: 0.1622 | M18: 0.25 | N18: 1 | O18: =C18^2/(D18+Equations!$B$3) -> 1.091287789 | P18: =1/(D18+Equations!$B$3) -> 4.365151155 | Q18: 0.1622 | R18: 0.5
A19: =SQRT((((LOG(E19)-1)/0.4)-((LOG('Chart Data'!$F$86)-1)/0.4))^2+(C19-'Chart Data'!$D$87)^2+(D19/0.2-'Chart Data'!$F$87/0.2)^2+((H19-25)/175-('Chart Data'!$D$86-25)/175)^2) -> 0.920699385 | B19: 18 | C19: 0.5 | D19: 0.1622 | E19: 14 | F19: 1960 | G19: 3.292256071 | H19: 25 | I19: 1 | J19: 0.04647549185 | K19: 0.09295098369 | L19: 0.1859019674 | M19: 0.2865320089 | N19: 1.146128036 | O19: =C19^2/(D19+Equations!$B$3) -> 1.091287789 | P19: =1/(D19+Equations!$B$3) -> 4.365151155 | Q19: 0.1622 | R19: 0.5
A20: =SQRT((((LOG(E20)-1)/0.4)-((LOG('Chart Data'!$F$86)-1)/0.4))^2+(C20-'Chart Data'!$D$87)^2+(D20/0.2-'Chart Data'!$F$87/0.2)^2+((H20-25)/175-('Chart Data'!$D$86-25)/175)^2) -> 0.8917855961 | B20: 19 | C20: 0.5 | D20: 0.1622 | E20: 15 | F20: 1201 | G20: 3.079543007 | H20: 25 | I20: 1 | J20: 0.04769050055 | K20: 0.09538100111 | L20: 0.1907620022 | M20: 0.2940228148 | N20: 1.176091259 | O20: =C20^2/(D20+Equations!$B$3) -> 1.091287789 | P20: =1/(D20+Equations!$B$3) -> 4.365151155 | Q20: 0.1622 | R20: 0.5
A21: =SQRT((((LOG(E21)-1)/0.4)-((LOG('Chart Data'!$F$86)-1)/0.4))^2+(C21-'Chart Data'!$D$87)^2+(D21/0.2-'Chart Data'!$F$87/0.2)^2+((H21-25)/175-('Chart Data'!$D$86-25)/175)^2) -> 0.8697230544 | B21: 20 | C21: 0.5 | D21: 0.1622 | E21: 16 | F21: 832 | G21: 2.920123326 | H21: 25 | I21: 1 | J21: 0.0488270653 | K21: 0.09765413059 | L21: 0.1953082612 | M21: 0.3010299957 | N21: 1.204119983 | O21: =C21^2/(D21+Equations!$B$3) -> 1.091287789 | P21: =1/(D21+Equations!$B$3) -> 4.365151155 | Q21: 0.1622 | R21: 0.5
A22: =SQRT((((LOG(E22)-1)/0.4)-((LOG('Chart Data'!$F$86)-1)/0.4))^2+(C22-'Chart Data'!$D$87)^2+(D22/0.2-'Chart Data'!$F$87/0.2)^2+((H22-25)/175-('Chart Data'!$D$86-25)/175)^2) -> 0.853730959 | B22: 21 | C22: 0.5 | D22: 0.1622 | E22: 17 | F22: 486 | G22: 2.686636269 | H22: 25 | I22: 1 | J22: 0.04989470376 | K22: 0.09978940752 | L22: 0.199578815 | M22: 0.3076122303 | N22: 1.230448921 | O22: =C22^2/(D22+Equations!$B$3) -> 1.091287789 | P22: =1/(D22+Equations!$B$3) -> 4.365151155 | Q22: 0.1622 | R22: 0.5
A23: =SQRT((((LOG(E23)-1)/0.4)-((LOG('Chart Data'!$F$86)-1)/0.4))^2+(C23-'Chart Data'!$D$87)^2+(D23/0.2-'Chart Data'!$F$87/0.2)^2+((H23-25)/175-('Chart Data'!$D$86-25)/175)^2) -> 0.843093663 | B23: 22 | C23: 0.5 | D23: 0.1622 | E23: 18 | F23: 331 | G23: 2.519827994 | H23: 25 | I23: 1 | J23: 0.05090130008 | K23: 0.1018026002 | L23: 0.2036052003 | M23: 0.3138181263 | N23: 1.255272505 | O23: =C23^2/(D23+Equations!$B$3) -> 1.091287789 | P23: =1/(D23+Equations!$B$3) -> 4.365151155 | Q23: 0.1622 | R23: 0.5
A24: =SQRT((((LOG(E24)-1)/0.4)-((LOG('Chart Data'!$F$86)-1)/0.4))^2+(C24-'Chart Data'!$D$87)^2+(D24/0.2-'Chart Data'!$F$87/0.2)^2+((H24-25)/175-('Chart Data'!$D$86-25)/175)^2) -> 0.8371514116 | B24: 23 | C24: 0.5 | D24: 0.1622 | E24: 19 | F24: 219 | G24: 2.340444115 | H24: 25 | I24: 1 | J24: 0.05185345852 | K24: 0.103706917 | L24: 0.2074138341 | M24: 0.3196884002 | N24: 1.278753601 | O24: =C24^2/(D24+Equations!$B$3) -> 1.091287789 | P24: =1/(D24+Equations!$B$3) -> 4.365151155 | Q24: 0.1622 | R24: 0.5
A25: =SQRT((((LOG(E25)-1)/0.4)-((LOG('Chart Data'!$F$86)-1)/0.4))^2+(C25-'Chart Data'!$D$87)^2+(D25/0.2-'Chart Data'!$F$87/0.2)^2+((H25-25)/175-('Chart Data'!$D$86-25)/175)^2) -> 0.8352969532 | B25: 24 | C25: 0.5 | D25: 0.1622 | E25: 20 | F25: 146 | G25: 2.164352856 | H25: 25 | I25: 1 | J25: 0.05275676632 | K25: 0.1055135326 | L25: 0.2110270653 | M25: 0.3252574989 | N25: 1.301029996 | O25: =C25^2/(D25+Equations!$B$3) -> 1.091287789 | P25: =1/(D25+Equations!$B$3) -> 4.365151155 | Q25: 0.1622 | R25: 0.5
A26: =SQRT((((LOG(E26)-1)/0.4)-((LOG('Chart Data'!$F$86)-1)/0.4))^2+(C26-'Chart Data'!$D$87)^2+(D26/0.2-'Chart Data'!$F$87/0.2)^2+((H26-25)/175-('Chart Data'!$D$86-25)/175)^2) -> 0 | B26: 25 | C26: 0.7 | D26: 0 | E26: 20 | F26: 144418 | G26: 5.159621326 | H26: 25 | I26: 1 | J26: 0 | K26: 0 | L26: 0 | M26: 0.6375046979 | N26: 1.301029996 | O26: =C26^2/(D26+Equations!$B$3) -> 7.325772778 | P26: =1/(D26+Equations!$B$3) -> 14.95055669 | Q26: 0 | R26: 0.7
A27: =SQRT((((LOG(E27)-1)/0.4)-((LOG('Chart Data'!$F$86)-1)/0.4))^2+(C27-'Chart Data'!$D$87)^2+(D27/0.2-'Chart Data'!$F$87/0.2)^2+((H27-25)/175-('Chart Data'!$D$86-25)/175)^2) -> 0.2422750325 | B27: 26 | C27: 0.7 | D27: 0 | E27: 25 | F27: 17391 | G27: 4.240324555 | H27: 25 | I27: 1 | J27: 0 | K27: 0 | L27: 0 | M27: 0.6849906042 | N27: 1.397940009 | O27: =C27^2/(D27+Equations!$B$3) -> 7.325772778 | P27: =1/(D27+Equations!$B$3) -> 14.95055669 | Q27: 0 | R27: 0.7
A28: =SQRT((((LOG(E28)-1)/0.4)-((LOG('Chart Data'!$F$86)-1)/0.4))^2+(C28-'Chart Data'!$D$87)^2+(D28/0.2-'Chart Data'!$F$87/0.2)^2+((H28-25)/175-('Chart Data'!$D$86-25)/175)^2) -> 0.05 | B28: 27 | C28: 0.7 | D28: 0.01 | E28: 20 | F28: 40536 | G28: 4.607840891 | H28: 25 | I28: 1 | J28: 0.006375046979 | K28: 0.00910720997 | L28: 0.01301029996 | M28: 0.6375046979 | N28: 1.301029996 | O28: =C28^2/(D28+Equations!$B$3) -> 6.372977208 | P28: =1/(D28+Equations!$B$3) -> 13.00607593 | Q28: 0.01 | R28: 0.7
A29: =SQRT((((LOG(E29)-1)/0.4)-((LOG('Chart Data'!$F$86)-1)/0.4))^2+(C29-'Chart Data'!$D$87)^2+(D29/0.2-'Chart Data'!$F$87/0.2)^2+((H29-25)/175-('Chart Data'!$D$86-25)/175)^2) -> 0.2473806609 | B29: 28 | C29: 0.7 | D29: 0.01 | E29: 25 | F29: 5272 | G29: 3.721975402 | H29: 25 | I29: 1 | J29: 0.006849906042 | K29: 0.009785580061 | L29: 0.01397940009 | M29: 0.6849906042 | N29: 1.397940009 | O29: =C29^2/(D29+Equations!$B$3) -> 6.372977208 | P29: =1/(D29+Equations!$B$3) -> 13.00607593 | Q29: 0.01 | R29: 0.7
A30: =SQRT((((LOG(E30)-1)/0.4)-((LOG('Chart Data'!$F$86)-1)/0.4))^2+(C30-'Chart Data'!$D$87)^2+(D30/0.2-'Chart Data'!$F$87/0.2)^2+((H30-25)/175-('Chart Data'!$D$86-25)/175)^2) -> 0.125 | B30: 29 | C30: 0.7 | D30: 0.025 | E30: 20 | F30: 10317 | G30: 4.013553431 | H30: 25 | I30: 1 | J30: 0.01593761745 | K30: 0.02276802492 | L30: 0.03252574989 | M30: 0.6375046979 | N30: 1.301029996 | O30: =C30^2/(D30+Equations!$B$3) -> 5.332628617 | P30: =1/(D30+Equations!$B$3) -> 10.88291554 | Q30: 0.025 | R30: 0.7
A31: =SQRT((((LOG(E31)-1)/0.4)-((LOG('Chart Data'!$F$86)-1)/0.4))^2+(C31-'Chart Data'!$D$87)^2+(D31/0.2-'Chart Data'!$F$87/0.2)^2+((H31-25)/175-('Chart Data'!$D$86-25)/175)^2) -> 0.2341162869 | B31: 30 | C31: 0.7 | D31: 0.025 | E31: 24 | F31: 2123 | G31: 3.326949994 | H31: 25 | I31: 1 | J31: 0.01690758771 | K31: 0.02415369673 | L31: 0.03450528104 | M31: 0.6763035084 | N31: 1.380211242 | O31: =C31^2/(D31+Equations!$B$3) -> 5.332628617 | P31: =1/(D31+Equations!$B$3) -> 10.88291554 | Q31: 0.025 | R31: 0.7
A32: =SQRT((((LOG(E32)-1)/0.4)-((LOG('Chart Data'!$F$86)-1)/0.4))^2+(C32-'Chart Data'!$D$87)^2+(D32/0.2-'Chart Data'!$F$87/0.2)^2+((H32-25)/175-('Chart Data'!$D$86-25)/175)^2) -> 0.2726209665 | B32: 31 | C32: 0.7 | D32: 0.025 | E32: 25 | F32: 1430 | G32: 3.155336037 | H32: 25 | I32: 1 | J32: 0.01712476511 | K32: 0.02446395015 | L32: 0.03494850022 | M32: 0.6849906042 | N32: 1.397940009 | O32: =C32^2/(D32+Equations!$B$3) -> 5.332628617 | P32: =1/(D32+Equations!$B$3) -> 10.88291554 | Q32: 0.025 | R32: 0.7
A33: =SQRT((((LOG(E33)-1)/0.4)-((LOG('Chart Data'!$F$86)-1)/0.4))^2+(C33-'Chart Data'!$D$87)^2+(D33/0.2-'Chart Data'!$F$87/0.2)^2+((H33-25)/175-('Chart Data'!$D$86-25)/175)^2) -> 0.4706618824 | B33: 32 | C33: 0.7 | D33: 0.0535 | E33: 14 | F33: 29033 | G33: 4.462891914 | H33: 25 | I33: 1 | J33: 0.03004574646 | K33: 0.04292249494 | L33: 0.06131784991 | M33: 0.5616027375 | N33: 1.146128036 | O33: =C33^2/(D33+Equations!$B$3) -> 4.070202134 | P33: =1/(D33+Equations!$B$3) -> 8.306534967 | Q33: 0.0535 | R33: 0.7
A34: =SQRT((((LOG(E34)-1)/0.4)-((LOG('Chart Data'!$F$86)-1)/0.4))^2+(C34-'Chart Data'!$D$87)^2+(D34/0.2-'Chart Data'!$F$87/0.2)^2+((H34-25)/175-('Chart Data'!$D$86-25)/175)^2) -> 0.3609064164 | B34: 33 | C34: 0.7 | D34: 0.0535 | E34: 16 | F34: 10803 | G34: =LOG(F34) -> 4.033544376 | H34: 25 | I34: 1 | J34: 0.03156600535 | K34: 0.04509429335 | L34: 0.06442041907 | M34: 0.5900187915 | N34: 1.204119983 | O34: =C34^2/(D34+Equations!$B$3) -> 4.070202134 | P34: =1/(D34+Equations!$B$3) -> 8.306534967 | Q34: 0.0535 | R34: 0.7
A35: =SQRT((((LOG(E35)-1)/0.4)-((LOG('Chart Data'!$F$86)-1)/0.4))^2+(C35-'Chart Data'!$D$87)^2+(D35/0.2-'Chart Data'!$F$87/0.2)^2+((H35-25)/175-('Chart Data'!$D$86-25)/175)^2) -> 0.2909332821 | B35: 34 | C35: 0.7 | D35: 0.0535 | E35: 18 | F35: 4266 | G35: 3.630020851 | H35: 25 | I35: 1 | J35: 0.03290696872 | K35: 0.04700995532 | L35: 0.06715707902 | M35: 0.6150835275 | N35: 1.255272505 | O35: =C35^2/(D35+Equations!$B$3) -> 4.070202134 | P35: =1/(D35+Equations!$B$3) -> 8.306534967 | Q35: 0.0535 | R35: 0.7
A36: =SQRT((((LOG(E36)-1)/0.4)-((LOG('Chart Data'!$F$86)-1)/0.4))^2+(C36-'Chart Data'!$D$87)^2+(D36/0.2-'Chart Data'!$F$87/0.2)^2+((H36-25)/175-('Chart Data'!$D$86-25)/175)^2) -> 0.2675 | B36: 35 | C36: 0.7 | D36: 0.0535 | E36: 20 | F36: 1876 | G36: 3.273232834 | H36: 25 | I36: 1 | J36: 0.03410650134 | K36: 0.04872357334 | L36: 0.06960510477 | M36: 0.6375046979 | N36: 1.301029996 | O36: =C36^2/(D36+Equations!$B$3) -> 4.070202134 | P36: =1/(D36+Equations!$B$3) -> 8.306534967 | Q36: 0.0535 | R36: 0.7
A37: =SQRT((((LOG(E37)-1)/0.4)-((LOG('Chart Data'!$F$86)-1)/0.4))^2+(C37-'Chart Data'!$D$87)^2+(D37/0.2-'Chart Data'!$F$87/0.2)^2+((H37-25)/175-('Chart Data'!$D$86-25)/175)^2) -> 0.2726947285 | B37: 36 | C37: 0.7 | D37: 0.0535 | E37: 21 | F37: 1313 | G37: 3.118264726 | H37: 25 | I37: 1 | J37: 0.03466197881 | K37: 0.04951711259 | L37: 0.07073873227 | M37: 0.6478874544 | N37: 1.322219295 | O37: =C37^2/(D37+Equations!$B$3) -> 4.070202134 | P37: =1/(D37+Equations!$B$3) -> 8.306534967 | Q37: 0.0535 | R37: 0.7
A38: =SQRT((((LOG(E38)-1)/0.4)-((LOG('Chart Data'!$F$86)-1)/0.4))^2+(C38-'Chart Data'!$D$87)^2+(D38/0.2-'Chart Data'!$F$87/0.2)^2+((H38-25)/175-('Chart Data'!$D$86-25)/175)^2) -> 0.2868182611 | B38: 37 | C38: 0.7 | D38: 0.0535 | E38: 22 | F38: 959 | G38: 2.981818607 | H38: 25 | I38: 1 | J38: 0.03519161058 | K38: 0.0502737294 | L38: 0.07181961342 | M38: 0.6577871136 | N38: 1.342422681 | O38: =C38^2/(D38+Equations!$B$3) -> 4.070202134 | P38: =1/(D38+Equations!$B$3) -> 8.306534967 | Q38: 0.0535 | R38: 0.7
A39: =SQRT((((LOG(E39)-1)/0.4)-((LOG('Chart Data'!$F$86)-1)/0.4))^2+(C39-'Chart Data'!$D$87)^2+(D39/0.2-'Chart Data'!$F$87/0.2)^2+((H39-25)/175-('Chart Data'!$D$86-25)/175)^2) -> 0.3075429627 | B39: 38 | C39: 0.7 | D39: 0.0535 | E39: 23 | F39: 622 | G39: 2.793790385 | H39: 25 | I39: 1 | J39: 0.03569769522 | K39: 0.05099670746 | L39: 0.07285243923 | M39: 0.6672466396 | N39: 1.361727836 | O39: =C39^2/(D39+Equations!$B$3) -> 4.070202134 | P39: =1/(D39+Equations!$B$3) -> 8.306534967 | Q39: 0.0535 | R39: 0.7
A40: =SQRT((((LOG(E40)-1)/0.4)-((LOG('Chart Data'!$F$86)-1)/0.4))^2+(C40-'Chart Data'!$D$87)^2+(D40/0.2-'Chart Data'!$F$87/0.2)^2+((H40-25)/175-('Chart Data'!$D$86-25)/175)^2) -> 0.332778734 | B40: 39 | C40: 0.7 | D40: 0.0535 | E40: 24 | F40: 453 | G40: 2.656098202 | H40: 25 | I40: 1 | J40: 0.0361822377 | K40: 0.051688911 | L40: 0.07384130143 | M40: 0.6763035084 | N40: 1.380211242 | O40: =C40^2/(D40+Equations!$B$3) -> 4.070202134 | P40: =1/(D40+Equations!$B$3) -> 8.306534967 | Q40: 0.0535 | R40: 0.7
A41: =SQRT((((LOG(E41)-1)/0.4)-((LOG('Chart Data'!$F$86)-1)/0.4))^2+(C41-'Chart Data'!$D$87)^2+(D41/0.2-'Chart Data'!$F$87/0.2)^2+((H41-25)/175-('Chart Data'!$D$86-25)/175)^2) -> 0.375 | B41: 40 | C41: 0.7 | D41: 0.075 | E41: 20 | F41: 916 | G41: 2.961895474 | H41: 25 | I41: 1 | J41: 0.04781285234 | K41: 0.06830407477 | L41: 0.09757724967 | M41: 0.6375046979 | N41: 1.301029996 | O41: =C41^2/(D41+Equations!$B$3) -> 3.453448953 | P41: =1/(D41+Equations!$B$3) -> 7.047855005 | Q41: 0.075 | R41: 0.7
A42: =SQRT((((LOG(E42)-1)/0.4)-((LOG('Chart Data'!$F$86)-1)/0.4))^2+(C42-'Chart Data'!$D$87)^2+(D42/0.2-'Chart Data'!$F$87/0.2)^2+((H42-25)/175-('Chart Data'!$D$86-25)/175)^2) -> 0.6009968314 | B42: 41 | C42: 0.7 | D42: 0.11 | E42: 16 | F42: 2070 | G42: 3.315970345 | H42: 25 | I42: 1 | J42: 0.06490206707 | K42: 0.09271723866 | L42: 0.1324531981 | M42: 0.5900187915 | N42: 1.204119983 | O42: =C42^2/(D42+Equations!$B$3) -> 2.770127868 | P42: =1/(D42+Equations!$B$3) -> 5.65332218 | Q42: 0.11 | R42: 0.7
A43: =SQRT((((LOG(E43)-1)/0.4)-((LOG('Chart Data'!$F$86)-1)/0.4))^2+(C43-'Chart Data'!$D$87)^2+(D43/0.2-'Chart Data'!$F$87/0.2)^2+((H43-25)/175-('Chart Data'!$D$86-25)/175)^2) -> 0.5617703487 | B43: 42 | C43: 0.7 | D43: 0.11 | E43: 18 | F43: 990 | G43: 2.995635195 | H43: 25 | I43: 1 | J43: 0.06765918803 | K43: 0.09665598289 | L43: 0.1380799756 | M43: 0.6150835275 | N43: 1.255272505 | O43: =C43^2/(D43+Equations!$B$3) -> 2.770127868 | P43: =1/(D43+Equations!$B$3) -> 5.65332218 | Q43: 0.11 | R43: 0.7
A44: =SQRT((((LOG(E44)-1)/0.4)-((LOG('Chart Data'!$F$86)-1)/0.4))^2+(C44-'Chart Data'!$D$87)^2+(D44/0.2-'Chart Data'!$F$87/0.2)^2+((H44-25)/175-('Chart Data'!$D$86-25)/175)^2) -> 0.5528123425 | B44: 43 | C44: 0.7 | D44: 0.11 | E44: 19 | F44: 627 | G44: 2.797267541 | H44: 25 | I44: 1 | J44: 0.06892481909 | K44: 0.09846402727 | L44: 0.1406628961 | M44: 0.6265892645 | N44: 1.278753601 | O44: =C44^2/(D44+Equations!$B$3) -> 2.770127868 | P44: =1/(D44+Equations!$B$3) -> 5.65332218 | Q44: 0.11 | R44: 0.7
A45: =SQRT((((LOG(E45)-1)/0.4)-((LOG('Chart Data'!$F$86)-1)/0.4))^2+(C45-'Chart Data'!$D$87)^2+(D45/0.2-'Chart Data'!$F$87/0.2)^2+((H45-25)/175-('Chart Data'!$D$86-25)/175)^2) -> 0.55 | B45: 44 | C45: 0.7 | D45: 0.11 | E45: 20 | F45: 460 | G45: 2.662757832 | H45: 25 | I45: 1 | J45: 0.07012551677 | K45: 0.1001793097 | L45: 0.1431132995 | M45: 0.6375046979 | N45: 1.301029996 | O45: =C45^2/(D45+Equations!$B$3) -> 2.770127868 | P45: =1/(D45+Equations!$B$3) -> 5.65332218 | Q45: 0.11 | R45: 0.7
A46: =SQRT((((LOG(E46)-1)/0.4)-((LOG('Chart Data'!$F$86)-1)/0.4))^2+(C46-'Chart Data'!$D$87)^2+(D46/0.2-'Chart Data'!$F$87/0.2)^2+((H46-25)/175-('Chart Data'!$D$86-25)/175)^2) -> 0.5525451701 | B46: 45 | C46: 0.7 | D46: 0.11 | E46: 21 | F46: 338 | G46: 2.5289167 | H46: 25 | I46: 1 | J46: 0.07126761999 | K46: 0.1018108857 | L46: 0.1454441224 | M46: 0.6478874544 | N46: 1.322219295 | O46: =C46^2/(D46+Equations!$B$3) -> 2.770127868 | P46: =1/(D46+Equations!$B$3) -> 5.65332218 | Q46: 0.11 | R46: 0.7
A47: =SQRT((((LOG(E47)-1)/0.4)-((LOG('Chart Data'!$F$86)-1)/0.4))^2+(C47-'Chart Data'!$D$87)^2+(D47/0.2-'Chart Data'!$F$87/0.2)^2+((H47-25)/175-('Chart Data'!$D$86-25)/175)^2) -> 0.5596503059 | B47: 46 | C47: 0.7 | D47: 0.11 | E47: 22 | F47: 261 | G47: 2.416640507 | H47: 25 | I47: 1 | J47: 0.0723565825 | K47: 0.1033665464 | L47: 0.1476664949 | M47: 0.6577871136 | N47: 1.342422681 | O47: =C47^2/(D47+Equations!$B$3) -> 2.770127868 | P47: =1/(D47+Equations!$B$3) -> 5.65332218 | Q47: 0.11 | R47: 0.7
A48: =SQRT((((LOG(E48)-1)/0.4)-((LOG('Chart Data'!$F$86)-1)/0.4))^2+(C48-'Chart Data'!$D$87)^2+(D48/0.2-'Chart Data'!$F$87/0.2)^2+((H48-25)/175-('Chart Data'!$D$86-25)/175)^2) -> 0.6 | B48: 47 | C48: 0.7 | D48: 0.12 | E48: 20 | F48: 337 | G48: 2.527629901 | H48: 25 | I48: 1 | J48: 0.07650056375 | K48: 0.1092865196 | L48: 0.1561235995 | M48: 0.6375046979 | N48: 1.301029996 | O48: =C48^2/(D48+Equations!$B$3) -> 2.621903231 | P48: =1/(D48+Equations!$B$3) -> 5.350822921 | Q48: 0.12 | R48: 0.7
A49: =SQRT((((LOG(E49)-1)/0.4)-((LOG('Chart Data'!$F$86)-1)/0.4))^2+(C49-'Chart Data'!$D$87)^2+(D49/0.2-'Chart Data'!$F$87/0.2)^2+((H49-25)/175-('Chart Data'!$D$86-25)/175)^2) -> 0.65 | B49: 48 | C49: 0.7 | D49: 0.13 | E49: 20 | F49: 274 | G49: 2.437750563 | H49: 25 | I49: 1 | J49: 0.08287561072 | K49: 0.1183937296 | L49: 0.1691338994 | M49: 0.6375046979 | N49: 1.301029996 | O49: =C49^2/(D49+Equations!$B$3) -> 2.488735407 | P49: =1/(D49+Equations!$B$3) -> 5.07905185 | Q49: 0.13 | R49: 0.7
A50: =SQRT((((LOG(E50)-1)/0.4)-((LOG('Chart Data'!$F$86)-1)/0.4))^2+(C50-'Chart Data'!$D$87)^2+(D50/0.2-'Chart Data'!$F$87/0.2)^2+((H50-25)/175-('Chart Data'!$D$86-25)/175)^2) -> 0.7 | B50: 49 | C50: 0.7 | D50: 0.14 | E50: 20 | F50: 244 | G50: 2.387389826 | H50: 25 | I50: 1 | J50: 0.0892506577 | K50: 0.1275009396 | L50: 0.1821441994 | M50: 0.6375046979 | N50: 1.301029996 | O50: =C50^2/(D50+Equations!$B$3) -> 2.368441057 | P50: =1/(D50+Equations!$B$3) -> 4.833553178 | Q50: 0.14 | R50: 0.7
A51: =SQRT((((LOG(E51)-1)/0.4)-((LOG('Chart Data'!$F$86)-1)/0.4))^2+(C51-'Chart Data'!$D$87)^2+(D51/0.2-'Chart Data'!$F$87/0.2)^2+((H51-25)/175-('Chart Data'!$D$86-25)/175)^2) -> 0.8690693582 | B51: 50 | C51: 0.7 | D51: 0.1622 | E51: 15 | F51: 1268 | G51: 3.103119254 | H51: 25 | I51: 1 | J51: 0.09347338109 | K51: 0.1335334016 | L51: 0.1907620022 | M51: 0.5762847169 | N51: 1.176091259 | O51: =C51^2/(D51+Equations!$B$3) -> 2.138924066 | P51: =1/(D51+Equations!$B$3) -> 4.365151155 | Q51: 0.1622 | R51: 0.7
A52: =SQRT((((LOG(E52)-1)/0.4)-((LOG('Chart Data'!$F$86)-1)/0.4))^2+(C52-'Chart Data'!$D$87)^2+(D52/0.2-'Chart Data'!$F$87/0.2)^2+((H52-25)/175-('Chart Data'!$D$86-25)/175)^2) -> 0.846414905 | B52: 51 | C52: 0.7 | D52: 0.1622 | E52: 16 | F52: 892 | G52: 2.950364854 | H52: 25 | I52: 1 | J52: 0.09570104798 | K52: 0.1367157828 | L52: 0.1953082612 | M52: 0.5900187915 | N52: 1.204119983 | O52: =C52^2/(D52+Equations!$B$3) -> 2.138924066 | P52: =1/(D52+Equations!$B$3) -> 4.365151155 | Q52: 0.1622 | R52: 0.7
A53: =SQRT((((LOG(E53)-1)/0.4)-((LOG('Chart Data'!$F$86)-1)/0.4))^2+(C53-'Chart Data'!$D$87)^2+(D53/0.2-'Chart Data'!$F$87/0.2)^2+((H53-25)/175-('Chart Data'!$D$86-25)/175)^2) -> 0.8299738251 | B53: 52 | C53: 0.7 | D53: 0.1622 | E53: 17 | F53: 535 | G53: 2.728353782 | H53: 25 | I53: 1 | J53: 0.09779361937 | K53: 0.1397051705 | L53: 0.199578815 | M53: 0.6029199715 | N53: 1.230448921 | O53: =C53^2/(D53+Equations!$B$3) -> 2.138924066 | P53: =1/(D53+Equations!$B$3) -> 4.365151155 | Q53: 0.1622 | R53: 0.7
A54: =SQRT((((LOG(E54)-1)/0.4)-((LOG('Chart Data'!$F$86)-1)/0.4))^2+(C54-'Chart Data'!$D$87)^2+(D54/0.2-'Chart Data'!$F$87/0.2)^2+((H54-25)/175-('Chart Data'!$D$86-25)/175)^2) -> 0.8299738251 | B54: 53 | C54: 0.7 | D54: 0.1622 | E54: 17 | F54: 654 | G54: 2.815577748 | H54: 25 | I54: 1 | J54: 0.09779361937 | K54: 0.1397051705 | L54: 0.199578815 | M54: 0.6029199715 | N54: 1.230448921 | O54: =C54^2/(D54+Equations!$B$3) -> 2.138924066 | P54: =1/(D54+Equations!$B$3) -> 4.365151155 | Q54: 0.1622 | R54: 0.7
A55: =SQRT((((LOG(E55)-1)/0.4)-((LOG('Chart Data'!$F$86)-1)/0.4))^2+(C55-'Chart Data'!$D$87)^2+(D55/0.2-'Chart Data'!$F$87/0.2)^2+((H55-25)/175-('Chart Data'!$D$86-25)/175)^2) -> 0.8190280365 | B55: 54 | C55: 0.7 | D55: 0.1622 | E55: 18 | F55: 370 | G55: 2.568201724 | H55: 25 | I55: 1 | J55: 0.09976654816 | K55: 0.1425236402 | L55: 0.2036052003 | M55: 0.6150835275 | N55: 1.255272505 | O55: =C55^2/(D55+Equations!$B$3) -> 2.138924066 | P55: =1/(D55+Equations!$B$3) -> 4.365151155 | Q55: 0.1622 | R55: 0.7
A56: =SQRT((((LOG(E56)-1)/0.4)-((LOG('Chart Data'!$F$86)-1)/0.4))^2+(C56-'Chart Data'!$D$87)^2+(D56/0.2-'Chart Data'!$F$87/0.2)^2+((H56-25)/175-('Chart Data'!$D$86-25)/175)^2) -> 0.8190280365 | B56: 55 | C56: 0.7 | D56: 0.1622 | E56: 18 | F56: 485 | G56: 2.685741739 | H56: 25 | I56: 1 | J56: 0.09976654816 | K56: 0.1425236402 | L56: 0.2036052003 | M56: 0.6150835275 | N56: 1.255272505 | O56: =C56^2/(D56+Equations!$B$3) -> 2.138924066 | P56: =1/(D56+Equations!$B$3) -> 4.365151155 | Q56: 0.1622 | R56: 0.7
A57: =SQRT((((LOG(E57)-1)/0.4)-((LOG('Chart Data'!$F$86)-1)/0.4))^2+(C57-'Chart Data'!$D$87)^2+(D57/0.2-'Chart Data'!$F$87/0.2)^2+((H57-25)/175-('Chart Data'!$D$86-25)/175)^2) -> 0.812909888 | B57: 56 | C57: 0.7 | D57: 0.1622 | E57: 19 | F57: 273 | G57: 2.436162647 | H57: 25 | I57: 1 | J57: 0.1016327787 | K57: 0.1451896839 | L57: 0.2074138341 | M57: 0.6265892645 | N57: 1.278753601 | O57: =C57^2/(D57+Equations!$B$3) -> 2.138924066 | P57: =1/(D57+Equations!$B$3) -> 4.365151155 | Q57: 0.1622 | R57: 0.7
A58: =SQRT((((LOG(E58)-1)/0.4)-((LOG('Chart Data'!$F$86)-1)/0.4))^2+(C58-'Chart Data'!$D$87)^2+(D58/0.2-'Chart Data'!$F$87/0.2)^2+((H58-25)/175-('Chart Data'!$D$86-25)/175)^2) -> 0.812909888 | B58: 57 | C58: 0.7 | D58: 0.1622 | E58: 19 | F58: 380 | G58: 2.579783597 | H58: 25 | I58: 1 | J58: 0.1016327787 | K58: 0.1451896839 | L58: 0.2074138341 | M58: 0.6265892645 | N58: 1.278753601 | O58: =C58^2/(D58+Equations!$B$3) -> 2.138924066 | P58: =1/(D58+Equations!$B$3) -> 4.365151155 | Q58: 0.1622 | R58: 0.7
A59: =SQRT((((LOG(E59)-1)/0.4)-((LOG('Chart Data'!$F$86)-1)/0.4))^2+(C59-'Chart Data'!$D$87)^2+(D59/0.2-'Chart Data'!$F$87/0.2)^2+((H59-25)/175-('Chart Data'!$D$86-25)/175)^2) -> 0.811 | B59: 58 | C59: 0.7 | D59: 0.1622 | E59: 20 | F59: 211 | G59: 2.324282455 | H59: 25 | I59: 1 | J59: 0.103403262 | K59: 0.1477189457 | L59: 0.2110270653 | M59: 0.6375046979 | N59: 1.301029996 | O59: =C59^2/(D59+Equations!$B$3) -> 2.138924066 | P59: =1/(D59+Equations!$B$3) -> 4.365151155 | Q59: 0.1622 | R59: 0.7
A60: =SQRT((((LOG(E60)-1)/0.4)-((LOG('Chart Data'!$F$86)-1)/0.4))^2+(C60-'Chart Data'!$D$87)^2+(D60/0.2-'Chart Data'!$F$87/0.2)^2+((H60-25)/175-('Chart Data'!$D$86-25)/175)^2) -> 0.811 | B60: 59 | C60: 0.7 | D60: 0.1622 | E60: 20 | F60: 222 | G60: 2.346352974 | H60: 25 | I60: 1 | J60: 0.103403262 | K60: 0.1477189457 | L60: 0.2110270653 | M60: 0.6375046979 | N60: 1.301029996 | O60: =C60^2/(D60+Equations!$B$3) -> 2.138924066 | P60: =1/(D60+Equations!$B$3) -> 4.365151155 | Q60: 0.1622 | R60: 0.7
A61: =SQRT((((LOG(E61)-1)/0.4)-((LOG('Chart Data'!$F$86)-1)/0.4))^2+(C61-'Chart Data'!$D$87)^2+(D61/0.2-'Chart Data'!$F$87/0.2)^2+((H61-25)/175-('Chart Data'!$D$86-25)/175)^2) -> 1 | B61: 60 | C61: 0.7 | D61: 0.2 | E61: 20 | F61: 193 | G61: 2.285557309 | H61: 25 | I61: 1 | J61: 0.1275009396 | K61: 0.1821441994 | L61: 0.2602059991 | M61: 0.6375046979 | N61: 1.301029996 | O61: =C61^2/(D61+Equations!$B$3) -> 1.835982046 | P61: =1/(D61+Equations!$B$3) -> 3.746902135 | Q61: 0.2 | R61: 0.7
A62: =SQRT((((LOG(E62)-1)/0.4)-((LOG('Chart Data'!$F$86)-1)/0.4))^2+(C62-'Chart Data'!$D$87)^2+(D62/0.2-'Chart Data'!$F$87/0.2)^2+((H62-25)/175-('Chart Data'!$D$86-25)/175)^2) -> 0.4232219269 | B62: 61 | C62: 0.8 | D62: 0.0535 | E62: 15 | F62: 10943 | G62: 4.039136399 | H62: 25 | I62: 1 | J62: 0.04026936471 | K62: 0.05033670589 | L62: 0.06292088236 | M62: 0.7526984058 | N62: 1.176091259 | O62: =C62^2/(D62+Equations!$B$3) -> 5.316182379 | P62: =1/(D62+Equations!$B$3) -> 8.306534967 | Q62: 0.0535 | R62: 0.8
A63: =SQRT((((LOG(E63)-1)/0.4)-((LOG('Chart Data'!$F$86)-1)/0.4))^2+(C63-'Chart Data'!$D$87)^2+(D63/0.2-'Chart Data'!$F$87/0.2)^2+((H63-25)/175-('Chart Data'!$D$86-25)/175)^2) -> 0.2909600248 | B63: 62 | C63: 0.8 | D63: 0.0535 | E63: 19 | F63: 2268 | G63: 3.35564305 | H63: 25 | I63: 1 | J63: 0.0437845233 | K63: 0.05473065412 | L63: 0.06841331765 | M63: 0.8184023046 | N63: 1.278753601 | O63: =C63^2/(D63+Equations!$B$3) -> 5.316182379 | P63: =1/(D63+Equations!$B$3) -> 8.306534967 | Q63: 0.0535 | R63: 0.8
A64: =SQRT((((LOG(E64)-1)/0.4)-((LOG('Chart Data'!$F$86)-1)/0.4))^2+(C64-'Chart Data'!$D$87)^2+(D64/0.2-'Chart Data'!$F$87/0.2)^2+((H64-25)/175-('Chart Data'!$D$86-25)/175)^2) -> 0.2855805491 | B64: 63 | C64: 0.8 | D64: 0.0535 | E64: 20 | F64: 1534 | G64: 3.18582536 | H64: 25 | I64: 1 | J64: 0.04454726705 | K64: 0.05568408381 | L64: 0.06960510477 | M64: 0.8326591972 | N64: 1.301029996 | O64: =C64^2/(D64+Equations!$B$3) -> 5.316182379 | P64: =1/(D64+Equations!$B$3) -> 8.306534967 | Q64: 0.0535 | R64: 0.8
A65: =SQRT((((LOG(E65)-1)/0.4)-((LOG('Chart Data'!$F$86)-1)/0.4))^2+(C65-'Chart Data'!$D$87)^2+(D65/0.2-'Chart Data'!$F$87/0.2)^2+((H65-25)/175-('Chart Data'!$D$86-25)/175)^2) -> 0.2904520872 | B65: 64 | C65: 0.8 | D65: 0.0535 | E65: 21 | F65: 1075 | G65: 3.031408464 | H65: 25 | I65: 1 | J65: 0.04527278865 | K65: 0.05659098581 | L65: 0.07073873227 | M65: 0.8462203486 | N65: 1.322219295 | O65: =C65^2/(D65+Equations!$B$3) -> 5.316182379 | P65: =1/(D65+Equations!$B$3) -> 8.306534967 | Q65: 0.0535 | R65: 0.8
A66: =SQRT((((LOG(E66)-1)/0.4)-((LOG('Chart Data'!$F$86)-1)/0.4))^2+(C66-'Chart Data'!$D$87)^2+(D66/0.2-'Chart Data'!$F$87/0.2)^2+((H66-25)/175-('Chart Data'!$D$86-25)/175)^2) -> 0.3037510739 | B66: 65 | C66: 0.8 | D66: 0.0535 | E66: 22 | F66: 800 | G66: =LOG(F66) -> 2.903089987 | H66: 25 | I66: 1 | J66: 0.04596455259 | K66: 0.05745569074 | L66: 0.07181961342 | M66: 0.8591505157 | N66: 1.342422681 | O66: =C66^2/(D66+Equations!$B$3) -> 5.316182379 | P66: =1/(D66+Equations!$B$3) -> 8.306534967 | Q66: 0.0535 | R66: 0.8
A67: =SQRT((((LOG(E67)-1)/0.4)-((LOG('Chart Data'!$F$86)-1)/0.4))^2+(C67-'Chart Data'!$D$87)^2+(D67/0.2-'Chart Data'!$F$87/0.2)^2+((H67-25)/175-('Chart Data'!$D$86-25)/175)^2) -> 0.3233924456 | B67: 66 | C67: 0.8 | D67: 0.0535 | E67: 23 | F67: 615 | G67: 2.788875116 | H67: 25 | I67: 1 | J67: =C67^2*LOG(E67)*D67 -> 0.04662556111 | K67: =C67*LOG(E67)*D67 -> 0.05828195138 | L67: =LOG(E67)*D67 -> 0.07285243923 | M67: =C67^2*LOG(E67) -> 0.8715058151 | N67: =LOG(E67) -> 1.361727836 | O67: =C67^2/(D67+Equations!$B$3) -> 5.316182379 | P67: =1/(D67+Equations!$B$3) -> 8.306534967 | Q67: =D67 -> 0.0535 | R67: =C67 -> 0.8
A68: =SQRT((((LOG(E68)-1)/0.4)-((LOG('Chart Data'!$F$86)-1)/0.4))^2+(C68-'Chart Data'!$D$87)^2+(D68/0.2-'Chart Data'!$F$87/0.2)^2+((H68-25)/175-('Chart Data'!$D$86-25)/175)^2) -> 0.4572929033 | B68: =B67+1 -> 67 | C68: 0.9 | D68: 0.0535 | E68: 15 | F68: 7273 | G68: 3.861713588 | H68: 25 | I68: 1 | J68: 0.05096591471 | K68: 0.05662879412 | L68: 0.06292088236 | M68: 0.9526339198 | N68: 1.176091259 | O68: =C68^2/(D68+Equations!$B$3) -> 6.728293323 | P68: =1/(D68+Equations!$B$3) -> 8.306534967 | Q68: 0.0535 | R68: 0.9
A69: =SQRT((((LOG(E69)-1)/0.4)-((LOG('Chart Data'!$F$86)-1)/0.4))^2+(C69-'Chart Data'!$D$87)^2+(D69/0.2-'Chart Data'!$F$87/0.2)^2+((H69-25)/175-('Chart Data'!$D$86-25)/175)^2) -> 0.3386114824 | B69: 68 | C69: 0.9 | D69: 0.0535 | E69: 19 | F69: 1854 | G69: 3.26810973 | H69: 25 | I69: 1 | J69: 0.0554147873 | K69: 0.06157198589 | L69: 0.06841331765 | M69: 1.035790417 | N69: 1.278753601 | O69: =C69^2/(D69+Equations!$B$3) -> 6.728293323 | P69: =1/(D69+Equations!$B$3) -> 8.306534967 | Q69: 0.0535 | R69: 0.9
A70: =SQRT((((LOG(E70)-1)/0.4)-((LOG('Chart Data'!$F$86)-1)/0.4))^2+(C70-'Chart Data'!$D$87)^2+(D70/0.2-'Chart Data'!$F$87/0.2)^2+((H70-25)/175-('Chart Data'!$D$86-25)/175)^2) -> 0.3381751247 | B70: 69 | C70: 0.9 | D70: 0.0535 | E70: 21 | F70: 996 | G70: 2.998259338 | H70: 25 | I70: 1 | J70: 0.05729837314 | K70: 0.06366485904 | L70: 0.07073873227 | M70: 1.070997629 | N70: 1.322219295 | O70: =C70^2/(D70+Equations!$B$3) -> 6.728293323 | P70: =1/(D70+Equations!$B$3) -> 8.306534967 | Q70: 0.0535 | R70: 0.9
A71: =SQRT((((LOG(E71)-1)/0.4)-((LOG('Chart Data'!$F$86)-1)/0.4))^2+(C71-'Chart Data'!$D$87)^2+(D71/0.2-'Chart Data'!$F$87/0.2)^2+((H71-25)/175-('Chart Data'!$D$86-25)/175)^2) -> 0.3668551129 | B71: 70 | C71: 0.9 | D71: 0.0535 | E71: 23 | F71: 561 | G71: 2.748962861 | H71: 25 | I71: 1 | J71: 0.05901047577 | K71: 0.0655671953 | L71: 0.07285243923 | M71: 1.102999547 | N71: 1.361727836 | O71: =C71^2/(D71+Equations!$B$3) -> 6.728293323 | P71: =1/(D71+Equations!$B$3) -> 8.306534967 | Q71: 0.0535 | R71: 0.9
A72: =SQRT((((LOG(E72)-1)/0.4)-((LOG('Chart Data'!$F$86)-1)/0.4))^2+(C72-'Chart Data'!$D$87)^2+(D72/0.2-'Chart Data'!$F$87/0.2)^2+((H72-25)/175-('Chart Data'!$D$86-25)/175)^2) -> 0.4126177909 | B72: 71 | C72: 0.9 | D72: 0.0535 | E72: 25 | F72: 350 | G72: 2.544068044 | H72: 25 | I72: 1 | J72: 0.06057973028 | K72: 0.06731081142 | L72: 0.07478979046 | M72: 1.132331407 | N72: 1.397940009 | O72: =C72^2/(D72+Equations!$B$3) -> 6.728293323 | P72: =1/(D72+Equations!$B$3) -> 8.306534967 | Q72: 0.0535 | R72: 0.9
A73: =SQRT((((LOG(E73)-1)/0.4)-((LOG('Chart Data'!$F$86)-1)/0.4))^2+(C73-'Chart Data'!$D$87)^2+(D73/0.2-'Chart Data'!$F$87/0.2)^2+((H73-25)/175-('Chart Data'!$D$86-25)/175)^2) -> 0.6334012878 | B73: 72 | C73: 0.9 | D73: 0.11 | E73: 16 | F73: 2208 | G73: 3.343999069 | H73: 25 | I73: 1 | J73: 0.1072870905 | K73: 0.1192078783 | L73: 0.1324531981 | M73: 0.975337186 | N73: 1.204119983 | O73: =C73^2/(D73+Equations!$B$3) -> 4.579190965 | P73: =1/(D73+Equations!$B$3) -> 5.65332218 | Q73: 0.11 | R73: 0.9
A74: =SQRT((((LOG(E74)-1)/0.4)-((LOG('Chart Data'!$F$86)-1)/0.4))^2+(C74-'Chart Data'!$D$87)^2+(D74/0.2-'Chart Data'!$F$87/0.2)^2+((H74-25)/175-('Chart Data'!$D$86-25)/175)^2) -> 0.5876275734 | B74: 73 | C74: 0.9 | D74: 0.11 | E74: 21 | F74: 514 | G74: 2.710963119 | H74: 25 | I74: 1 | J74: 0.1178097392 | K74: 0.1308997102 | L74: 0.1454441224 | M74: 1.070997629 | N74: 1.322219295 | O74: =C74^2/(D74+Equations!$B$3) -> 4.579190965 | P74: =1/(D74+Equations!$B$3) -> 5.65332218 | Q74: 0.11 | R74: 0.9
A75: =SQRT((((LOG(E75)-1)/0.4)-((LOG('Chart Data'!$F$86)-1)/0.4))^2+(C75-'Chart Data'!$D$87)^2+(D75/0.2-'Chart Data'!$F$87/0.2)^2+((H75-25)/175-('Chart Data'!$D$86-25)/175)^2) -> 0.2517721515 | B75: 74 | C75: 0.91018 | D75: 0 | E75: 22.7235 | F75: 3446 | G75: 3.537315273 | H75: 25 | I75: 1 | J75: 0 | K75: 0 | L75: 0 | M75: 1.123741559 | N75: 1.356475225 | O75: =C75^2/(D75+Equations!$B$3) -> 12.38545428 | P75: =1/(D75+Equations!$B$3) -> 14.95055669 | Q75: 0 | R75: 0.91018
A76: =SQRT((((LOG(E76)-1)/0.4)-((LOG('Chart Data'!$F$86)-1)/0.4))^2+(C76-'Chart Data'!$D$87)^2+(D76/0.2-'Chart Data'!$F$87/0.2)^2+((H76-25)/175-('Chart Data'!$D$86-25)/175)^2) -> 0.3594237552 | B76: 75 | C76: 1 | D76: 0 | E76: 24 | F76: 2039 | G76: 3.309417226 | H76: 25 | I76: 1 | J76: 0 | K76: 0 | L76: 0 | M76: 1.380211242 | N76: 1.380211242 | O76: =C76^2/(D76+Equations!$B$3) -> 14.95055669 | P76: =1/(D76+Equations!$B$3) -> 14.95055669 | Q76: 0 | R76: 1
A77: =SQRT((((LOG(E77)-1)/0.4)-((LOG('Chart Data'!$F$86)-1)/0.4))^2+(C77-'Chart Data'!$D$87)^2+(D77/0.2-'Chart Data'!$F$87/0.2)^2+((H77-25)/175-('Chart Data'!$D$86-25)/175)^2) -> 0.385612748 | B77: 76 | C77: 1 | D77: 0 | E77: 25 | F77: 1711 | G77: 3.23325001 | H77: 25 | I77: 1 | J77: 0 | K77: 0 | L77: 0 | M77: 1.397940009 | N77: 1.397940009 | O77: =C77^2/(D77+Equations!$B$3) -> 14.95055669 | P77: =1/(D77+Equations!$B$3) -> 14.95055669 | Q77: 0 | R77: 1
A78: =SQRT((((LOG(E78)-1)/0.4)-((LOG('Chart Data'!$F$86)-1)/0.4))^2+(C78-'Chart Data'!$D$87)^2+(D78/0.2-'Chart Data'!$F$87/0.2)^2+((H78-25)/175-('Chart Data'!$D$86-25)/175)^2) -> 0.5090351652 | B78: 77 | C78: 1 | D78: 0.0535 | E78: 15 | F78: 6125 | G78: 3.787106093 | H78: 25 | I78: 1 | J78: 0.06292088236 | K78: 0.06292088236 | L78: 0.06292088236 | M78: 1.176091259 | N78: 1.176091259 | O78: =C78^2/(D78+Equations!$B$3) -> 8.306534967 | P78: =1/(D78+Equations!$B$3) -> 8.306534967 | Q78: 0.0535 | R78: 1
A79: =SQRT((((LOG(E79)-1)/0.4)-((LOG('Chart Data'!$F$86)-1)/0.4))^2+(C79-'Chart Data'!$D$87)^2+(D79/0.2-'Chart Data'!$F$87/0.2)^2+((H79-25)/175-('Chart Data'!$D$86-25)/175)^2) -> 0.4389667417 | B79: 78 | C79: 1 | D79: 0.0535 | E79: 17 | F79: 3190 | G79: 3.503790683 | H79: 25 | I79: 1 | J79: 0.06582901729 | K79: 0.06582901729 | L79: 0.06582901729 | M79: 1.230448921 | N79: 1.230448921 | O79: =C79^2/(D79+Equations!$B$3) -> 8.306534967 | P79: =1/(D79+Equations!$B$3) -> 8.306534967 | Q79: 0.0535 | R79: 1
A80: =SQRT((((LOG(E80)-1)/0.4)-((LOG('Chart Data'!$F$86)-1)/0.4))^2+(C80-'Chart Data'!$D$87)^2+(D80/0.2-'Chart Data'!$F$87/0.2)^2+((H80-25)/175-('Chart Data'!$D$86-25)/175)^2) -> 0.4057804037 | B80: 79 | C80: 1 | D80: 0.0535 | E80: 19 | F80: 1970 | G80: 3.294466226 | H80: 25 | I80: 1 | J80: 0.06841331765 | K80: 0.06841331765 | L80: 0.06841331765 | M80: 1.278753601 | N80: 1.278753601 | O80: =C80^2/(D80+Equations!$B$3) -> 8.306534967 | P80: =1/(D80+Equations!$B$3) -> 8.306534967 | Q80: 0.0535 | R80: 1
A81: =SQRT((((LOG(E81)-1)/0.4)-((LOG('Chart Data'!$F$86)-1)/0.4))^2+(C81-'Chart Data'!$D$87)^2+(D81/0.2-'Chart Data'!$F$87/0.2)^2+((H81-25)/175-('Chart Data'!$D$86-25)/175)^2) -> 0.4054163477 | B81: 80 | C81: 1 | D81: 0.0535 | E81: 21 | F81: 1317 | G81: 3.119585775 | H81: 25 | I81: 1 | J81: 0.07073873227 | K81: 0.07073873227 | L81: 0.07073873227 | M81: 1.322219295 | N81: 1.322219295 | O81: =C81^2/(D81+Equations!$B$3) -> 8.306534967 | P81: =1/(D81+Equations!$B$3) -> 8.306534967 | Q81: 0.0535 | R81: 1
A82: =SQRT((((LOG(E82)-1)/0.4)-((LOG('Chart Data'!$F$86)-1)/0.4))^2+(C82-'Chart Data'!$D$87)^2+(D82/0.2-'Chart Data'!$F$87/0.2)^2+((H82-25)/175-('Chart Data'!$D$86-25)/175)^2) -> 0.4150478465 | B82: 81 | C82: 1 | D82: 0.0535 | E82: 22 | F82: 1019 | G82: 3.008174184 | H82: 25 | I82: 1 | J82: 0.07181961342 | K82: 0.07181961342 | L82: 0.07181961342 | M82: 1.342422681 | N82: 1.342422681 | O82: =C82^2/(D82+Equations!$B$3) -> 8.306534967 | P82: =1/(D82+Equations!$B$3) -> 8.306534967 | Q82: 0.0535 | R82: 1
A83: =SQRT((((LOG(E83)-1)/0.4)-((LOG('Chart Data'!$F$86)-1)/0.4))^2+(C83-'Chart Data'!$D$87)^2+(D83/0.2-'Chart Data'!$F$87/0.2)^2+((H83-25)/175-('Chart Data'!$D$86-25)/175)^2) -> 0.4296308577 | B83: 82 | C83: 1 | D83: 0.0535 | E83: 23 | F83: 738 | G83: 2.868056362 | H83: 25 | I83: 1 | J83: 0.07285243923 | K83: 0.07285243923 | L83: 0.07285243923 | M83: 1.361727836 | N83: 1.361727836 | O83: =C83^2/(D83+Equations!$B$3) -> 8.306534967 | P83: =1/(D83+Equations!$B$3) -> 8.306534967 | Q83: 0.0535 | R83: 1
A84: =SQRT((((LOG(E84)-1)/0.4)-((LOG('Chart Data'!$F$86)-1)/0.4))^2+(C84-'Chart Data'!$D$87)^2+(D84/0.2-'Chart Data'!$F$87/0.2)^2+((H84-25)/175-('Chart Data'!$D$86-25)/175)^2) -> 0.4480420581 | B84: 83 | C84: 1 | D84: 0.0535 | E84: 24 | F84: 654 | G84: 2.815577748 | H84: 25 | I84: 1 | J84: 0.07384130143 | K84: 0.07384130143 | L84: 0.07384130143 | M84: 1.380211242 | N84: 1.380211242 | O84: =C84^2/(D84+Equations!$B$3) -> 8.306534967 | P84: =1/(D84+Equations!$B$3) -> 8.306534967 | Q84: 0.0535 | R84: 1
A85: =SQRT((((LOG(E85)-1)/0.4)-((LOG('Chart Data'!$F$86)-1)/0.4))^2+(C85-'Chart Data'!$D$87)^2+(D85/0.2-'Chart Data'!$F$87/0.2)^2+((H85-25)/175-('Chart Data'!$D$86-25)/175)^2) -> 0.4693116676 | B85: 84 | C85: 1 | D85: 0.0535 | E85: 25 | F85: 476 | G85: 2.677606953 | H85: 25 | I85: 1 | J85: 0.07478979046 | K85: 0.07478979046 | L85: 0.07478979046 | M85: 1.397940009 | N85: 1.397940009 | O85: =C85^2/(D85+Equations!$B$3) -> 8.306534967 | P85: =1/(D85+Equations!$B$3) -> 8.306534967 | Q85: 0.0535 | R85: 1
A86: =SQRT((((LOG(E86)-1)/0.4)-((LOG('Chart Data'!$F$86)-1)/0.4))^2+(C86-'Chart Data'!$D$87)^2+(D86/0.2-'Chart Data'!$F$87/0.2)^2+((H86-25)/175-('Chart Data'!$D$86-25)/175)^2) -> 0.6717121343 | B86: 85 | C86: 1 | D86: 0.11 | E86: 16 | F86: 2565 | G86: 3.409087369 | H86: 25 | I86: 1 | J86: 0.1324531981 | K86: 0.1324531981 | L86: 0.1324531981 | M86: 1.204119983 | N86: 1.204119983 | O86: =C86^2/(D86+Equations!$B$3) -> 5.65332218 | P86: =1/(D86+Equations!$B$3) -> 5.65332218 | Q86: 0.11 | R86: 1
A87: =SQRT((((LOG(E87)-1)/0.4)-((LOG('Chart Data'!$F$86)-1)/0.4))^2+(C87-'Chart Data'!$D$87)^2+(D87/0.2-'Chart Data'!$F$87/0.2)^2+((H87-25)/175-('Chart Data'!$D$86-25)/175)^2) -> 0.6287337791 | B87: 86 | C87: 1 | D87: 0.11 | E87: 21 | F87: 848 | G87: 2.928395852 | H87: 25 | I87: 1 | J87: 0.1454441224 | K87: 0.1454441224 | L87: 0.1454441224 | M87: 1.322219295 | N87: 1.322219295 | O87: =C87^2/(D87+Equations!$B$3) -> 5.65332218 | P87: =1/(D87+Equations!$B$3) -> 5.65332218 | Q87: 0.11 | R87: 1
A88: =SQRT((((LOG(E88)-1)/0.4)-((LOG('Chart Data'!$F$86)-1)/0.4))^2+(C88-'Chart Data'!$D$87)^2+(D88/0.2-'Chart Data'!$F$87/0.2)^2+((H88-25)/175-('Chart Data'!$D$86-25)/175)^2) -> 0.9193919455 | B88: 87 | C88: 1 | D88: 0.1622 | E88: 15 | F88: 3002 | G88: 3.477410688 | H88: 25 | I88: 1 | J88: 0.1907620022 | K88: 0.1907620022 | L88: 0.1907620022 | M88: 1.176091259 | N88: 1.176091259 | O88: =C88^2/(D88+Equations!$B$3) -> 4.365151155 | P88: =1/(D88+Equations!$B$3) -> 4.365151155 | Q88: 0.1622 | R88: 1
A89: =SQRT((((LOG(E89)-1)/0.4)-((LOG('Chart Data'!$F$86)-1)/0.4))^2+(C89-'Chart Data'!$D$87)^2+(D89/0.2-'Chart Data'!$F$87/0.2)^2+((H89-25)/175-('Chart Data'!$D$86-25)/175)^2) -> 0.8825284983 | B89: 88 | C89: 1 | D89: 0.1622 | E89: 17 | F89: 1759 | G89: 3.245265839 | H89: 25 | I89: 1 | J89: 0.199578815 | K89: 0.199578815 | L89: 0.199578815 | M89: 1.230448921 | N89: 1.230448921 | O89: =C89^2/(D89+Equations!$B$3) -> 4.365151155 | P89: =1/(D89+Equations!$B$3) -> 4.365151155 | Q89: 0.1622 | R89: 1
A90: =SQRT((((LOG(E90)-1)/0.4)-((LOG('Chart Data'!$F$86)-1)/0.4))^2+(C90-'Chart Data'!$D$87)^2+(D90/0.2-'Chart Data'!$F$87/0.2)^2+((H90-25)/175-('Chart Data'!$D$86-25)/175)^2) -> 0.872242469 | B90: 89 | C90: 1 | D90: 0.1622 | E90: 18 | F90: 1324 | G90: 3.121887985 | H90: 25 | I90: 1 | J90: 0.2036052003 | K90: 0.2036052003 | L90: 0.2036052003 | M90: 1.255272505 | N90: 1.255272505 | O90: =C90^2/(D90+Equations!$B$3) -> 4.365151155 | P90: =1/(D90+Equations!$B$3) -> 4.365151155 | Q90: 0.1622 | R90: 1
A91: =SQRT((((LOG(E91)-1)/0.4)-((LOG('Chart Data'!$F$86)-1)/0.4))^2+(C91-'Chart Data'!$D$87)^2+(D91/0.2-'Chart Data'!$F$87/0.2)^2+((H91-25)/175-('Chart Data'!$D$86-25)/175)^2) -> 0.8647086214 | B91: 90 | C91: 1 | D91: 0.1622 | E91: 20 | F91: 851 | G91: 2.92992956 | H91: 25 | I91: 1 | J91: 0.2110270653 | K91: 0.2110270653 | L91: 0.2110270653 | M91: 1.301029996 | N91: 1.301029996 | O91: =C91^2/(D91+Equations!$B$3) -> 4.365151155 | P91: =1/(D91+Equations!$B$3) -> 4.365151155 | Q91: 0.1622 | R91: 1
A92: =SQRT((((LOG(E92)-1)/0.4)-((LOG('Chart Data'!$F$86)-1)/0.4))^2+(C92-'Chart Data'!$D$87)^2+(D92/0.2-'Chart Data'!$F$87/0.2)^2+((H92-25)/175-('Chart Data'!$D$86-25)/175)^2) -> 0.9836783147 | B92: 91 | C92: 0 | D92: 0 | E92: 18 | F92: 76199 | G92: 4.881949272 | H92: 144.2746777 | S92: 1 | T92: =LOG(E92) -> 1.255272505 | U92: =LOG(E92)*C92 -> 0 | V92: =C92^2 -> 0
A93: =SQRT((((LOG(E93)-1)/0.4)-((LOG('Chart Data'!$F$86)-1)/0.4))^2+(C93-'Chart Data'!$D$87)^2+(D93/0.2-'Chart Data'!$F$87/0.2)^2+((H93-25)/175-('Chart Data'!$D$86-25)/175)^2) -> 0.978043486 | B93: 92 | C93: 0 | D93: 0 | E93: 18.5 | F93: 63004 | G93: 4.799368123 | H93: 143.6138809 | S93: 1 | T93: =LOG(E93) -> 1.267171728 | U93: =LOG(E93)*C93 -> 0 | V93: =C93^2 -> 0
A94: =SQRT((((LOG(E94)-1)/0.4)-((LOG('Chart Data'!$F$86)-1)/0.4))^2+(C94-'Chart Data'!$D$87)^2+(D94/0.2-'Chart Data'!$F$87/0.2)^2+((H94-25)/175-('Chart Data'!$D$86-25)/175)^2) -> 0.9771686836 | B94: 93 | C94: 0 | D94: 0 | E94: 19 | F94: 44106 | G94: =LOG(F94) -> 4.644497673 | H94: 143.9172516 | S94: 1 | T94: 1.278753601 | U94: 0 | V94: 0
A95: =SQRT((((LOG(E95)-1)/0.4)-((LOG('Chart Data'!$F$86)-1)/0.4))^2+(C95-'Chart Data'!$D$87)^2+(D95/0.2-'Chart Data'!$F$87/0.2)^2+((H95-25)/175-('Chart Data'!$D$86-25)/175)^2) -> 0.9208684101 | B95: 94 | C95: 0.1 | D95: 0 | E95: 17 | F95: 75623 | G95: 4.878653902 | H95: 143.2853828 | S95: 1 | T95: 1.230448921 | U95: 0.1230448921 | V95: 0.01
A96: =SQRT((((LOG(E96)-1)/0.4)-((LOG('Chart Data'!$F$86)-1)/0.4))^2+(C96-'Chart Data'!$D$87)^2+(D96/0.2-'Chart Data'!$F$87/0.2)^2+((H96-25)/175-('Chart Data'!$D$86-25)/175)^2) -> 0.9087714539 | B96: 95 | C96: 0.1 | D96: 0 | E96: 17.5 | F96: 52201 | G96: 4.717678823 | H96: 141.7194105 | S96: 1 | T96: 1.243038049 | U96: 0.1243038049 | V96: 0.01
A97: =SQRT((((LOG(E97)-1)/0.4)-((LOG('Chart Data'!$F$86)-1)/0.4))^2+(C97-'Chart Data'!$D$87)^2+(D97/0.2-'Chart Data'!$F$87/0.2)^2+((H97-25)/175-('Chart Data'!$D$86-25)/175)^2) -> 0.9093615427 | B97: 96 | C97: 0.1 | D97: 0 | E97: 18 | F97: 38389 | G97: 4.584206799 | H97: 142.8950064 | S97: 1 | T97: 1.255272505 | U97: 0.1255272505 | V97: 0.01
A98: =SQRT((((LOG(E98)-1)/0.4)-((LOG('Chart Data'!$F$86)-1)/0.4))^2+(C98-'Chart Data'!$D$87)^2+(D98/0.2-'Chart Data'!$F$87/0.2)^2+((H98-25)/175-('Chart Data'!$D$86-25)/175)^2) -> 0.8943869948 | B98: 97 | C98: 0.1 | D98: 0 | E98: 19 | F98: 8814 | G98: 3.945173046 | H98: 140.6625045 | S98: 1 | T98: 1.278753601 | U98: 0.1278753601 | V98: 0.01
A99: =SQRT((((LOG(E99)-1)/0.4)-((LOG('Chart Data'!$F$86)-1)/0.4))^2+(C99-'Chart Data'!$D$87)^2+(D99/0.2-'Chart Data'!$F$87/0.2)^2+((H99-25)/175-('Chart Data'!$D$86-25)/175)^2) -> 0.8776483142 | B99: 98 | C99: 0.2 | D99: 0 | E99: 16 | F99: 75616 | G99: 4.8786137 | H99: 143.8930697 | S99: 1 | T99: 1.204119983 | U99: 0.2408239965 | V99: 0.04
A100: =SQRT((((LOG(E100)-1)/0.4)-((LOG('Chart Data'!$F$86)-1)/0.4))^2+(C100-'Chart Data'!$D$87)^2+(D100/0.2-'Chart Data'!$F$87/0.2)^2+((H100-25)/175-('Chart Data'!$D$86-25)/175)^2) -> 0.8752709796 | B100: 99 | C100: 0.2 | D100: 0 | E100: 16.5 | F100: 46804 | G100: 4.670282971 | H100: 145.2893845 | S100: 1 | T100: 1.217483944 | U100: 0.2434967888 | V100: 0.04
A101: =SQRT((((LOG(E101)-1)/0.4)-((LOG('Chart Data'!$F$86)-1)/0.4))^2+(C101-'Chart Data'!$D$87)^2+(D101/0.2-'Chart Data'!$F$87/0.2)^2+((H101-25)/175-('Chart Data'!$D$86-25)/175)^2) -> 0.8544999226 | B101: 100 | C101: 0.2 | D101: 0 | E101: 17 | F101: 30302 | G101: 4.481471294 | H101: 142.2675728 | S101: 1 | T101: 1.230448921 | U101: 0.2460897843 | V101: 0.04
A102: =SQRT((((LOG(E102)-1)/0.4)-((LOG('Chart Data'!$F$86)-1)/0.4))^2+(C102-'Chart Data'!$D$87)^2+(D102/0.2-'Chart Data'!$F$87/0.2)^2+((H102-25)/175-('Chart Data'!$D$86-25)/175)^2) -> 0.8541087391 | B102: 101 | C102: 0.2 | D102: 0 | E102: 17.5 | F102: 15517 | G102: 4.19080776 | H102: 143.4948476 | S102: 1 | T102: 1.243038049 | U102: 0.2486076097 | V102: 0.04
A103: =SQRT((((LOG(E103)-1)/0.4)-((LOG('Chart Data'!$F$86)-1)/0.4))^2+(C103-'Chart Data'!$D$87)^2+(D103/0.2-'Chart Data'!$F$87/0.2)^2+((H103-25)/175-('Chart Data'!$D$86-25)/175)^2) -> 0.8405749941 | B103: 102 | C103: 0.2 | D103: 0 | E103: 18 | F103: 10935 | G103: 4.038818787 | H103: 141.5400666 | S103: 1 | T103: 1.255272505 | U103: 0.251054501 | V103: 0.04
A104: =SQRT((((LOG(E104)-1)/0.4)-((LOG('Chart Data'!$F$86)-1)/0.4))^2+(C104-'Chart Data'!$D$87)^2+(D104/0.2-'Chart Data'!$F$87/0.2)^2+((H104-25)/175-('Chart Data'!$D$86-25)/175)^2) -> 0.8302051507 | B104: 103 | C104: 0.2 | D104: 0 | E104: 18.5 | F104: 7203 | G104: 3.857513415 | H104: 140.0318148 | S104: 1 | T104: 1.267171728 | U104: 0.2534343457 | V104: 0.04
A105: =SQRT((((LOG(E105)-1)/0.4)-((LOG('Chart Data'!$F$86)-1)/0.4))^2+(C105-'Chart Data'!$D$87)^2+(D105/0.2-'Chart Data'!$F$87/0.2)^2+((H105-25)/175-('Chart Data'!$D$86-25)/175)^2) -> 0.8269820683 | B105: 104 | C105: 0.2 | D105: 0 | E105: 19 | F105: 4380 | G105: 3.641474111 | H105: 139.8615876 | S105: 1 | T105: 1.278753601 | U105: 0.2557507202 | V105: 0.04
A106: =SQRT((((LOG(E106)-1)/0.4)-((LOG('Chart Data'!$F$86)-1)/0.4))^2+(C106-'Chart Data'!$D$87)^2+(D106/0.2-'Chart Data'!$F$87/0.2)^2+((H106-25)/175-('Chart Data'!$D$86-25)/175)^2) -> 0.8149655515 | B106: 105 | C106: 0.3 | D106: 0 | E106: 16 | F106: 21600 | G106: 4.334453751 | H106: 141.8014107 | S106: 1 | T106: 1.204119983 | U106: 0.3612359948 | V106: 0.09
A107: =SQRT((((LOG(E107)-1)/0.4)-((LOG('Chart Data'!$F$86)-1)/0.4))^2+(C107-'Chart Data'!$D$87)^2+(D107/0.2-'Chart Data'!$F$87/0.2)^2+((H107-25)/175-('Chart Data'!$D$86-25)/175)^2) -> 0.7983428445 | B107: 106 | C107: 0.3 | D107: 0 | E107: 17 | F107: 5825 | G107: 3.76529593 | H107: 141.898919 | S107: 1 | T107: 1.230448921 | U107: 0.3691346764 | V107: 0.09
A108: =SQRT((((LOG(E108)-1)/0.4)-((LOG('Chart Data'!$F$86)-1)/0.4))^2+(C108-'Chart Data'!$D$87)^2+(D108/0.2-'Chart Data'!$F$87/0.2)^2+((H108-25)/175-('Chart Data'!$D$86-25)/175)^2) -> 0.6321110627 | B108: 107 | C108: 0.3 | D108: 0 | E108: 17 | F108: 60853 | G108: 4.784281993 | H108: 104.8945141 | S108: 1 | T108: 1.230448921 | U108: 0.3691346764 | V108: 0.09
A109: =SQRT((((LOG(E109)-1)/0.4)-((LOG('Chart Data'!$F$86)-1)/0.4))^2+(C109-'Chart Data'!$D$87)^2+(D109/0.2-'Chart Data'!$F$87/0.2)^2+((H109-25)/175-('Chart Data'!$D$86-25)/175)^2) -> 0.8184817867 | B109: 108 | C109: 0.4 | D109: 0 | E109: 14.5 | F109: 23400 | G109: 4.369215857 | H109: 143.4328882 | S109: 1 | T109: 1.161368002 | U109: 0.4645472009 | V109: 0.16
A110: =SQRT((((LOG(E110)-1)/0.4)-((LOG('Chart Data'!$F$86)-1)/0.4))^2+(C110-'Chart Data'!$D$87)^2+(D110/0.2-'Chart Data'!$F$87/0.2)^2+((H110-25)/175-('Chart Data'!$D$86-25)/175)^2) -> 0.805473328 | B110: 109 | C110: 0.4 | D110: 0 | E110: 15 | F110: 13654 | G110: 4.135259899 | H110: 143.8489322 | S110: 1 | T110: 1.176091259 | U110: 0.4704365036 | V110: 0.16
A111: =SQRT((((LOG(E111)-1)/0.4)-((LOG('Chart Data'!$F$86)-1)/0.4))^2+(C111-'Chart Data'!$D$87)^2+(D111/0.2-'Chart Data'!$F$87/0.2)^2+((H111-25)/175-('Chart Data'!$D$86-25)/175)^2) -> 0.7835677674 | B111: 110 | C111: 0.4 | D111: 0 | E111: 15.5 | F111: 7130 | G111: 3.85308953 | H111: 142.0526637 | S111: 1 | T111: 1.190331698 | U111: 0.4761326793 | V111: 0.16
A112: =SQRT((((LOG(E112)-1)/0.4)-((LOG('Chart Data'!$F$86)-1)/0.4))^2+(C112-'Chart Data'!$D$87)^2+(D112/0.2-'Chart Data'!$F$87/0.2)^2+((H112-25)/175-('Chart Data'!$D$86-25)/175)^2) -> 0.798194781 | B112: 111 | C112: 0.5 | D112: 0 | E112: 14 | F112: 8580 | G112: 3.933487288 | H112: 142.0210424 | S112: 1 | T112: 1.146128036 | U112: 0.5730640178 | V112: 0.25
A113: =SQRT((((LOG(E113)-1)/0.4)-((LOG('Chart Data'!$F$86)-1)/0.4))^2+(C113-'Chart Data'!$D$87)^2+(D113/0.2-'Chart Data'!$F$87/0.2)^2+((H113-25)/175-('Chart Data'!$D$86-25)/175)^2) -> 0.7329498502 | B113: 112 | C113: 0.5 | D113: 0 | E113: 15 | F113: 2619 | G113: 3.418135498 | H113: 135.631968 | S113: 1 | T113: 1.176091259 | U113: 0.5880456295 | V113: 0.25
A114: =SQRT((((LOG(E114)-1)/0.4)-((LOG('Chart Data'!$F$86)-1)/0.4))^2+(C114-'Chart Data'!$D$87)^2+(D114/0.2-'Chart Data'!$F$87/0.2)^2+((H114-25)/175-('Chart Data'!$D$86-25)/175)^2) -> 0.7648313361 | B114: 113 | C114: 0.55 | D114: 0 | E114: 14 | F114: 4618 | G114: 3.664453929 | H114: 137.3958689 | S114: 1 | T114: 1.146128036 | U114: 0.6303704196 | V114: 0.3025
A115: =SQRT((((LOG(E115)-1)/0.4)-((LOG('Chart Data'!$F$86)-1)/0.4))^2+(C115-'Chart Data'!$D$87)^2+(D115/0.2-'Chart Data'!$F$87/0.2)^2+((H115-25)/175-('Chart Data'!$D$86-25)/175)^2) -> 0.8093061552 | B115: 114 | C115: 0.6 | D115: 0 | E115: 13 | F115: 6600 | G115: 3.819543936 | H115: 139.2493537 | S115: 1 | T115: 1.113943352 | U115: 0.6683660114 | V115: 0.36
A116: =SQRT((((LOG(E116)-1)/0.4)-((LOG('Chart Data'!$F$86)-1)/0.4))^2+(C116-'Chart Data'!$D$87)^2+(D116/0.2-'Chart Data'!$F$87/0.2)^2+((H116-25)/175-('Chart Data'!$D$86-25)/175)^2) -> 0.655388529 | B116: 115 | C116: 0.6 | D116: 0 | E116: 15 | F116: 1569 | G116: 3.195622944 | H116: 124.2997519 | S116: 1 | T116: 1.176091259 | U116: 0.7056547554 | V116: 0.36
A117: =SQRT((((LOG(E117)-1)/0.4)-((LOG('Chart Data'!$F$86)-1)/0.4))^2+(C117-'Chart Data'!$D$87)^2+(D117/0.2-'Chart Data'!$F$87/0.2)^2+((H117-25)/175-('Chart Data'!$D$86-25)/175)^2) -> 0.8383751209 | B117: 116 | C117: 0.7 | D117: 0 | E117: 12 | F117: 3300 | G117: 3.51851394 | H117: 135.0230191 | S117: 1 | T117: 1.079181246 | U117: 0.7554268722 | V117: 0.49
A118: =SQRT((((LOG(E118)-1)/0.4)-((LOG('Chart Data'!$F$86)-1)/0.4))^2+(C118-'Chart Data'!$D$87)^2+(D118/0.2-'Chart Data'!$F$87/0.2)^2+((H118-25)/175-('Chart Data'!$D$86-25)/175)^2) -> 0.8639318514 | B118: 117 | C118: 0.8 | D118: 0 | E118: 11 | F118: 1596 | G118: 3.203032887 | H118: 123.2272619 | S118: 1 | T118: 1.041392685 | U118: 0.8331141481 | V118: 0.64
A121: 25C XTX
A122: =MMULT(TRANSPOSE($I$2:$R$91),$I$2:$R$91) -> 90 | B122: 5.376830753 | C122: 7.219515876 | D122: 10.2739975 | E122: 64.58260771 | F122: 115.8288898 | G122: 377.2495827 | H122: 654.6377372 | I122: 8.1274 | J122: 65.21018
A123: 5.376830753 | B123: 0.5017054236 | C123: 0.6160583881 | D123: 0.7950799822 | E123: 4.445239157 | F123: 6.844414248 | G123: 20.92010906 | H123: 31.60979506 | I123: 0.6299713318 | J123: 4.227158173
A124: 7.219515876 | B124: 0.6160583881 | C124: 0.7950799822 | D124: 1.083843613 | E124: 5.386978772 | F124: 9.174747959 | G124: 25.13759313 | H124: 41.88975406 | I124: 0.8601287302 | J124: 5.376830753
A125: 10.2739975 | B125: 0.7950799822 | C125: 1.083843613 | D125: 1.564341965 | E125: 6.844414248 | F125: 13.02816712 | G125: 31.60979506 | H125: 58.80491727 | I125: 1.244193244 | J125: 7.219515876
A126: 64.58260771 | B126: 4.445239157 | C126: 5.386978772 | D126: 6.844414248 | E126: 57.02209963 | F126: 83.71376552 | G126: 343.3618477 | H126: 492.9619046 | I126: 5.376830753 | J126: 52.11946359
A127: 115.8288898 | B127: 6.844414248 | C127: 9.174747959 | D127: 13.02816712 | E127: 83.71376552 | F127: 149.5731419 | G127: 492.9619046 | H127: 852.5401346 | I127: 10.2739975 | J127: 84.1114083
A128: 377.2495827 | B128: 20.92010906 | C128: 25.13759313 | D128: 31.60979506 | E128: 343.3618477 | F128: 492.9619046 | G128: 2332.259903 | H128: 3285.2319 | I128: 24.74528144 | J128: 308.30155
A129: 654.6377372 | B129: 31.60979506 | C129: 41.88975406 | D129: 58.80491727 | E129: 492.9619046 | F129: 852.5401346 | G129: 3285.2319 | H129: 5516.677991 | I129: 46.21315307 | J129: 483.8278839
A130: 8.1274 | B130: 0.6299713318 | C130: 0.8601287302 | D130: 1.244193244 | E130: 5.376830753 | F130: 10.2739975 | G130: 24.74528144 | H130: 46.21315307 | I130: 0.99251098 | J130: 5.6974
A131: 65.21018 | B131: 4.227158173 | C131: 5.376830753 | D131: 7.219515876 | E131: 52.11946359 | F131: 84.1114083 | G131: 308.30155 | H131: 483.8278839 | I131: 5.6974 | J131: 49.97842763
A133: 25C Inv(XTX)
A134: =MINVERSE(A122:J131) -> 74.63077534 | B134: -256.4233572 | C134: 430.9898886 | D134: 13.82737668 | E134: 32.34136385 | F134: -38.67881529 | G134: 0.01791888086 | H134: 0.2265084427 | I134: -230.7777734 | J134: -68.67959163
A135: -256.4233572 | B135: 2181.901653 | C135: -3202.959453 | D135: 904.7375481 | E135: -187.4287835 | F135: 129.9569829 | G135: 4.241758947 | H135: -2.746271918 | I135: 262.5090531 | J135: 311.1614392
A136: 430.9898886 | B136: -3202.959453 | C136: 5250.435987 | D136: -1772.362923 | E136: 236.8394631 | F136: -168.4772374 | G136: 1.358489652 | H136: -0.5568641088 | I136: -342.7824045 | J136: -527.6303064
A137: 13.82737668 | B137: 904.7375481 | C137: -1772.362923 | D137: 1917.987989 | E137: -9.208877131 | F137: -92.58757994 | G137: -5.003595001 | H137: 5.129621497 | I137: -1344.520881 | J137: 118.9566277
A138: 32.34136385 | B138: -187.4287835 | C138: 236.8394631 | D138: -9.208877131 | E138: 28.6131426 | F138: -21.10221945 | G138: -1.19886299 | H138: 0.8184522714 | I138: -69.58402672 | J138: -37.41518359
A139: -38.67881529 | B139: 129.9569829 | C139: -168.4772374 | D139: -92.58757994 | E139: -21.10221945 | F139: 27.50199029 | G139: 0.7851182961 | H139: -0.7464436929 | I139: 171.8470351 | J139: 29.48944096
A140: 0.01791888086 | B140: 4.241758947 | C140: 1.358489652 | D140: -5.003595001 | E140: -1.19886299 | F140: 0.7851182961 | G140: 0.1402011037 | H140: -0.08814118175 | I140: 1.708059836 | J140: -0.08291138545
A141: 0.2265084427 | B141: -2.746271918 | C141: -0.5568641088 | D141: 5.129621497 | E141: 0.8184522714 | F141: -0.7464436929 | G141: -0.08814118175 | H141: 0.0686348454 | I141: -3.213875847 | J141: -0.09597073113
A142: -230.7777734 | B142: 262.5090531 | C142: -342.7824045 | D142: -1344.520881 | E142: -69.58402672 | F142: 171.8470351 | G142: 1.708059836 | H142: -3.213875847 | I142: 1764.181513 | J142: 112.8240613
A143: -68.67959163 | B143: 311.1614392 | C143: -527.6303064 | D143: 118.9566277 | E143: -37.41518359 | F143: 29.48944096 | G143: -0.08291138545 | H143: -0.09597073113 | I143: 112.8240613 | J143: 80.86091952
A145: EA XTX
A146: =MMULT(TRANSPOSE($S$92:$V$118),$S$92:$V$118) -> 27 | B146: 32.5767643 | C146: 9.504672639 | D146: 3.7225
A147: 32.5767643 | B147: 39.40504704 | C147: 11.11967922 | D147: 4.239185981
A148: 9.504672639 | B148: 11.11967922 | C148: 4.842826045 | D148: 2.278276088
A149: 3.7225 | B149: 4.239185981 | C149: 2.278276088 | D149: 1.23810625
P150: °
A151: EA Inv(XTX)
A152: =MINVERSE(A146:D149) -> 141.7903719 | B152: -112.0260039 | C152: -7.081115743 | D152: -29.70896659
A153: -112.0260039 | B153: 88.63540938 | C153: 4.953342412 | D153: 24.2222613
A154: -7.081115743 | B154: 4.953342412 | C154: 5.163078795 | D154: -5.170481387
A155: -29.70896659 | B155: 24.2222613 | C155: -5.170481387 | D155: 16.70998889
A158: Min Distance
A159: =MIN(A2:A118) -> 0
A160: Min Distance Chemistry:
A161: SiO2: | B161: =VLOOKUP($A$159,$A$2:$H$118,5,FALSE) -> 20
A162: Cl/Na: | B162: =VLOOKUP($A$159,$A$2:$H$118,3,FALSE) -> 0.7
A163: NaCl/SiO2: | B163: =VLOOKUP($A$159,$A$2:$H$118,4,FALSE) -> 0
A164: T C: | B164: =ROUND(VLOOKUP($A$159,$A$2:$H$118,8,FALSE),1) -> 25
A165: pH: | B165: =ROUND(Equations!B23+Equations!B22*Calcs!B161*Calcs!B162+Equations!B21*Calcs!B162+Equations!B20*Calcs!B162^2,2) -> 7.77
A166: T: | B166: =IF(Calculator!C5='Chart Data'!B83,Calcs!B164*9/5+32,IF(Calculator!C5='Chart Data'!B85,Calcs!B164+273.15,Calcs!B164)) -> 25
A167: Log GT | B167: =VLOOKUP($A$159,$A$2:$H$118,7,FALSE) -> 5.159621326
A168: Log SiO2 | B168: =LOG(B161) -> 1.301029996
